Organisation Name,Organisation Code,Unique Ref No,Effective Date,Directorate  where expenditure incurred,Supplier Name,Payment Date,Net Amount,Purpose of Spend,Procurement Classification (Higher Level),Procurement Classification (Lower Level),Capital/Revenue
Walsall Council,http://opendatacommunities.org/id/metropolitan-district-council/walsall,WC109-01,31/10/2019,Childrens,247 CARS (WILLENHALL) LIMITED,14/10/2019,633.20,52000-WITH DRIVER-HIRE OF VEHICLES,HOME TO SCHOOL TRANSPORT,Transport,Revenue
Walsall Council,http://opendatacommunities.org/id/metropolitan-district-council/walsall,WC109-02,31/10/2019,Childrens,247 CARS (WILLENHALL) LIMITED,14/10/2019,633.20,52000-WITH DRIVER-HIRE OF VEHICLES,HOME TO SCHOOL TRANSPORT,Transport,Revenue
Walsall Council,http://opendatacommunities.org/id/metropolitan-district-council/walsall,WC109-03,31/10/2019,Childrens,247 CARS (WILLENHALL) LIMITED,14/10/2019,633.20,52000-WITH DRIVER-HIRE OF VEHICLES,HOME TO SCHOOL TRANSPORT,Transport,Revenue
Walsall Council,http://opendatacommunities.org/id/metropolitan-district-council/walsall,WC109-04,31/10/2019,Childrens,247 CARS (WILLENHALL) LIMITED,14/10/2019,"1,581.00",52000-WITH DRIVER-HIRE OF VEHICLES,HOME TO SCHOOL TRANSPORT,Transport,Revenue
Walsall Council,http://opendatacommunities.org/id/metropolitan-district-council/walsall,WC109-05,31/10/2019,Childrens,247 CARS (WILLENHALL) LIMITED,14/10/2019,"2,660.00",52000-WITH DRIVER-HIRE OF VEHICLES,HOME TO SCHOOL TRANSPORT,Transport,Revenue
Walsall Council,http://opendatacommunities.org/id/metropolitan-district-council/walsall,WC109-06,31/10/2019,Resources and Transformation,2BM LIMITED,08/10/2019,518.00,63800-COMPUTER EQUIPMENT AND SUPPLIES,NETWORKS,Supplies & Services,Revenue
Walsall Council,http://opendatacommunities.org/id/metropolitan-district-council/walsall,WC109-07,31/10/2019,Adult Social Care,5 CARE SERVICES LTD,14/10/2019,250.18,73507-DOMICILIARY CARE,PHYSICAL SUPPORT,Third Party Payments,Revenue
Walsall Council,http://opendatacommunities.org/id/metropolitan-district-council/walsall,WC109-08,31/10/2019,Adult Social Care,5 CARE SERVICES LTD,14/10/2019,299.31,73507-DOMICILIARY CARE,PHYSICAL SUPPORT,Third Party Payments,Revenue
Walsall Council,http://opendatacommunities.org/id/metropolitan-district-council/walsall,WC109-09,31/10/2019,Adult Social Care,5 CARE SERVICES LTD,14/10/2019,320.93,73507-DOMICILIARY CARE,MENTAL HEALTH SUPPORT,Third Party Payments,Revenue
Walsall Council,http://opendatacommunities.org/id/metropolitan-district-council/walsall,WC109-10,31/10/2019,Adult Social Care,5 CARE SERVICES LTD,14/10/2019,328.60,73507-DOMICILIARY CARE,SOCIAL SUPPORT,Third Party Payments,Revenue
Walsall Council,http://opendatacommunities.org/id/metropolitan-district-council/walsall,WC109-11,31/10/2019,Adult Social Care,5 CARE SERVICES LTD,14/10/2019,331.42,73507-DOMICILIARY CARE,PHYSICAL SUPPORT,Third Party Payments,Revenue
Walsall Council,http://opendatacommunities.org/id/metropolitan-district-council/walsall,WC109-12,31/10/2019,Adult Social Care,5 CARE SERVICES LTD,14/10/2019,351.83,73507-DOMICILIARY CARE,SENSORY SUPPORT,Third Party Payments,Revenue
Walsall Council,http://opendatacommunities.org/id/metropolitan-district-council/walsall,WC109-13,31/10/2019,Adult Social Care,5 CARE SERVICES LTD,14/10/2019,360.67,73507-DOMICILIARY CARE,PHYSICAL SUPPORT,Third Party Payments,Revenue
Walsall Council,http://opendatacommunities.org/id/metropolitan-district-council/walsall,WC109-14,31/10/2019,Adult Social Care,5 CARE SERVICES LTD,14/10/2019,372.84,73025-PROFESSIONAL SERVICES-PRIV CONTRACTOR & OTHER AGENCIES,INTERMEDIATE CARE SERVICE,Third Party Payments,Revenue
Walsall Council,http://opendatacommunities.org/id/metropolitan-district-council/walsall,WC109-15,31/10/2019,Adult Social Care,5 CARE SERVICES LTD,14/10/2019,378.38,73507-DOMICILIARY CARE,PHYSICAL SUPPORT,Third Party Payments,Revenue
Walsall Council,http://opendatacommunities.org/id/metropolitan-district-council/walsall,WC109-16,31/10/2019,Adult Social Care,5 CARE SERVICES LTD,14/10/2019,381.04,73507-DOMICILIARY CARE,PHYSICAL SUPPORT,Third Party Payments,Revenue
Walsall Council,http://opendatacommunities.org/id/metropolitan-district-council/walsall,WC109-17,31/10/2019,Adult Social Care,5 CARE SERVICES LTD,14/10/2019,381.53,73507-DOMICILIARY CARE,PHYSICAL SUPPORT,Third Party Payments,Revenue
Walsall Council,http://opendatacommunities.org/id/metropolitan-district-council/walsall,WC109-18,31/10/2019,Adult Social Care,5 CARE SERVICES LTD,14/10/2019,382.60,73507-DOMICILIARY CARE,PHYSICAL SUPPORT,Third Party Payments,Revenue
Walsall Council,http://opendatacommunities.org/id/metropolitan-district-council/walsall,WC109-19,31/10/2019,Adult Social Care,5 CARE SERVICES LTD,14/10/2019,382.72,73507-DOMICILIARY CARE,PHYSICAL SUPPORT,Third Party Payments,Revenue
Walsall Council,http://opendatacommunities.org/id/metropolitan-district-council/walsall,WC109-20,31/10/2019,Adult Social Care,5 CARE SERVICES LTD,14/10/2019,391.39,73507-DOMICILIARY CARE,PHYSICAL SUPPORT,Third Party Payments,Revenue
Walsall Council,http://opendatacommunities.org/id/metropolitan-district-council/walsall,WC109-21,31/10/2019,Adult Social Care,5 CARE SERVICES LTD,14/10/2019,394.80,73507-DOMICILIARY CARE,PHYSICAL SUPPORT,Third Party Payments,Revenue
Walsall Council,http://opendatacommunities.org/id/metropolitan-district-council/walsall,WC109-22,31/10/2019,Adult Social Care,5 CARE SERVICES LTD,25/10/2019,429.90,73025-PROFESSIONAL SERVICES-PRIV CONTRACTOR & OTHER AGENCIES,INTERMEDIATE CARE SERVICE,Third Party Payments,Revenue
Walsall Council,http://opendatacommunities.org/id/metropolitan-district-council/walsall,WC109-23,31/10/2019,Adult Social Care,5 CARE SERVICES LTD,14/10/2019,436.64,73507-DOMICILIARY CARE,PHYSICAL SUPPORT,Third Party Payments,Revenue
Walsall Council,http://opendatacommunities.org/id/metropolitan-district-council/walsall,WC109-24,31/10/2019,Adult Social Care,5 CARE SERVICES LTD,14/10/2019,457.58,73507-DOMICILIARY CARE,MENTAL HEALTH SUPPORT,Third Party Payments,Revenue
Walsall Council,http://opendatacommunities.org/id/metropolitan-district-council/walsall,WC109-25,31/10/2019,Adult Social Care,5 CARE SERVICES LTD,14/10/2019,470.03,73507-DOMICILIARY CARE,SENSORY SUPPORT,Third Party Payments,Revenue
Walsall Council,http://opendatacommunities.org/id/metropolitan-district-council/walsall,WC109-26,31/10/2019,Adult Social Care,5 CARE SERVICES LTD,14/10/2019,471.10,73507-DOMICILIARY CARE,PHYSICAL SUPPORT,Third Party Payments,Revenue
Walsall Council,http://opendatacommunities.org/id/metropolitan-district-council/walsall,WC109-27,31/10/2019,Adult Social Care,5 CARE SERVICES LTD,14/10/2019,475.98,73507-DOMICILIARY CARE,PHYSICAL SUPPORT,Third Party Payments,Revenue
Walsall Council,http://opendatacommunities.org/id/metropolitan-district-council/walsall,WC109-28,31/10/2019,Adult Social Care,5 CARE SERVICES LTD,14/10/2019,479.57,73507-DOMICILIARY CARE,PHYSICAL SUPPORT,Third Party Payments,Revenue
Walsall Council,http://opendatacommunities.org/id/metropolitan-district-council/walsall,WC109-29,31/10/2019,Adult Social Care,5 CARE SERVICES LTD,14/10/2019,491.73,73507-DOMICILIARY CARE,PHYSICAL SUPPORT,Third Party Payments,Revenue
Walsall Council,http://opendatacommunities.org/id/metropolitan-district-council/walsall,WC109-30,31/10/2019,Adult Social Care,5 CARE SERVICES LTD,14/10/2019,550.97,73507-DOMICILIARY CARE,PHYSICAL SUPPORT,Third Party Payments,Revenue
Walsall Council,http://opendatacommunities.org/id/metropolitan-district-council/walsall,WC109-31,31/10/2019,Adult Social Care,5 CARE SERVICES LTD,14/10/2019,567.42,73507-DOMICILIARY CARE,PHYSICAL SUPPORT,Third Party Payments,Revenue
Walsall Council,http://opendatacommunities.org/id/metropolitan-district-council/walsall,WC109-32,31/10/2019,Adult Social Care,5 CARE SERVICES LTD,14/10/2019,577.18,73507-DOMICILIARY CARE,PHYSICAL SUPPORT,Third Party Payments,Revenue
Walsall Council,http://opendatacommunities.org/id/metropolitan-district-council/walsall,WC109-33,31/10/2019,Adult Social Care,5 CARE SERVICES LTD,14/10/2019,597.84,73507-DOMICILIARY CARE,PHYSICAL SUPPORT,Third Party Payments,Revenue
Walsall Council,http://opendatacommunities.org/id/metropolitan-district-council/walsall,WC109-34,31/10/2019,Adult Social Care,5 CARE SERVICES LTD,25/10/2019,601.86,73025-PROFESSIONAL SERVICES-PRIV CONTRACTOR & OTHER AGENCIES,INTERMEDIATE CARE SERVICE,Third Party Payments,Revenue
Walsall Council,http://opendatacommunities.org/id/metropolitan-district-council/walsall,WC109-35,31/10/2019,Adult Social Care,5 CARE SERVICES LTD,14/10/2019,618.88,73507-DOMICILIARY CARE,PHYSICAL SUPPORT,Third Party Payments,Revenue
Walsall Council,http://opendatacommunities.org/id/metropolitan-district-council/walsall,WC109-36,31/10/2019,Adult Social Care,5 CARE SERVICES LTD,14/10/2019,628.35,73507-DOMICILIARY CARE,PHYSICAL SUPPORT,Third Party Payments,Revenue
Walsall Council,http://opendatacommunities.org/id/metropolitan-district-council/walsall,WC109-37,31/10/2019,Adult Social Care,5 CARE SERVICES LTD,14/10/2019,789.15,73507-DOMICILIARY CARE,LEARNING DISABILITY SUPPORT,Third Party Payments,Revenue
Walsall Council,http://opendatacommunities.org/id/metropolitan-district-council/walsall,WC109-38,31/10/2019,Adult Social Care,5 CARE SERVICES LTD,14/10/2019,801.00,73507-DOMICILIARY CARE,PHYSICAL SUPPORT,Third Party Payments,Revenue
Walsall Council,http://opendatacommunities.org/id/metropolitan-district-council/walsall,WC109-39,31/10/2019,Adult Social Care,5 CARE SERVICES LTD,25/10/2019,802.92,73025-PROFESSIONAL SERVICES-PRIV CONTRACTOR & OTHER AGENCIES,INTERMEDIATE CARE SERVICE,Third Party Payments,Revenue
Walsall Council,http://opendatacommunities.org/id/metropolitan-district-council/walsall,WC109-40,31/10/2019,Adult Social Care,5 CARE SERVICES LTD,14/10/2019,822.19,73507-DOMICILIARY CARE,PHYSICAL SUPPORT,Third Party Payments,Revenue
Walsall Council,http://opendatacommunities.org/id/metropolitan-district-council/walsall,WC109-41,31/10/2019,Adult Social Care,5 CARE SERVICES LTD,14/10/2019,830.66,73507-DOMICILIARY CARE,PHYSICAL SUPPORT,Third Party Payments,Revenue
Walsall Council,http://opendatacommunities.org/id/metropolitan-district-council/walsall,WC109-42,31/10/2019,Adult Social Care,5 CARE SERVICES LTD,14/10/2019,835.69,73507-DOMICILIARY CARE,PHYSICAL SUPPORT,Third Party Payments,Revenue
Walsall Council,http://opendatacommunities.org/id/metropolitan-district-council/walsall,WC109-43,31/10/2019,Adult Social Care,5 CARE SERVICES LTD,14/10/2019,846.23,73507-DOMICILIARY CARE,PHYSICAL SUPPORT,Third Party Payments,Revenue
Walsall Council,http://opendatacommunities.org/id/metropolitan-district-council/walsall,WC109-44,31/10/2019,Adult Social Care,5 CARE SERVICES LTD,14/10/2019,886.49,73507-DOMICILIARY CARE,PHYSICAL SUPPORT,Third Party Payments,Revenue
Walsall Council,http://opendatacommunities.org/id/metropolitan-district-council/walsall,WC109-45,31/10/2019,Adult Social Care,5 CARE SERVICES LTD,14/10/2019,916.46,73507-DOMICILIARY CARE,PHYSICAL SUPPORT,Third Party Payments,Revenue
Walsall Council,http://opendatacommunities.org/id/metropolitan-district-council/walsall,WC109-46,31/10/2019,Adult Social Care,5 CARE SERVICES LTD,14/10/2019,970.98,73507-DOMICILIARY CARE,PHYSICAL SUPPORT,Third Party Payments,Revenue
Walsall Council,http://opendatacommunities.org/id/metropolitan-district-council/walsall,WC109-47,31/10/2019,Adult Social Care,5 CARE SERVICES LTD,14/10/2019,"1,046.40",73507-DOMICILIARY CARE,MENTAL HEALTH SUPPORT,Third Party Payments,Revenue
Walsall Council,http://opendatacommunities.org/id/metropolitan-district-council/walsall,WC109-48,31/10/2019,Adult Social Care,5 CARE SERVICES LTD,14/10/2019,"1,074.75",73507-DOMICILIARY CARE,PHYSICAL SUPPORT,Third Party Payments,Revenue
Walsall Council,http://opendatacommunities.org/id/metropolitan-district-council/walsall,WC109-49,31/10/2019,Adult Social Care,5 CARE SERVICES LTD,14/10/2019,"1,142.10",73507-DOMICILIARY CARE,LEARNING DISABILITY SUPPORT,Third Party Payments,Revenue
Walsall Council,http://opendatacommunities.org/id/metropolitan-district-council/walsall,WC109-50,31/10/2019,Adult Social Care,5 CARE SERVICES LTD,14/10/2019,"1,187.30",73507-DOMICILIARY CARE,PHYSICAL SUPPORT,Third Party Payments,Revenue
Walsall Council,http://opendatacommunities.org/id/metropolitan-district-council/walsall,WC109-51,31/10/2019,Adult Social Care,5 CARE SERVICES LTD,14/10/2019,"1,262.83",73507-DOMICILIARY CARE,PHYSICAL SUPPORT,Third Party Payments,Revenue
Walsall Council,http://opendatacommunities.org/id/metropolitan-district-council/walsall,WC109-52,31/10/2019,Adult Social Care,5 CARE SERVICES LTD,14/10/2019,"1,278.95",73507-DOMICILIARY CARE,PHYSICAL SUPPORT,Third Party Payments,Revenue
Walsall Council,http://opendatacommunities.org/id/metropolitan-district-council/walsall,WC109-53,31/10/2019,Adult Social Care,5 CARE SERVICES LTD,14/10/2019,"1,470.81",73507-DOMICILIARY CARE,PHYSICAL SUPPORT,Third Party Payments,Revenue
Walsall Council,http://opendatacommunities.org/id/metropolitan-district-council/walsall,WC109-54,31/10/2019,Adult Social Care,5 CARE SERVICES LTD,14/10/2019,"1,583.49",73507-DOMICILIARY CARE,PHYSICAL SUPPORT,Third Party Payments,Revenue
Walsall Council,http://opendatacommunities.org/id/metropolitan-district-council/walsall,WC109-55,31/10/2019,Adult Social Care,5 CARE SERVICES LTD,14/10/2019,"1,590.08",73507-DOMICILIARY CARE,PHYSICAL SUPPORT,Third Party Payments,Revenue
Walsall Council,http://opendatacommunities.org/id/metropolitan-district-council/walsall,WC109-56,31/10/2019,Adult Social Care,5 CARE SERVICES LTD,14/10/2019,"1,628.48",73507-DOMICILIARY CARE,PHYSICAL SUPPORT,Third Party Payments,Revenue
Walsall Council,http://opendatacommunities.org/id/metropolitan-district-council/walsall,WC109-57,31/10/2019,Adult Social Care,5 CARE SERVICES LTD,14/10/2019,"1,641.54",73507-DOMICILIARY CARE,PHYSICAL SUPPORT,Third Party Payments,Revenue
Walsall Council,http://opendatacommunities.org/id/metropolitan-district-council/walsall,WC109-58,31/10/2019,Adult Social Care,5 CARE SERVICES LTD,14/10/2019,"1,725.09",73507-DOMICILIARY CARE,PHYSICAL SUPPORT,Third Party Payments,Revenue
Walsall Council,http://opendatacommunities.org/id/metropolitan-district-council/walsall,WC109-59,31/10/2019,Adult Social Care,5 CARE SERVICES LTD,14/10/2019,"1,742.02",73507-DOMICILIARY CARE,PHYSICAL SUPPORT,Third Party Payments,Revenue
Walsall Council,http://opendatacommunities.org/id/metropolitan-district-council/walsall,WC109-60,31/10/2019,Adult Social Care,5 CARE SERVICES LTD,14/10/2019,"1,972.83",73507-DOMICILIARY CARE,PHYSICAL SUPPORT,Third Party Payments,Revenue
Walsall Council,http://opendatacommunities.org/id/metropolitan-district-council/walsall,WC109-61,31/10/2019,Adult Social Care,5 CARE SERVICES LTD,14/10/2019,"2,100.24",73507-DOMICILIARY CARE,PHYSICAL SUPPORT,Third Party Payments,Revenue
Walsall Council,http://opendatacommunities.org/id/metropolitan-district-council/walsall,WC109-62,31/10/2019,Adult Social Care,5 CARE SERVICES LTD,28/10/2019,"2,314.30",73025-PROFESSIONAL SERVICES-PRIV CONTRACTOR & OTHER AGENCIES,RAPID RESPONSE,Third Party Payments,Revenue
Walsall Council,http://opendatacommunities.org/id/metropolitan-district-council/walsall,WC109-63,31/10/2019,Adult Social Care,5 CARE SERVICES LTD,14/10/2019,"2,447.31",73507-DOMICILIARY CARE,PHYSICAL SUPPORT,Third Party Payments,Revenue
Walsall Council,http://opendatacommunities.org/id/metropolitan-district-council/walsall,WC109-64,31/10/2019,Resources and Transformation,A & A SERVICES WEST MIDLANDS,23/10/2019,"4,500.00",01045-PRIVATE GRANTS,CFR 1359 DISABLED FACILITIES GRANT,Capital,Capital
Walsall Council,http://opendatacommunities.org/id/metropolitan-district-council/walsall,WC109-65,31/10/2019,Resources and Transformation,A & M ELLIS,23/10/2019,"2,820.00",62008-OUTWORK PRINT & DESIGN,PRINTING SERVICES,Supplies & Services,Revenue
Walsall Council,http://opendatacommunities.org/id/metropolitan-district-council/walsall,WC109-66,31/10/2019,Economy & Environment,A & P CHAMBERS LTD,28/10/2019,549.20,40000-OPERATIONAL MAINTENANCE,ENVIRONMENTAL IMPROVEMENT SERVICE,Premises,Revenue
Walsall Council,http://opendatacommunities.org/id/metropolitan-district-council/walsall,WC109-67,31/10/2019,Resources and Transformation,A D T FIRE AND SECURITY PLC,18/10/2019,215.72,73002-SECURITY-PRIV CONTRACTOR FEES,CENTRALISED MAINTENANCE,Third Party Payments,Revenue
Walsall Council,http://opendatacommunities.org/id/metropolitan-district-council/walsall,WC109-68,31/10/2019,Resources and Transformation,A D T FIRE AND SECURITY PLC,24/10/2019,245.02,73002-SECURITY-PRIV CONTRACTOR FEES,CENTRALISED MAINTENANCE,Third Party Payments,Revenue
Walsall Council,http://opendatacommunities.org/id/metropolitan-district-council/walsall,WC109-69,31/10/2019,Resources and Transformation,A D T FIRE AND SECURITY PLC,24/10/2019,245.02,73002-SECURITY-PRIV CONTRACTOR FEES,CENTRALISED MAINTENANCE,Third Party Payments,Revenue
Walsall Council,http://opendatacommunities.org/id/metropolitan-district-council/walsall,WC109-70,31/10/2019,Resources and Transformation,A D T FIRE AND SECURITY PLC,01/10/2019,267.83,73002-SECURITY-PRIV CONTRACTOR FEES,CENTRALISED MAINTENANCE,Third Party Payments,Revenue
Walsall Council,http://opendatacommunities.org/id/metropolitan-district-council/walsall,WC109-71,31/10/2019,Resources and Transformation,A D T FIRE AND SECURITY PLC,01/10/2019,279.42,73002-SECURITY-PRIV CONTRACTOR FEES,CENTRALISED MAINTENANCE,Third Party Payments,Revenue
Walsall Council,http://opendatacommunities.org/id/metropolitan-district-council/walsall,WC109-72,31/10/2019,Economy & Environment,A D T FIRE AND SECURITY PLC,01/10/2019,282.00,60500-GENERAL MATERIALS,ARBORETUM,Supplies & Services,Revenue
Walsall Council,http://opendatacommunities.org/id/metropolitan-district-council/walsall,WC109-73,31/10/2019,Childrens,A D T FIRE AND SECURITY PLC,09/10/2019,833.70,40000-OPERATIONAL MAINTENANCE,CONTACT SESSIONAL STAFF,Premises,Revenue
Walsall Council,http://opendatacommunities.org/id/metropolitan-district-council/walsall,WC109-74,31/10/2019,Resources and Transformation,A D T FIRE AND SECURITY PLC,18/10/2019,"1,175.06",73002-SECURITY-PRIV CONTRACTOR FEES,CENTRALISED MAINTENANCE,Third Party Payments,Revenue
Walsall Council,http://opendatacommunities.org/id/metropolitan-district-council/walsall,WC109-75,31/10/2019,Economy & Environment,A F BLAKEMORE & SON LTD,23/10/2019,258.48,61002-DRY FOODS-PROVISIONS,WALSALL GALA CENTRE,Supplies & Services,Revenue
Walsall Council,http://opendatacommunities.org/id/metropolitan-district-council/walsall,WC109-76,31/10/2019,Economy & Environment,A F BLAKEMORE & SON LTD,25/10/2019,288.97,61000-FOOD & DRINK SUPPLIES,OAK PARK,Supplies & Services,Revenue
Walsall Council,http://opendatacommunities.org/id/metropolitan-district-council/walsall,WC109-77,31/10/2019,Economy & Environment,A F BLAKEMORE & SON LTD,30/10/2019,368.78,61016-FOOD AND BEVERAGES-PROVISIONS,BLOXWICH LEISURE CENTRE,Supplies & Services,Revenue
Walsall Council,http://opendatacommunities.org/id/metropolitan-district-council/walsall,WC109-78,31/10/2019,Economy & Environment,A F BLAKEMORE & SON LTD,25/10/2019,371.23,61000-FOOD & DRINK SUPPLIES,OAK PARK,Supplies & Services,Revenue
Walsall Council,http://opendatacommunities.org/id/metropolitan-district-council/walsall,WC109-79,31/10/2019,Economy & Environment,A F BLAKEMORE & SON LTD,23/10/2019,399.89,61016-FOOD AND BEVERAGES-PROVISIONS,BLOXWICH LEISURE CENTRE,Supplies & Services,Revenue
Walsall Council,http://opendatacommunities.org/id/metropolitan-district-council/walsall,WC109-80,31/10/2019,Adult Social Care,A F BLAKEMORE & SON LTD,03/10/2019,429.72,61016-FOOD AND BEVERAGES-PROVISIONS,GOSCOTE,Supplies & Services,Revenue
Walsall Council,http://opendatacommunities.org/id/metropolitan-district-council/walsall,WC109-81,31/10/2019,Economy & Environment,A F BLAKEMORE & SON LTD,08/10/2019,447.08,61000-FOOD & DRINK SUPPLIES,OAK PARK,Supplies & Services,Revenue
Walsall Council,http://opendatacommunities.org/id/metropolitan-district-council/walsall,WC109-82,31/10/2019,Economy & Environment,A F BLAKEMORE & SON LTD,23/10/2019,457.00,61000-FOOD & DRINK SUPPLIES,OAK PARK,Supplies & Services,Revenue
Walsall Council,http://opendatacommunities.org/id/metropolitan-district-council/walsall,WC109-83,31/10/2019,Economy & Environment,A F BLAKEMORE & SON LTD,25/10/2019,500.24,61000-FOOD & DRINK SUPPLIES,OAK PARK,Supplies & Services,Revenue
Walsall Council,http://opendatacommunities.org/id/metropolitan-district-council/walsall,WC109-84,31/10/2019,Adult Social Care,A F BLAKEMORE & SON LTD,16/10/2019,534.69,61016-FOOD AND BEVERAGES-PROVISIONS,GOSCOTE,Supplies & Services,Revenue
Walsall Council,http://opendatacommunities.org/id/metropolitan-district-council/walsall,WC109-85,31/10/2019,Economy & Environment,A F BLAKEMORE & SON LTD,10/10/2019,554.52,61000-FOOD & DRINK SUPPLIES,OAK PARK,Supplies & Services,Revenue
Walsall Council,http://opendatacommunities.org/id/metropolitan-district-council/walsall,WC109-86,31/10/2019,Economy & Environment,A F BLAKEMORE & SON LTD,07/10/2019,650.44,61000-FOOD & DRINK SUPPLIES,OAK PARK,Supplies & Services,Revenue
Walsall Council,http://opendatacommunities.org/id/metropolitan-district-council/walsall,WC109-87,31/10/2019,Resources and Transformation,AAINA COMMUNITY HUB,23/10/2019,"2,583.00",30030-EXTERNAL TRAINING,PREVENT GRANT,Employees,Revenue
Walsall Council,http://opendatacommunities.org/id/metropolitan-district-council/walsall,WC109-88,31/10/2019,Childrens,REDACTED,08/10/2019,712.12,73506-DIRECT PAYMENT,FAMILY SUPPORT - DIRECT PAYMENTS,Third Party Payments,Revenue
Walsall Council,http://opendatacommunities.org/id/metropolitan-district-council/walsall,WC109-89,31/10/2019,Adult Social Care,ABBEY COURT NURSING & RESIDEN,09/10/2019,"1,814.96",73500-RESIDENTIAL,PHYSICAL SUPPORT,Third Party Payments,Revenue
Walsall Council,http://opendatacommunities.org/id/metropolitan-district-council/walsall,WC109-90,31/10/2019,Adult Social Care,ABBEY COURT NURSING & RESIDEN,09/10/2019,"1,972.24",73501-RESIDENTIAL EMI,SUPPORT WITH MEMORY & COGNITION,Third Party Payments,Revenue
Walsall Council,http://opendatacommunities.org/id/metropolitan-district-council/walsall,WC109-91,31/10/2019,Adult Social Care,ABBEY COURT NURSING & RESIDEN,09/10/2019,"1,972.24",73501-RESIDENTIAL EMI,PHYSICAL SUPPORT,Third Party Payments,Revenue
Walsall Council,http://opendatacommunities.org/id/metropolitan-district-council/walsall,WC109-92,31/10/2019,Adult Social Care,ABBEY COURT NURSING & RESIDEN,09/10/2019,"1,972.24",73501-RESIDENTIAL EMI,PHYSICAL SUPPORT,Third Party Payments,Revenue
Walsall Council,http://opendatacommunities.org/id/metropolitan-district-council/walsall,WC109-93,31/10/2019,Adult Social Care,ABBEY COURT NURSING & RESIDEN,09/10/2019,"2,358.08",73503-NURSING EMI,MENTAL HEALTH SUPPORT,Third Party Payments,Revenue
Walsall Council,http://opendatacommunities.org/id/metropolitan-district-council/walsall,WC109-94,31/10/2019,Adult Social Care,ABBEY COURT NURSING & RESIDEN,09/10/2019,"2,383.72",73502-NURSING,SUPPORT WITH MEMORY & COGNITION,Third Party Payments,Revenue
Walsall Council,http://opendatacommunities.org/id/metropolitan-district-council/walsall,WC109-95,31/10/2019,Adult Social Care,ABBEY HEALTHCARE HOMES LTD,09/10/2019,"2,317.04",73500-RESIDENTIAL,PHYSICAL SUPPORT,Third Party Payments,Revenue
Walsall Council,http://opendatacommunities.org/id/metropolitan-district-council/walsall,WC109-96,31/10/2019,Adult Social Care,ABBEY HEALTHCARE HOMES LTD,09/10/2019,"3,030.00",73500-RESIDENTIAL,LEARNING DISABILITY SUPPORT,Third Party Payments,Revenue
Walsall Council,http://opendatacommunities.org/id/metropolitan-district-council/walsall,WC109-97,31/10/2019,Adult Social Care,ABBEY HEALTHCARE HOMES LTD,09/10/2019,"3,030.00",73500-RESIDENTIAL,PHYSICAL SUPPORT,Third Party Payments,Revenue
Walsall Council,http://opendatacommunities.org/id/metropolitan-district-council/walsall,WC109-98,31/10/2019,Adult Social Care,ABBEY HEALTHCARE HOMES LTD,09/10/2019,"3,030.00",73500-RESIDENTIAL,LEARNING DISABILITY SUPPORT,Third Party Payments,Revenue
Walsall Council,http://opendatacommunities.org/id/metropolitan-district-council/walsall,WC109-99,31/10/2019,Adult Social Care,ABBEY HEALTHCARE HOMES LTD,09/10/2019,"3,434.00",73500-RESIDENTIAL,LEARNING DISABILITY SUPPORT,Third Party Payments,Revenue
Walsall Council,http://opendatacommunities.org/id/metropolitan-district-council/walsall,WC109-100,31/10/2019,Adult Social Care,ABBEY HEALTHCARE HOMES LTD,09/10/2019,"3,514.44",73503-NURSING EMI,PHYSICAL SUPPORT,Third Party Payments,Revenue
Walsall Council,http://opendatacommunities.org/id/metropolitan-district-council/walsall,WC109-101,31/10/2019,Childrens,ABC DAY NURSERY (WILLENHALL) LIMITED,25/10/2019,"4,951.80",66505-OTHER-GRANTS TO OTHER ORGS,EARLY YEARS - 2 YR OLDS,Third Party Payments,Revenue
Walsall Council,http://opendatacommunities.org/id/metropolitan-district-council/walsall,WC109-102,31/10/2019,Adult Social Care,REDACTED,04/10/2019,"1,999.20",73506-DIRECT PAYMENT,LEARNING DISABILITY SUPPORT,Third Party Payments,Revenue
Walsall Council,http://opendatacommunities.org/id/metropolitan-district-council/walsall,WC109-103,31/10/2019,Childrens,ABLEWELL CARS,14/10/2019,328.00,52000-WITH DRIVER-HIRE OF VEHICLES,HOME TO SCHOOL TRANSPORT,Transport,Revenue
Walsall Council,http://opendatacommunities.org/id/metropolitan-district-council/walsall,WC109-104,31/10/2019,Childrens,ABLEWELL CARS,14/10/2019,500.00,52000-WITH DRIVER-HIRE OF VEHICLES,HOME TO SCHOOL TRANSPORT,Transport,Revenue
Walsall Council,http://opendatacommunities.org/id/metropolitan-district-council/walsall,WC109-105,31/10/2019,Childrens,ABLEWELL CARS,14/10/2019,500.00,52000-WITH DRIVER-HIRE OF VEHICLES,HOME TO SCHOOL TRANSPORT,Transport,Revenue
Walsall Council,http://opendatacommunities.org/id/metropolitan-district-council/walsall,WC109-106,31/10/2019,Childrens,ABLEWELL CARS,14/10/2019,557.60,52000-WITH DRIVER-HIRE OF VEHICLES,HOME TO SCHOOL TRANSPORT,Transport,Revenue
Walsall Council,http://opendatacommunities.org/id/metropolitan-district-council/walsall,WC109-107,31/10/2019,Childrens,ABLEWELL CARS,14/10/2019,"1,266.40",52000-WITH DRIVER-HIRE OF VEHICLES,HOME TO SCHOOL TRANSPORT,Transport,Revenue
Walsall Council,http://opendatacommunities.org/id/metropolitan-district-council/walsall,WC109-108,31/10/2019,Childrens,AC EDUCATION,25/10/2019,"2,375.00",63000-PROFESSIONAL FEES AND SERVICES,VIRTUAL SCHOOL CENTRAL PUPIL PREMIUM,Supplies & Services,Revenue
Walsall Council,http://opendatacommunities.org/id/metropolitan-district-council/walsall,WC109-109,31/10/2019,Economy & Environment,AC JADE TRADING LIMITED,01/10/2019,475.75,60514-MATERIALS TO STORES,NAG - NEW ART GALLERY SHOP STOCK,Supplies & Services,Revenue
Walsall Council,http://opendatacommunities.org/id/metropolitan-district-council/walsall,WC109-110,31/10/2019,Adult Social Care,ACCOMPLISH GROUP LTD,31/10/2019,"6,152.21",73504-SHORT STAY RESIDENTIAL,PHYSICAL SUPPORT,Third Party Payments,Revenue
Walsall Council,http://opendatacommunities.org/id/metropolitan-district-council/walsall,WC109-111,31/10/2019,Adult Social Care,ACCOMPLISH GROUP LTD,31/10/2019,"18,575.65",73500-RESIDENTIAL,PHYSICAL SUPPORT,Third Party Payments,Revenue
Walsall Council,http://opendatacommunities.org/id/metropolitan-district-council/walsall,WC109-112,31/10/2019,Adult Social Care,ACCORD - AGE MATTERS,04/10/2019,-249.71,76423-DIRECT PAYMENTS SUPPORT,DIRECT PAYMENT SUPPORT ORGANISATIONS,Transfer Payments,Revenue
Walsall Council,http://opendatacommunities.org/id/metropolitan-district-council/walsall,WC109-113,31/10/2019,Adult Social Care,ACCORD HOUSING ASSOCIATION LIMITED - HOBS MEADOW,09/10/2019,"4,550.44",73500-RESIDENTIAL,LEARNING DISABILITY SUPPORT,Third Party Payments,Revenue
Walsall Council,http://opendatacommunities.org/id/metropolitan-district-council/walsall,WC109-114,31/10/2019,Adult Social Care,ACCORD HOUSING ASSOCIATION LIMITED - HOBS MEADOW,09/10/2019,"4,550.44",73500-RESIDENTIAL,LEARNING DISABILITY SUPPORT,Third Party Payments,Revenue
Walsall Council,http://opendatacommunities.org/id/metropolitan-district-council/walsall,WC109-115,31/10/2019,Adult Social Care,ACCORD HOUSING ASSOCIATION LIMITED - HOBS MEADOW,09/10/2019,"4,550.44",73500-RESIDENTIAL,LEARNING DISABILITY SUPPORT,Third Party Payments,Revenue
Walsall Council,http://opendatacommunities.org/id/metropolitan-district-council/walsall,WC109-116,31/10/2019,Adult Social Care,ACCORD HOUSING ASSOCIATION LIMITED - HOBS MEADOW,09/10/2019,"4,550.44",73500-RESIDENTIAL,LEARNING DISABILITY SUPPORT,Third Party Payments,Revenue
Walsall Council,http://opendatacommunities.org/id/metropolitan-district-council/walsall,WC109-117,31/10/2019,Adult Social Care,ACCORD HOUSING ASSOCIATION LTD#135,14/10/2019,-0.56,73508-COMMUNITY SUPPORTED LIVING/SUPPORTED ACCOMMODATION,MENTAL HEALTH SUPPORT,Third Party Payments,Revenue
Walsall Council,http://opendatacommunities.org/id/metropolitan-district-council/walsall,WC109-118,31/10/2019,Adult Social Care,ACCORD HOUSING ASSOCIATION LTD#135,14/10/2019,259.06,73507-DOMICILIARY CARE,PHYSICAL SUPPORT,Third Party Payments,Revenue
Walsall Council,http://opendatacommunities.org/id/metropolitan-district-council/walsall,WC109-119,31/10/2019,Adult Social Care,ACCORD HOUSING ASSOCIATION LTD#135,14/10/2019,267.68,73507-DOMICILIARY CARE,MENTAL HEALTH SUPPORT,Third Party Payments,Revenue
Walsall Council,http://opendatacommunities.org/id/metropolitan-district-council/walsall,WC109-120,31/10/2019,Adult Social Care,ACCORD HOUSING ASSOCIATION LTD#135,14/10/2019,286.26,73507-DOMICILIARY CARE,MENTAL HEALTH SUPPORT,Third Party Payments,Revenue
Walsall Council,http://opendatacommunities.org/id/metropolitan-district-council/walsall,WC109-121,31/10/2019,Adult Social Care,ACCORD HOUSING ASSOCIATION LTD#135,14/10/2019,317.61,73507-DOMICILIARY CARE,MENTAL HEALTH SUPPORT,Third Party Payments,Revenue
Walsall Council,http://opendatacommunities.org/id/metropolitan-district-council/walsall,WC109-122,31/10/2019,Adult Social Care,ACCORD HOUSING ASSOCIATION LTD#135,14/10/2019,324.78,73507-DOMICILIARY CARE,PHYSICAL SUPPORT,Third Party Payments,Revenue
Walsall Council,http://opendatacommunities.org/id/metropolitan-district-council/walsall,WC109-123,31/10/2019,Adult Social Care,ACCORD HOUSING ASSOCIATION LTD#135,14/10/2019,334.32,73507-DOMICILIARY CARE,MENTAL HEALTH SUPPORT,Third Party Payments,Revenue
Walsall Council,http://opendatacommunities.org/id/metropolitan-district-council/walsall,WC109-124,31/10/2019,Adult Social Care,ACCORD HOUSING ASSOCIATION LTD#135,14/10/2019,381.60,73507-DOMICILIARY CARE,MENTAL HEALTH SUPPORT,Third Party Payments,Revenue
Walsall Council,http://opendatacommunities.org/id/metropolitan-district-council/walsall,WC109-125,31/10/2019,Adult Social Care,ACCORD HOUSING ASSOCIATION LTD#135,14/10/2019,384.48,73508-COMMUNITY SUPPORTED LIVING/SUPPORTED ACCOMMODATION,LEARNING DISABILITY SUPPORT,Third Party Payments,Revenue
Walsall Council,http://opendatacommunities.org/id/metropolitan-district-council/walsall,WC109-126,31/10/2019,Adult Social Care,ACCORD HOUSING ASSOCIATION LTD#135,14/10/2019,400.68,73507-DOMICILIARY CARE,PHYSICAL SUPPORT,Third Party Payments,Revenue
Walsall Council,http://opendatacommunities.org/id/metropolitan-district-council/walsall,WC109-127,31/10/2019,Adult Social Care,ACCORD HOUSING ASSOCIATION LTD#135,14/10/2019,400.68,73507-DOMICILIARY CARE,MENTAL HEALTH SUPPORT,Third Party Payments,Revenue
Walsall Council,http://opendatacommunities.org/id/metropolitan-district-council/walsall,WC109-128,31/10/2019,Adult Social Care,ACCORD HOUSING ASSOCIATION LTD#135,14/10/2019,400.68,73507-DOMICILIARY CARE,SUPPORT WITH MEMORY & COGNITION,Third Party Payments,Revenue
Walsall Council,http://opendatacommunities.org/id/metropolitan-district-council/walsall,WC109-129,31/10/2019,Adult Social Care,ACCORD HOUSING ASSOCIATION LTD#135,14/10/2019,405.90,73507-DOMICILIARY CARE,MENTAL HEALTH SUPPORT,Third Party Payments,Revenue
Walsall Council,http://opendatacommunities.org/id/metropolitan-district-council/walsall,WC109-130,31/10/2019,Adult Social Care,ACCORD HOUSING ASSOCIATION LTD#135,14/10/2019,412.77,73507-DOMICILIARY CARE,SOCIAL SUPPORT,Third Party Payments,Revenue
Walsall Council,http://opendatacommunities.org/id/metropolitan-district-council/walsall,WC109-131,31/10/2019,Adult Social Care,ACCORD HOUSING ASSOCIATION LTD#135,14/10/2019,434.43,73507-DOMICILIARY CARE,PHYSICAL SUPPORT,Third Party Payments,Revenue
Walsall Council,http://opendatacommunities.org/id/metropolitan-district-council/walsall,WC109-132,31/10/2019,Adult Social Care,ACCORD HOUSING ASSOCIATION LTD#135,14/10/2019,448.46,73507-DOMICILIARY CARE,MENTAL HEALTH SUPPORT,Third Party Payments,Revenue
Walsall Council,http://opendatacommunities.org/id/metropolitan-district-council/walsall,WC109-133,31/10/2019,Adult Social Care,ACCORD HOUSING ASSOCIATION LTD#135,14/10/2019,491.58,73507-DOMICILIARY CARE,PHYSICAL SUPPORT,Third Party Payments,Revenue
Walsall Council,http://opendatacommunities.org/id/metropolitan-district-council/walsall,WC109-134,31/10/2019,Adult Social Care,ACCORD HOUSING ASSOCIATION LTD#135,14/10/2019,496.52,73507-DOMICILIARY CARE,PHYSICAL SUPPORT,Third Party Payments,Revenue
Walsall Council,http://opendatacommunities.org/id/metropolitan-district-council/walsall,WC109-135,31/10/2019,Adult Social Care,ACCORD HOUSING ASSOCIATION LTD#135,14/10/2019,534.24,73507-DOMICILIARY CARE,PHYSICAL SUPPORT,Third Party Payments,Revenue
Walsall Council,http://opendatacommunities.org/id/metropolitan-district-council/walsall,WC109-136,31/10/2019,Adult Social Care,ACCORD HOUSING ASSOCIATION LTD#135,14/10/2019,544.20,73507-DOMICILIARY CARE,PHYSICAL SUPPORT,Third Party Payments,Revenue
Walsall Council,http://opendatacommunities.org/id/metropolitan-district-council/walsall,WC109-137,31/10/2019,Adult Social Care,ACCORD HOUSING ASSOCIATION LTD#135,14/10/2019,563.35,73507-DOMICILIARY CARE,PHYSICAL SUPPORT,Third Party Payments,Revenue
Walsall Council,http://opendatacommunities.org/id/metropolitan-district-council/walsall,WC109-138,31/10/2019,Adult Social Care,ACCORD HOUSING ASSOCIATION LTD#135,14/10/2019,563.76,73507-DOMICILIARY CARE,PHYSICAL SUPPORT,Third Party Payments,Revenue
Walsall Council,http://opendatacommunities.org/id/metropolitan-district-council/walsall,WC109-139,31/10/2019,Adult Social Care,ACCORD HOUSING ASSOCIATION LTD#135,14/10/2019,595.11,73507-DOMICILIARY CARE,SENSORY SUPPORT,Third Party Payments,Revenue
Walsall Council,http://opendatacommunities.org/id/metropolitan-district-council/walsall,WC109-140,31/10/2019,Adult Social Care,ACCORD HOUSING ASSOCIATION LTD#135,14/10/2019,602.00,73507-DOMICILIARY CARE,MENTAL HEALTH SUPPORT,Third Party Payments,Revenue
Walsall Council,http://opendatacommunities.org/id/metropolitan-district-council/walsall,WC109-141,31/10/2019,Adult Social Care,ACCORD HOUSING ASSOCIATION LTD#135,14/10/2019,604.48,73507-DOMICILIARY CARE,PHYSICAL SUPPORT,Third Party Payments,Revenue
Walsall Council,http://opendatacommunities.org/id/metropolitan-district-council/walsall,WC109-142,31/10/2019,Adult Social Care,ACCORD HOUSING ASSOCIATION LTD#135,14/10/2019,604.48,73507-DOMICILIARY CARE,PHYSICAL SUPPORT,Third Party Payments,Revenue
Walsall Council,http://opendatacommunities.org/id/metropolitan-district-council/walsall,WC109-143,31/10/2019,Adult Social Care,ACCORD HOUSING ASSOCIATION LTD#135,14/10/2019,642.24,73507-DOMICILIARY CARE,MENTAL HEALTH SUPPORT,Third Party Payments,Revenue
Walsall Council,http://opendatacommunities.org/id/metropolitan-district-council/walsall,WC109-144,31/10/2019,Adult Social Care,ACCORD HOUSING ASSOCIATION LTD#135,14/10/2019,642.24,73507-DOMICILIARY CARE,MENTAL HEALTH SUPPORT,Third Party Payments,Revenue
Walsall Council,http://opendatacommunities.org/id/metropolitan-district-council/walsall,WC109-145,31/10/2019,Adult Social Care,ACCORD HOUSING ASSOCIATION LTD#135,14/10/2019,668.64,73507-DOMICILIARY CARE,PHYSICAL SUPPORT,Third Party Payments,Revenue
Walsall Council,http://opendatacommunities.org/id/metropolitan-district-council/walsall,WC109-146,31/10/2019,Adult Social Care,ACCORD HOUSING ASSOCIATION LTD#135,14/10/2019,680.04,73508-COMMUNITY SUPPORTED LIVING/SUPPORTED ACCOMMODATION,MENTAL HEALTH SUPPORT,Third Party Payments,Revenue
Walsall Council,http://opendatacommunities.org/id/metropolitan-district-council/walsall,WC109-147,31/10/2019,Adult Social Care,ACCORD HOUSING ASSOCIATION LTD#135,14/10/2019,680.04,73508-COMMUNITY SUPPORTED LIVING/SUPPORTED ACCOMMODATION,MENTAL HEALTH SUPPORT,Third Party Payments,Revenue
Walsall Council,http://opendatacommunities.org/id/metropolitan-district-council/walsall,WC109-148,31/10/2019,Adult Social Care,ACCORD HOUSING ASSOCIATION LTD#135,14/10/2019,681.05,73508-COMMUNITY SUPPORTED LIVING/SUPPORTED ACCOMMODATION,LEARNING DISABILITY SUPPORT,Third Party Payments,Revenue
Walsall Council,http://opendatacommunities.org/id/metropolitan-district-council/walsall,WC109-149,31/10/2019,Adult Social Care,ACCORD HOUSING ASSOCIATION LTD#135,14/10/2019,702.10,73507-DOMICILIARY CARE,PHYSICAL SUPPORT,Third Party Payments,Revenue
Walsall Council,http://opendatacommunities.org/id/metropolitan-district-council/walsall,WC109-150,31/10/2019,Adult Social Care,ACCORD HOUSING ASSOCIATION LTD#135,14/10/2019,717.80,73508-COMMUNITY SUPPORTED LIVING/SUPPORTED ACCOMMODATION,MENTAL HEALTH SUPPORT,Third Party Payments,Revenue
Walsall Council,http://opendatacommunities.org/id/metropolitan-district-council/walsall,WC109-151,31/10/2019,Adult Social Care,ACCORD HOUSING ASSOCIATION LTD#135,14/10/2019,717.80,73508-COMMUNITY SUPPORTED LIVING/SUPPORTED ACCOMMODATION,MENTAL HEALTH SUPPORT,Third Party Payments,Revenue
Walsall Council,http://opendatacommunities.org/id/metropolitan-district-council/walsall,WC109-152,31/10/2019,Adult Social Care,ACCORD HOUSING ASSOCIATION LTD#135,14/10/2019,717.80,73508-COMMUNITY SUPPORTED LIVING/SUPPORTED ACCOMMODATION,MENTAL HEALTH SUPPORT,Third Party Payments,Revenue
Walsall Council,http://opendatacommunities.org/id/metropolitan-district-council/walsall,WC109-153,31/10/2019,Adult Social Care,ACCORD HOUSING ASSOCIATION LTD#135,14/10/2019,717.80,73508-COMMUNITY SUPPORTED LIVING/SUPPORTED ACCOMMODATION,MENTAL HEALTH SUPPORT,Third Party Payments,Revenue
Walsall Council,http://opendatacommunities.org/id/metropolitan-district-council/walsall,WC109-154,31/10/2019,Adult Social Care,ACCORD HOUSING ASSOCIATION LTD#135,14/10/2019,720.76,73507-DOMICILIARY CARE,PHYSICAL SUPPORT,Third Party Payments,Revenue
Walsall Council,http://opendatacommunities.org/id/metropolitan-district-council/walsall,WC109-155,31/10/2019,Adult Social Care,ACCORD HOUSING ASSOCIATION LTD#135,14/10/2019,748.45,73507-DOMICILIARY CARE,PHYSICAL SUPPORT,Third Party Payments,Revenue
Walsall Council,http://opendatacommunities.org/id/metropolitan-district-council/walsall,WC109-156,31/10/2019,Adult Social Care,ACCORD HOUSING ASSOCIATION LTD#135,14/10/2019,755.60,73508-COMMUNITY SUPPORTED LIVING/SUPPORTED ACCOMMODATION,MENTAL HEALTH SUPPORT,Third Party Payments,Revenue
Walsall Council,http://opendatacommunities.org/id/metropolitan-district-council/walsall,WC109-157,31/10/2019,Adult Social Care,ACCORD HOUSING ASSOCIATION LTD#135,14/10/2019,755.60,73508-COMMUNITY SUPPORTED LIVING/SUPPORTED ACCOMMODATION,MENTAL HEALTH SUPPORT,Third Party Payments,Revenue
Walsall Council,http://opendatacommunities.org/id/metropolitan-district-council/walsall,WC109-158,31/10/2019,Adult Social Care,ACCORD HOUSING ASSOCIATION LTD#135,14/10/2019,850.04,73508-COMMUNITY SUPPORTED LIVING/SUPPORTED ACCOMMODATION,MENTAL HEALTH SUPPORT,Third Party Payments,Revenue
Walsall Council,http://opendatacommunities.org/id/metropolitan-district-council/walsall,WC109-159,31/10/2019,Adult Social Care,ACCORD HOUSING ASSOCIATION LTD#135,14/10/2019,850.04,73508-COMMUNITY SUPPORTED LIVING/SUPPORTED ACCOMMODATION,MENTAL HEALTH SUPPORT,Third Party Payments,Revenue
Walsall Council,http://opendatacommunities.org/id/metropolitan-district-council/walsall,WC109-160,31/10/2019,Adult Social Care,ACCORD HOUSING ASSOCIATION LTD#135,14/10/2019,850.04,73508-COMMUNITY SUPPORTED LIVING/SUPPORTED ACCOMMODATION,MENTAL HEALTH SUPPORT,Third Party Payments,Revenue
Walsall Council,http://opendatacommunities.org/id/metropolitan-district-council/walsall,WC109-161,31/10/2019,Adult Social Care,ACCORD HOUSING ASSOCIATION LTD#135,14/10/2019,864.72,73507-DOMICILIARY CARE,SOCIAL SUPPORT,Third Party Payments,Revenue
Walsall Council,http://opendatacommunities.org/id/metropolitan-district-council/walsall,WC109-162,31/10/2019,Adult Social Care,ACCORD HOUSING ASSOCIATION LTD#135,14/10/2019,874.12,73507-DOMICILIARY CARE,LEARNING DISABILITY SUPPORT,Third Party Payments,Revenue
Walsall Council,http://opendatacommunities.org/id/metropolitan-district-council/walsall,WC109-163,31/10/2019,Adult Social Care,ACCORD HOUSING ASSOCIATION LTD#135,14/10/2019,892.88,73507-DOMICILIARY CARE,LEARNING DISABILITY SUPPORT,Third Party Payments,Revenue
Walsall Council,http://opendatacommunities.org/id/metropolitan-district-council/walsall,WC109-164,31/10/2019,Adult Social Care,ACCORD HOUSING ASSOCIATION LTD#135,14/10/2019,903.28,73507-DOMICILIARY CARE,PHYSICAL SUPPORT,Third Party Payments,Revenue
Walsall Council,http://opendatacommunities.org/id/metropolitan-district-council/walsall,WC109-165,31/10/2019,Adult Social Care,ACCORD HOUSING ASSOCIATION LTD#135,14/10/2019,923.86,73507-DOMICILIARY CARE,PHYSICAL SUPPORT,Third Party Payments,Revenue
Walsall Council,http://opendatacommunities.org/id/metropolitan-district-council/walsall,WC109-166,31/10/2019,Adult Social Care,ACCORD HOUSING ASSOCIATION LTD#135,14/10/2019,969.04,73507-DOMICILIARY CARE,LEARNING DISABILITY SUPPORT,Third Party Payments,Revenue
Walsall Council,http://opendatacommunities.org/id/metropolitan-district-council/walsall,WC109-167,31/10/2019,Adult Social Care,ACCORD HOUSING ASSOCIATION LTD#135,14/10/2019,982.28,73507-DOMICILIARY CARE,MENTAL HEALTH SUPPORT,Third Party Payments,Revenue
Walsall Council,http://opendatacommunities.org/id/metropolitan-district-council/walsall,WC109-168,31/10/2019,Adult Social Care,ACCORD HOUSING ASSOCIATION LTD#135,14/10/2019,982.28,73507-DOMICILIARY CARE,MENTAL HEALTH SUPPORT,Third Party Payments,Revenue
Walsall Council,http://opendatacommunities.org/id/metropolitan-district-council/walsall,WC109-169,31/10/2019,Adult Social Care,ACCORD HOUSING ASSOCIATION LTD#135,14/10/2019,"1,002.68",73507-DOMICILIARY CARE,SOCIAL SUPPORT,Third Party Payments,Revenue
Walsall Council,http://opendatacommunities.org/id/metropolitan-district-council/walsall,WC109-170,31/10/2019,Adult Social Care,ACCORD HOUSING ASSOCIATION LTD#135,14/10/2019,"1,122.52",73507-DOMICILIARY CARE,PHYSICAL SUPPORT,Third Party Payments,Revenue
Walsall Council,http://opendatacommunities.org/id/metropolitan-district-council/walsall,WC109-171,31/10/2019,Adult Social Care,ACCORD HOUSING ASSOCIATION LTD#135,14/10/2019,"1,132.15",73507-DOMICILIARY CARE,PHYSICAL SUPPORT,Third Party Payments,Revenue
Walsall Council,http://opendatacommunities.org/id/metropolitan-district-council/walsall,WC109-172,31/10/2019,Adult Social Care,ACCORD HOUSING ASSOCIATION LTD#135,14/10/2019,"1,290.54",73507-DOMICILIARY CARE,SOCIAL SUPPORT,Third Party Payments,Revenue
Walsall Council,http://opendatacommunities.org/id/metropolitan-district-council/walsall,WC109-173,31/10/2019,Adult Social Care,ACCORD HOUSING ASSOCIATION LTD#135,14/10/2019,"1,336.58",73507-DOMICILIARY CARE,PHYSICAL SUPPORT,Third Party Payments,Revenue
Walsall Council,http://opendatacommunities.org/id/metropolitan-district-council/walsall,WC109-174,31/10/2019,Adult Social Care,ACCORD HOUSING ASSOCIATION LTD#135,14/10/2019,"1,337.28",73507-DOMICILIARY CARE,PHYSICAL SUPPORT,Third Party Payments,Revenue
Walsall Council,http://opendatacommunities.org/id/metropolitan-district-council/walsall,WC109-175,31/10/2019,Adult Social Care,ACCORD HOUSING ASSOCIATION LTD#135,14/10/2019,"1,385.07",73507-DOMICILIARY CARE,PHYSICAL SUPPORT,Third Party Payments,Revenue
Walsall Council,http://opendatacommunities.org/id/metropolitan-district-council/walsall,WC109-176,31/10/2019,Adult Social Care,ACCORD HOUSING ASSOCIATION LTD#135,14/10/2019,"1,431.42",73507-DOMICILIARY CARE,PHYSICAL SUPPORT,Third Party Payments,Revenue
Walsall Council,http://opendatacommunities.org/id/metropolitan-district-council/walsall,WC109-177,31/10/2019,Adult Social Care,ACCORD HOUSING ASSOCIATION LTD#135,14/10/2019,"1,470.56",73507-DOMICILIARY CARE,MENTAL HEALTH SUPPORT,Third Party Payments,Revenue
Walsall Council,http://opendatacommunities.org/id/metropolitan-district-council/walsall,WC109-178,31/10/2019,Adult Social Care,ACCORD HOUSING ASSOCIATION LTD#135,14/10/2019,"1,471.12",73507-DOMICILIARY CARE,PHYSICAL SUPPORT,Third Party Payments,Revenue
Walsall Council,http://opendatacommunities.org/id/metropolitan-district-council/walsall,WC109-179,31/10/2019,Adult Social Care,ACCORD HOUSING ASSOCIATION LTD#135,14/10/2019,"1,672.16",73507-DOMICILIARY CARE,PHYSICAL SUPPORT,Third Party Payments,Revenue
Walsall Council,http://opendatacommunities.org/id/metropolitan-district-council/walsall,WC109-180,31/10/2019,Adult Social Care,ACCORD HOUSING ASSOCIATION LTD#135,14/10/2019,"1,676.61",73507-DOMICILIARY CARE,LEARNING DISABILITY SUPPORT,Third Party Payments,Revenue
Walsall Council,http://opendatacommunities.org/id/metropolitan-district-council/walsall,WC109-181,31/10/2019,Adult Social Care,ACCORD HOUSING ASSOCIATION LTD#135,14/10/2019,"1,699.23",73507-DOMICILIARY CARE,SOCIAL SUPPORT,Third Party Payments,Revenue
Walsall Council,http://opendatacommunities.org/id/metropolitan-district-council/walsall,WC109-182,31/10/2019,Adult Social Care,ACCORD HOUSING ASSOCIATION LTD#135,14/10/2019,"1,705.48",73507-DOMICILIARY CARE,PHYSICAL SUPPORT,Third Party Payments,Revenue
Walsall Council,http://opendatacommunities.org/id/metropolitan-district-council/walsall,WC109-183,31/10/2019,Adult Social Care,ACCORD HOUSING ASSOCIATION LTD#135,14/10/2019,"1,720.72",73507-DOMICILIARY CARE,SOCIAL SUPPORT,Third Party Payments,Revenue
Walsall Council,http://opendatacommunities.org/id/metropolitan-district-council/walsall,WC109-184,31/10/2019,Adult Social Care,ACCORD HOUSING ASSOCIATION LTD#135,14/10/2019,"1,738.45",73507-DOMICILIARY CARE,PHYSICAL SUPPORT,Third Party Payments,Revenue
Walsall Council,http://opendatacommunities.org/id/metropolitan-district-council/walsall,WC109-185,31/10/2019,Childrens,ACCORD HOUSING ASSOCIATION LTD#135,24/10/2019,"3,530.93",76010-ACCOMMODATION AND RELATED COSTS-ASSISTANCE TO S/S CLIENTS,INITIAL RESPONSE SERVICE,Transfer Payments,Revenue
Walsall Council,http://opendatacommunities.org/id/metropolitan-district-council/walsall,WC109-186,31/10/2019,Adult Social Care,ACCORD HOUSING ASSOCIATION LTD#135,16/10/2019,"5,033.00",70000-SOCIAL SERVICES-FEES TO VOLUNTARY BODIES,COMPLEX NEEDS SLA,Third Party Payments,Revenue
Walsall Council,http://opendatacommunities.org/id/metropolitan-district-council/walsall,WC109-187,31/10/2019,Adult Social Care,ACCORD HOUSING ASSOCIATION LTD#135,09/10/2019,"6,350.96",73500-RESIDENTIAL,LEARNING DISABILITY SUPPORT,Third Party Payments,Revenue
Walsall Council,http://opendatacommunities.org/id/metropolitan-district-council/walsall,WC109-188,31/10/2019,Adult Social Care,ACCORD HOUSING ASSOCIATION LTD#135,09/10/2019,"6,350.96",73500-RESIDENTIAL,LEARNING DISABILITY SUPPORT,Third Party Payments,Revenue
Walsall Council,http://opendatacommunities.org/id/metropolitan-district-council/walsall,WC109-189,31/10/2019,Adult Social Care,ACCORD HOUSING ASSOCIATION LTD#135,03/10/2019,"7,158.31",70000-SOCIAL SERVICES-FEES TO VOLUNTARY BODIES,COMPLEX NEEDS SLA,Third Party Payments,Revenue
Walsall Council,http://opendatacommunities.org/id/metropolitan-district-council/walsall,WC109-190,31/10/2019,Economy & Environment,ACCORD HOUSING ASSOCIATION LTD#135,16/10/2019,"9,440.11",66500-GRANTS TO OTHER ORGS,CITY DEAL WELFARE PILOT,Third Party Payments,Revenue
Walsall Council,http://opendatacommunities.org/id/metropolitan-district-council/walsall,WC109-191,31/10/2019,Resources and Transformation,ACCORD HOUSING ASSOCIATION LTD#135,03/10/2019,"21,144.92",63000-PROFESSIONAL FEES AND SERVICES,HOMELESSNESS PREVENTION STRATEGY,Supplies & Services,Revenue
Walsall Council,http://opendatacommunities.org/id/metropolitan-district-council/walsall,WC109-192,31/10/2019,Resources and Transformation,ACCORD HOUSING ASSOCIATION LTD#135,14/10/2019,"21,144.92",63000-PROFESSIONAL FEES AND SERVICES,HOMELESSNESS PREVENTION STRATEGY,Supplies & Services,Revenue
Walsall Council,http://opendatacommunities.org/id/metropolitan-district-council/walsall,WC109-193,31/10/2019,Resources and Transformation,ACCORD HOUSING ASSOCIATION LTD#135,30/10/2019,"47,217.50",73365-BLOCK GROSS-SUPPORTING PEOPLE,HOMELESS PREVENTION GRANT,Third Party Payments,Revenue
Walsall Council,http://opendatacommunities.org/id/metropolitan-district-council/walsall,WC109-194,31/10/2019,Childrens,ACE CARS & MINIBUSES LTD,14/10/2019,-389.32,52000-WITH DRIVER-HIRE OF VEHICLES,HOME TO SCHOOL TRANSPORT,Transport,Revenue
Walsall Council,http://opendatacommunities.org/id/metropolitan-district-council/walsall,WC109-195,31/10/2019,Childrens,ACE CARS & MINIBUSES LTD,14/10/2019,-375.00,52000-WITH DRIVER-HIRE OF VEHICLES,HOME TO SCHOOL TRANSPORT,Transport,Revenue
Walsall Council,http://opendatacommunities.org/id/metropolitan-district-council/walsall,WC109-196,31/10/2019,Childrens,ACE CARS & MINIBUSES LTD,14/10/2019,-309.40,52000-WITH DRIVER-HIRE OF VEHICLES,HOME TO SCHOOL TRANSPORT,Transport,Revenue
Walsall Council,http://opendatacommunities.org/id/metropolitan-district-council/walsall,WC109-197,31/10/2019,Childrens,ACE CARS & MINIBUSES LTD,14/10/2019,-309.00,52000-WITH DRIVER-HIRE OF VEHICLES,HOME TO SCHOOL TRANSPORT,Transport,Revenue
Walsall Council,http://opendatacommunities.org/id/metropolitan-district-council/walsall,WC109-198,31/10/2019,Childrens,ACE CARS & MINIBUSES LTD,14/10/2019,-309.00,52000-WITH DRIVER-HIRE OF VEHICLES,HOME TO SCHOOL TRANSPORT,Transport,Revenue
Walsall Council,http://opendatacommunities.org/id/metropolitan-district-council/walsall,WC109-199,31/10/2019,Childrens,ACE CARS & MINIBUSES LTD,14/10/2019,-299.00,52000-WITH DRIVER-HIRE OF VEHICLES,HOME TO SCHOOL TRANSPORT,Transport,Revenue
Walsall Council,http://opendatacommunities.org/id/metropolitan-district-council/walsall,WC109-200,31/10/2019,Childrens,ACE CARS & MINIBUSES LTD,14/10/2019,-276.00,52000-WITH DRIVER-HIRE OF VEHICLES,HOME TO SCHOOL TRANSPORT,Transport,Revenue
Walsall Council,http://opendatacommunities.org/id/metropolitan-district-council/walsall,WC109-201,31/10/2019,Childrens,ACE CARS & MINIBUSES LTD,14/10/2019,-275.40,52000-WITH DRIVER-HIRE OF VEHICLES,HOME TO SCHOOL TRANSPORT,Transport,Revenue
Walsall Council,http://opendatacommunities.org/id/metropolitan-district-council/walsall,WC109-202,31/10/2019,Childrens,ACE CARS & MINIBUSES LTD,14/10/2019,-256.50,52000-WITH DRIVER-HIRE OF VEHICLES,HOME TO SCHOOL TRANSPORT,Transport,Revenue
Walsall Council,http://opendatacommunities.org/id/metropolitan-district-council/walsall,WC109-203,31/10/2019,Childrens,ACE CARS & MINIBUSES LTD,14/10/2019,-253.40,52000-WITH DRIVER-HIRE OF VEHICLES,HOME TO SCHOOL TRANSPORT,Transport,Revenue
Walsall Council,http://opendatacommunities.org/id/metropolitan-district-council/walsall,WC109-204,31/10/2019,Childrens,ACE CARS & MINIBUSES LTD,14/10/2019,-231.60,52000-WITH DRIVER-HIRE OF VEHICLES,HOME TO SCHOOL TRANSPORT,Transport,Revenue
Walsall Council,http://opendatacommunities.org/id/metropolitan-district-council/walsall,WC109-205,31/10/2019,Childrens,ACE CARS & MINIBUSES LTD,14/10/2019,-220.00,52000-WITH DRIVER-HIRE OF VEHICLES,HOME TO SCHOOL TRANSPORT,Transport,Revenue
Walsall Council,http://opendatacommunities.org/id/metropolitan-district-council/walsall,WC109-206,31/10/2019,Childrens,ACE CARS & MINIBUSES LTD,14/10/2019,-218.50,52000-WITH DRIVER-HIRE OF VEHICLES,HOME TO SCHOOL TRANSPORT,Transport,Revenue
Walsall Council,http://opendatacommunities.org/id/metropolitan-district-council/walsall,WC109-207,31/10/2019,Childrens,ACE CARS & MINIBUSES LTD,14/10/2019,218.50,52000-WITH DRIVER-HIRE OF VEHICLES,HOME TO SCHOOL TRANSPORT,Transport,Revenue
Walsall Council,http://opendatacommunities.org/id/metropolitan-district-council/walsall,WC109-208,31/10/2019,Childrens,ACE CARS & MINIBUSES LTD,14/10/2019,253.00,52000-WITH DRIVER-HIRE OF VEHICLES,HOME TO SCHOOL TRANSPORT,Transport,Revenue
Walsall Council,http://opendatacommunities.org/id/metropolitan-district-council/walsall,WC109-209,31/10/2019,Childrens,ACE CARS & MINIBUSES LTD,14/10/2019,360.00,52000-WITH DRIVER-HIRE OF VEHICLES,HOME TO SCHOOL TRANSPORT,Transport,Revenue
Walsall Council,http://opendatacommunities.org/id/metropolitan-district-council/walsall,WC109-210,31/10/2019,Childrens,ACE CARS & MINIBUSES LTD,14/10/2019,368.00,52000-WITH DRIVER-HIRE OF VEHICLES,HOME TO SCHOOL TRANSPORT,Transport,Revenue
Walsall Council,http://opendatacommunities.org/id/metropolitan-district-council/walsall,WC109-211,31/10/2019,Childrens,ACE CARS & MINIBUSES LTD,14/10/2019,368.00,52000-WITH DRIVER-HIRE OF VEHICLES,HOME TO SCHOOL TRANSPORT,Transport,Revenue
Walsall Council,http://opendatacommunities.org/id/metropolitan-district-council/walsall,WC109-212,31/10/2019,Childrens,ACE CARS & MINIBUSES LTD,14/10/2019,368.00,52000-WITH DRIVER-HIRE OF VEHICLES,HOME TO SCHOOL TRANSPORT,Transport,Revenue
Walsall Council,http://opendatacommunities.org/id/metropolitan-district-council/walsall,WC109-213,31/10/2019,Childrens,ACE CARS & MINIBUSES LTD,14/10/2019,368.00,52000-WITH DRIVER-HIRE OF VEHICLES,HOME TO SCHOOL TRANSPORT,Transport,Revenue
Walsall Council,http://opendatacommunities.org/id/metropolitan-district-council/walsall,WC109-214,31/10/2019,Childrens,ACE CARS & MINIBUSES LTD,14/10/2019,368.00,52000-WITH DRIVER-HIRE OF VEHICLES,HOME TO SCHOOL TRANSPORT,Transport,Revenue
Walsall Council,http://opendatacommunities.org/id/metropolitan-district-council/walsall,WC109-215,31/10/2019,Childrens,ACE CARS & MINIBUSES LTD,14/10/2019,383.60,52000-WITH DRIVER-HIRE OF VEHICLES,HOME TO SCHOOL TRANSPORT,Transport,Revenue
Walsall Council,http://opendatacommunities.org/id/metropolitan-district-council/walsall,WC109-216,31/10/2019,Childrens,ACE CARS & MINIBUSES LTD,14/10/2019,383.60,52000-WITH DRIVER-HIRE OF VEHICLES,HOME TO SCHOOL TRANSPORT,Transport,Revenue
Walsall Council,http://opendatacommunities.org/id/metropolitan-district-council/walsall,WC109-217,31/10/2019,Childrens,ACE CARS & MINIBUSES LTD,14/10/2019,383.60,52000-WITH DRIVER-HIRE OF VEHICLES,HOME TO SCHOOL TRANSPORT,Transport,Revenue
Walsall Council,http://opendatacommunities.org/id/metropolitan-district-council/walsall,WC109-218,31/10/2019,Childrens,ACE CARS & MINIBUSES LTD,14/10/2019,383.60,52000-WITH DRIVER-HIRE OF VEHICLES,HOME TO SCHOOL TRANSPORT,Transport,Revenue
Walsall Council,http://opendatacommunities.org/id/metropolitan-district-council/walsall,WC109-219,31/10/2019,Childrens,ACE CARS & MINIBUSES LTD,14/10/2019,383.60,52000-WITH DRIVER-HIRE OF VEHICLES,HOME TO SCHOOL TRANSPORT,Transport,Revenue
Walsall Council,http://opendatacommunities.org/id/metropolitan-district-council/walsall,WC109-220,31/10/2019,Childrens,ACE CARS & MINIBUSES LTD,14/10/2019,383.60,52000-WITH DRIVER-HIRE OF VEHICLES,HOME TO SCHOOL TRANSPORT,Transport,Revenue
Walsall Council,http://opendatacommunities.org/id/metropolitan-district-council/walsall,WC109-221,31/10/2019,Childrens,ACE CARS & MINIBUSES LTD,14/10/2019,414.00,52000-WITH DRIVER-HIRE OF VEHICLES,HOME TO SCHOOL TRANSPORT,Transport,Revenue
Walsall Council,http://opendatacommunities.org/id/metropolitan-district-council/walsall,WC109-222,31/10/2019,Childrens,ACE CARS & MINIBUSES LTD,14/10/2019,414.00,52000-WITH DRIVER-HIRE OF VEHICLES,HOME TO SCHOOL TRANSPORT,Transport,Revenue
Walsall Council,http://opendatacommunities.org/id/metropolitan-district-council/walsall,WC109-223,31/10/2019,Childrens,ACE CARS & MINIBUSES LTD,14/10/2019,414.00,52000-WITH DRIVER-HIRE OF VEHICLES,HOME TO SCHOOL TRANSPORT,Transport,Revenue
Walsall Council,http://opendatacommunities.org/id/metropolitan-district-council/walsall,WC109-224,31/10/2019,Childrens,ACE CARS & MINIBUSES LTD,14/10/2019,414.00,52000-WITH DRIVER-HIRE OF VEHICLES,HOME TO SCHOOL TRANSPORT,Transport,Revenue
Walsall Council,http://opendatacommunities.org/id/metropolitan-district-council/walsall,WC109-225,31/10/2019,Childrens,ACE CARS & MINIBUSES LTD,14/10/2019,414.00,52000-WITH DRIVER-HIRE OF VEHICLES,HOME TO SCHOOL TRANSPORT,Transport,Revenue
Walsall Council,http://opendatacommunities.org/id/metropolitan-district-council/walsall,WC109-226,31/10/2019,Childrens,ACE CARS & MINIBUSES LTD,14/10/2019,414.00,52000-WITH DRIVER-HIRE OF VEHICLES,HOME TO SCHOOL TRANSPORT,Transport,Revenue
Walsall Council,http://opendatacommunities.org/id/metropolitan-district-council/walsall,WC109-227,31/10/2019,Childrens,ACE CARS & MINIBUSES LTD,14/10/2019,414.00,52000-WITH DRIVER-HIRE OF VEHICLES,HOME TO SCHOOL TRANSPORT,Transport,Revenue
Walsall Council,http://opendatacommunities.org/id/metropolitan-district-council/walsall,WC109-228,31/10/2019,Childrens,ACE CARS & MINIBUSES LTD,14/10/2019,414.00,52000-WITH DRIVER-HIRE OF VEHICLES,HOME TO SCHOOL TRANSPORT,Transport,Revenue
Walsall Council,http://opendatacommunities.org/id/metropolitan-district-council/walsall,WC109-229,31/10/2019,Childrens,ACE CARS & MINIBUSES LTD,14/10/2019,414.00,52000-WITH DRIVER-HIRE OF VEHICLES,HOME TO SCHOOL TRANSPORT,Transport,Revenue
Walsall Council,http://opendatacommunities.org/id/metropolitan-district-council/walsall,WC109-230,31/10/2019,Childrens,ACE CARS & MINIBUSES LTD,14/10/2019,414.00,52000-WITH DRIVER-HIRE OF VEHICLES,HOME TO SCHOOL TRANSPORT,Transport,Revenue
Walsall Council,http://opendatacommunities.org/id/metropolitan-district-council/walsall,WC109-231,31/10/2019,Childrens,ACE CARS & MINIBUSES LTD,14/10/2019,437.20,52000-WITH DRIVER-HIRE OF VEHICLES,HOME TO SCHOOL TRANSPORT,Transport,Revenue
Walsall Council,http://opendatacommunities.org/id/metropolitan-district-council/walsall,WC109-232,31/10/2019,Childrens,ACE CARS & MINIBUSES LTD,14/10/2019,437.20,52000-WITH DRIVER-HIRE OF VEHICLES,HOME TO SCHOOL TRANSPORT,Transport,Revenue
Walsall Council,http://opendatacommunities.org/id/metropolitan-district-council/walsall,WC109-233,31/10/2019,Childrens,ACE CARS & MINIBUSES LTD,14/10/2019,437.20,52000-WITH DRIVER-HIRE OF VEHICLES,HOME TO SCHOOL TRANSPORT,Transport,Revenue
Walsall Council,http://opendatacommunities.org/id/metropolitan-district-council/walsall,WC109-234,31/10/2019,Childrens,ACE CARS & MINIBUSES LTD,14/10/2019,437.20,52000-WITH DRIVER-HIRE OF VEHICLES,HOME TO SCHOOL TRANSPORT,Transport,Revenue
Walsall Council,http://opendatacommunities.org/id/metropolitan-district-council/walsall,WC109-235,31/10/2019,Childrens,ACE CARS & MINIBUSES LTD,14/10/2019,437.20,52000-WITH DRIVER-HIRE OF VEHICLES,HOME TO SCHOOL TRANSPORT,Transport,Revenue
Walsall Council,http://opendatacommunities.org/id/metropolitan-district-council/walsall,WC109-236,31/10/2019,Childrens,ACE CARS & MINIBUSES LTD,14/10/2019,437.20,52000-WITH DRIVER-HIRE OF VEHICLES,HOME TO SCHOOL TRANSPORT,Transport,Revenue
Walsall Council,http://opendatacommunities.org/id/metropolitan-district-council/walsall,WC109-237,31/10/2019,Childrens,ACE CARS & MINIBUSES LTD,14/10/2019,437.20,52000-WITH DRIVER-HIRE OF VEHICLES,HOME TO SCHOOL TRANSPORT,Transport,Revenue
Walsall Council,http://opendatacommunities.org/id/metropolitan-district-council/walsall,WC109-238,31/10/2019,Childrens,ACE CARS & MINIBUSES LTD,14/10/2019,437.20,52000-WITH DRIVER-HIRE OF VEHICLES,HOME TO SCHOOL TRANSPORT,Transport,Revenue
Walsall Council,http://opendatacommunities.org/id/metropolitan-district-council/walsall,WC109-239,31/10/2019,Childrens,ACE CARS & MINIBUSES LTD,14/10/2019,437.20,52000-WITH DRIVER-HIRE OF VEHICLES,HOME TO SCHOOL TRANSPORT,Transport,Revenue
Walsall Council,http://opendatacommunities.org/id/metropolitan-district-council/walsall,WC109-240,31/10/2019,Childrens,ACE CARS & MINIBUSES LTD,14/10/2019,450.00,52000-WITH DRIVER-HIRE OF VEHICLES,HOME TO SCHOOL TRANSPORT,Transport,Revenue
Walsall Council,http://opendatacommunities.org/id/metropolitan-district-council/walsall,WC109-241,31/10/2019,Childrens,ACE CARS & MINIBUSES LTD,14/10/2019,506.00,52000-WITH DRIVER-HIRE OF VEHICLES,HOME TO SCHOOL TRANSPORT,Transport,Revenue
Walsall Council,http://opendatacommunities.org/id/metropolitan-district-council/walsall,WC109-242,31/10/2019,Childrens,ACE CARS & MINIBUSES LTD,14/10/2019,506.00,52000-WITH DRIVER-HIRE OF VEHICLES,HOME TO SCHOOL TRANSPORT,Transport,Revenue
Walsall Council,http://opendatacommunities.org/id/metropolitan-district-council/walsall,WC109-243,31/10/2019,Childrens,ACE CARS & MINIBUSES LTD,14/10/2019,506.00,52000-WITH DRIVER-HIRE OF VEHICLES,HOME TO SCHOOL TRANSPORT,Transport,Revenue
Walsall Council,http://opendatacommunities.org/id/metropolitan-district-council/walsall,WC109-244,31/10/2019,Childrens,ACE CARS & MINIBUSES LTD,14/10/2019,506.00,52000-WITH DRIVER-HIRE OF VEHICLES,HOME TO SCHOOL TRANSPORT,Transport,Revenue
Walsall Council,http://opendatacommunities.org/id/metropolitan-district-council/walsall,WC109-245,31/10/2019,Childrens,ACE CARS & MINIBUSES LTD,14/10/2019,513.20,52000-WITH DRIVER-HIRE OF VEHICLES,HOME TO SCHOOL TRANSPORT,Transport,Revenue
Walsall Council,http://opendatacommunities.org/id/metropolitan-district-council/walsall,WC109-246,31/10/2019,Childrens,ACE CARS & MINIBUSES LTD,14/10/2019,513.20,52000-WITH DRIVER-HIRE OF VEHICLES,HOME TO SCHOOL TRANSPORT,Transport,Revenue
Walsall Council,http://opendatacommunities.org/id/metropolitan-district-council/walsall,WC109-247,31/10/2019,Childrens,ACE CARS & MINIBUSES LTD,14/10/2019,513.20,52000-WITH DRIVER-HIRE OF VEHICLES,HOME TO SCHOOL TRANSPORT,Transport,Revenue
Walsall Council,http://opendatacommunities.org/id/metropolitan-district-council/walsall,WC109-248,31/10/2019,Childrens,ACE CARS & MINIBUSES LTD,14/10/2019,513.20,52000-WITH DRIVER-HIRE OF VEHICLES,HOME TO SCHOOL TRANSPORT,Transport,Revenue
Walsall Council,http://opendatacommunities.org/id/metropolitan-district-council/walsall,WC109-249,31/10/2019,Childrens,ACE CARS & MINIBUSES LTD,14/10/2019,513.20,52000-WITH DRIVER-HIRE OF VEHICLES,HOME TO SCHOOL TRANSPORT,Transport,Revenue
Walsall Council,http://opendatacommunities.org/id/metropolitan-district-council/walsall,WC109-250,31/10/2019,Childrens,ACE CARS & MINIBUSES LTD,14/10/2019,513.20,52000-WITH DRIVER-HIRE OF VEHICLES,HOME TO SCHOOL TRANSPORT,Transport,Revenue
Walsall Council,http://opendatacommunities.org/id/metropolitan-district-council/walsall,WC109-251,31/10/2019,Childrens,ACE CARS & MINIBUSES LTD,14/10/2019,550.00,52000-WITH DRIVER-HIRE OF VEHICLES,HOME TO SCHOOL TRANSPORT,Transport,Revenue
Walsall Council,http://opendatacommunities.org/id/metropolitan-district-council/walsall,WC109-252,31/10/2019,Childrens,ACE CARS & MINIBUSES LTD,14/10/2019,550.00,52000-WITH DRIVER-HIRE OF VEHICLES,HOME TO SCHOOL TRANSPORT,Transport,Revenue
Walsall Council,http://opendatacommunities.org/id/metropolitan-district-council/walsall,WC109-253,31/10/2019,Childrens,ACE CARS & MINIBUSES LTD,14/10/2019,550.00,52000-WITH DRIVER-HIRE OF VEHICLES,HOME TO SCHOOL TRANSPORT,Transport,Revenue
Walsall Council,http://opendatacommunities.org/id/metropolitan-district-council/walsall,WC109-254,31/10/2019,Childrens,ACE CARS & MINIBUSES LTD,14/10/2019,550.00,52000-WITH DRIVER-HIRE OF VEHICLES,HOME TO SCHOOL TRANSPORT,Transport,Revenue
Walsall Council,http://opendatacommunities.org/id/metropolitan-district-council/walsall,WC109-255,31/10/2019,Childrens,ACE CARS & MINIBUSES LTD,14/10/2019,568.00,52000-WITH DRIVER-HIRE OF VEHICLES,HOME TO SCHOOL TRANSPORT,Transport,Revenue
Walsall Council,http://opendatacommunities.org/id/metropolitan-district-council/walsall,WC109-256,31/10/2019,Childrens,ACE CARS & MINIBUSES LTD,14/10/2019,598.00,52000-WITH DRIVER-HIRE OF VEHICLES,HOME TO SCHOOL TRANSPORT,Transport,Revenue
Walsall Council,http://opendatacommunities.org/id/metropolitan-district-council/walsall,WC109-257,31/10/2019,Childrens,ACE CARS & MINIBUSES LTD,14/10/2019,598.00,52000-WITH DRIVER-HIRE OF VEHICLES,HOME TO SCHOOL TRANSPORT,Transport,Revenue
Walsall Council,http://opendatacommunities.org/id/metropolitan-district-council/walsall,WC109-258,31/10/2019,Childrens,ACE CARS & MINIBUSES LTD,14/10/2019,598.00,52000-WITH DRIVER-HIRE OF VEHICLES,HOME TO SCHOOL TRANSPORT,Transport,Revenue
Walsall Council,http://opendatacommunities.org/id/metropolitan-district-council/walsall,WC109-259,31/10/2019,Childrens,ACE CARS & MINIBUSES LTD,14/10/2019,598.00,52000-WITH DRIVER-HIRE OF VEHICLES,HOME TO SCHOOL TRANSPORT,Transport,Revenue
Walsall Council,http://opendatacommunities.org/id/metropolitan-district-council/walsall,WC109-260,31/10/2019,Childrens,ACE CARS & MINIBUSES LTD,14/10/2019,598.00,52000-WITH DRIVER-HIRE OF VEHICLES,HOME TO SCHOOL TRANSPORT,Transport,Revenue
Walsall Council,http://opendatacommunities.org/id/metropolitan-district-council/walsall,WC109-261,31/10/2019,Childrens,ACE CARS & MINIBUSES LTD,14/10/2019,618.00,52000-WITH DRIVER-HIRE OF VEHICLES,HOME TO SCHOOL TRANSPORT,Transport,Revenue
Walsall Council,http://opendatacommunities.org/id/metropolitan-district-council/walsall,WC109-262,31/10/2019,Childrens,ACE CARS & MINIBUSES LTD,14/10/2019,618.00,52000-WITH DRIVER-HIRE OF VEHICLES,HOME TO SCHOOL TRANSPORT,Transport,Revenue
Walsall Council,http://opendatacommunities.org/id/metropolitan-district-council/walsall,WC109-263,31/10/2019,Childrens,ACE CARS & MINIBUSES LTD,14/10/2019,618.00,52000-WITH DRIVER-HIRE OF VEHICLES,HOME TO SCHOOL TRANSPORT,Transport,Revenue
Walsall Council,http://opendatacommunities.org/id/metropolitan-district-council/walsall,WC109-264,31/10/2019,Childrens,ACE CARS & MINIBUSES LTD,14/10/2019,618.00,52000-WITH DRIVER-HIRE OF VEHICLES,HOME TO SCHOOL TRANSPORT,Transport,Revenue
Walsall Council,http://opendatacommunities.org/id/metropolitan-district-council/walsall,WC109-265,31/10/2019,Childrens,ACE CARS & MINIBUSES LTD,14/10/2019,618.00,52000-WITH DRIVER-HIRE OF VEHICLES,HOME TO SCHOOL TRANSPORT,Transport,Revenue
Walsall Council,http://opendatacommunities.org/id/metropolitan-district-council/walsall,WC109-266,31/10/2019,Childrens,ACE CARS & MINIBUSES LTD,14/10/2019,618.00,52000-WITH DRIVER-HIRE OF VEHICLES,HOME TO SCHOOL TRANSPORT,Transport,Revenue
Walsall Council,http://opendatacommunities.org/id/metropolitan-district-council/walsall,WC109-267,31/10/2019,Childrens,ACE CARS & MINIBUSES LTD,14/10/2019,618.00,52000-WITH DRIVER-HIRE OF VEHICLES,HOME TO SCHOOL TRANSPORT,Transport,Revenue
Walsall Council,http://opendatacommunities.org/id/metropolitan-district-council/walsall,WC109-268,31/10/2019,Childrens,ACE CARS & MINIBUSES LTD,14/10/2019,618.00,52000-WITH DRIVER-HIRE OF VEHICLES,HOME TO SCHOOL TRANSPORT,Transport,Revenue
Walsall Council,http://opendatacommunities.org/id/metropolitan-district-council/walsall,WC109-269,31/10/2019,Childrens,ACE CARS & MINIBUSES LTD,14/10/2019,618.00,52000-WITH DRIVER-HIRE OF VEHICLES,HOME TO SCHOOL TRANSPORT,Transport,Revenue
Walsall Council,http://opendatacommunities.org/id/metropolitan-district-council/walsall,WC109-270,31/10/2019,Childrens,ACE CARS & MINIBUSES LTD,14/10/2019,618.00,52000-WITH DRIVER-HIRE OF VEHICLES,HOME TO SCHOOL TRANSPORT,Transport,Revenue
Walsall Council,http://opendatacommunities.org/id/metropolitan-district-council/walsall,WC109-271,31/10/2019,Childrens,ACE CARS & MINIBUSES LTD,14/10/2019,632.40,52000-WITH DRIVER-HIRE OF VEHICLES,HOME TO SCHOOL TRANSPORT,Transport,Revenue
Walsall Council,http://opendatacommunities.org/id/metropolitan-district-council/walsall,WC109-272,31/10/2019,Childrens,ACE CARS & MINIBUSES LTD,14/10/2019,632.40,52000-WITH DRIVER-HIRE OF VEHICLES,HOME TO SCHOOL TRANSPORT,Transport,Revenue
Walsall Council,http://opendatacommunities.org/id/metropolitan-district-council/walsall,WC109-273,31/10/2019,Childrens,ACE CARS & MINIBUSES LTD,14/10/2019,632.40,52000-WITH DRIVER-HIRE OF VEHICLES,HOME TO SCHOOL TRANSPORT,Transport,Revenue
Walsall Council,http://opendatacommunities.org/id/metropolitan-district-council/walsall,WC109-274,31/10/2019,Childrens,ACE CARS & MINIBUSES LTD,14/10/2019,632.40,52000-WITH DRIVER-HIRE OF VEHICLES,HOME TO SCHOOL TRANSPORT,Transport,Revenue
Walsall Council,http://opendatacommunities.org/id/metropolitan-district-council/walsall,WC109-275,31/10/2019,Childrens,ACE CARS & MINIBUSES LTD,14/10/2019,687.60,52000-WITH DRIVER-HIRE OF VEHICLES,HOME TO SCHOOL TRANSPORT,Transport,Revenue
Walsall Council,http://opendatacommunities.org/id/metropolitan-district-council/walsall,WC109-276,31/10/2019,Childrens,ACE CARS & MINIBUSES LTD,14/10/2019,687.60,52000-WITH DRIVER-HIRE OF VEHICLES,HOME TO SCHOOL TRANSPORT,Transport,Revenue
Walsall Council,http://opendatacommunities.org/id/metropolitan-district-council/walsall,WC109-277,31/10/2019,Childrens,ACE CARS & MINIBUSES LTD,14/10/2019,687.60,52000-WITH DRIVER-HIRE OF VEHICLES,HOME TO SCHOOL TRANSPORT,Transport,Revenue
Walsall Council,http://opendatacommunities.org/id/metropolitan-district-council/walsall,WC109-278,31/10/2019,Childrens,ACE CARS & MINIBUSES LTD,14/10/2019,687.60,52000-WITH DRIVER-HIRE OF VEHICLES,HOME TO SCHOOL TRANSPORT,Transport,Revenue
Walsall Council,http://opendatacommunities.org/id/metropolitan-district-council/walsall,WC109-279,31/10/2019,Childrens,ACE CARS & MINIBUSES LTD,14/10/2019,690.00,52000-WITH DRIVER-HIRE OF VEHICLES,HOME TO SCHOOL TRANSPORT,Transport,Revenue
Walsall Council,http://opendatacommunities.org/id/metropolitan-district-council/walsall,WC109-280,31/10/2019,Childrens,ACE CARS & MINIBUSES LTD,14/10/2019,690.00,52000-WITH DRIVER-HIRE OF VEHICLES,HOME TO SCHOOL TRANSPORT,Transport,Revenue
Walsall Council,http://opendatacommunities.org/id/metropolitan-district-council/walsall,WC109-281,31/10/2019,Childrens,ACE CARS & MINIBUSES LTD,14/10/2019,690.00,52000-WITH DRIVER-HIRE OF VEHICLES,HOME TO SCHOOL TRANSPORT,Transport,Revenue
Walsall Council,http://opendatacommunities.org/id/metropolitan-district-council/walsall,WC109-282,31/10/2019,Childrens,ACE CARS & MINIBUSES LTD,14/10/2019,690.00,52000-WITH DRIVER-HIRE OF VEHICLES,HOME TO SCHOOL TRANSPORT,Transport,Revenue
Walsall Council,http://opendatacommunities.org/id/metropolitan-district-council/walsall,WC109-283,31/10/2019,Childrens,ACE CARS & MINIBUSES LTD,14/10/2019,710.00,52000-WITH DRIVER-HIRE OF VEHICLES,HOME TO SCHOOL TRANSPORT,Transport,Revenue
Walsall Council,http://opendatacommunities.org/id/metropolitan-district-council/walsall,WC109-284,31/10/2019,Childrens,ACE CARS & MINIBUSES LTD,14/10/2019,772.40,52000-WITH DRIVER-HIRE OF VEHICLES,HOME TO SCHOOL TRANSPORT,Transport,Revenue
Walsall Council,http://opendatacommunities.org/id/metropolitan-district-council/walsall,WC109-285,31/10/2019,Childrens,ACE CARS & MINIBUSES LTD,14/10/2019,772.40,52000-WITH DRIVER-HIRE OF VEHICLES,HOME TO SCHOOL TRANSPORT,Transport,Revenue
Walsall Council,http://opendatacommunities.org/id/metropolitan-district-council/walsall,WC109-286,31/10/2019,Childrens,ACE CARS & MINIBUSES LTD,14/10/2019,772.40,52000-WITH DRIVER-HIRE OF VEHICLES,HOME TO SCHOOL TRANSPORT,Transport,Revenue
Walsall Council,http://opendatacommunities.org/id/metropolitan-district-council/walsall,WC109-287,31/10/2019,Childrens,ACE CARS & MINIBUSES LTD,14/10/2019,772.40,52000-WITH DRIVER-HIRE OF VEHICLES,HOME TO SCHOOL TRANSPORT,Transport,Revenue
Walsall Council,http://opendatacommunities.org/id/metropolitan-district-council/walsall,WC109-288,31/10/2019,Childrens,ACE CARS & MINIBUSES LTD,14/10/2019,800.00,52000-WITH DRIVER-HIRE OF VEHICLES,HOME TO SCHOOL TRANSPORT,Transport,Revenue
Walsall Council,http://opendatacommunities.org/id/metropolitan-district-council/walsall,WC109-289,31/10/2019,Childrens,ACE CARS & MINIBUSES LTD,14/10/2019,972.40,52000-WITH DRIVER-HIRE OF VEHICLES,HOME TO SCHOOL TRANSPORT,Transport,Revenue
Walsall Council,http://opendatacommunities.org/id/metropolitan-district-council/walsall,WC109-290,31/10/2019,Childrens,ACE CARS & MINIBUSES LTD,14/10/2019,972.40,52000-WITH DRIVER-HIRE OF VEHICLES,HOME TO SCHOOL TRANSPORT,Transport,Revenue
Walsall Council,http://opendatacommunities.org/id/metropolitan-district-council/walsall,WC109-291,31/10/2019,Childrens,ACE CARS & MINIBUSES LTD,14/10/2019,972.40,52000-WITH DRIVER-HIRE OF VEHICLES,HOME TO SCHOOL TRANSPORT,Transport,Revenue
Walsall Council,http://opendatacommunities.org/id/metropolitan-district-council/walsall,WC109-292,31/10/2019,Childrens,ACE CARS & MINIBUSES LTD,14/10/2019,972.40,52000-WITH DRIVER-HIRE OF VEHICLES,HOME TO SCHOOL TRANSPORT,Transport,Revenue
Walsall Council,http://opendatacommunities.org/id/metropolitan-district-council/walsall,WC109-293,31/10/2019,Childrens,ACE CARS & MINIBUSES LTD,14/10/2019,"1,000.00",52000-WITH DRIVER-HIRE OF VEHICLES,HOME TO SCHOOL TRANSPORT,Transport,Revenue
Walsall Council,http://opendatacommunities.org/id/metropolitan-district-council/walsall,WC109-294,31/10/2019,Childrens,ACE CARS & MINIBUSES LTD,14/10/2019,"1,000.00",52000-WITH DRIVER-HIRE OF VEHICLES,HOME TO SCHOOL TRANSPORT,Transport,Revenue
Walsall Council,http://opendatacommunities.org/id/metropolitan-district-council/walsall,WC109-295,31/10/2019,Childrens,ACE CARS & MINIBUSES LTD,14/10/2019,"1,000.00",52000-WITH DRIVER-HIRE OF VEHICLES,HOME TO SCHOOL TRANSPORT,Transport,Revenue
Walsall Council,http://opendatacommunities.org/id/metropolitan-district-council/walsall,WC109-296,31/10/2019,Childrens,ACE CARS & MINIBUSES LTD,14/10/2019,"1,250.00",52000-WITH DRIVER-HIRE OF VEHICLES,HOME TO SCHOOL TRANSPORT,Transport,Revenue
Walsall Council,http://opendatacommunities.org/id/metropolitan-district-council/walsall,WC109-297,31/10/2019,Childrens,ACE CARS & MINIBUSES LTD,14/10/2019,"1,250.00",52000-WITH DRIVER-HIRE OF VEHICLES,HOME TO SCHOOL TRANSPORT,Transport,Revenue
Walsall Council,http://opendatacommunities.org/id/metropolitan-district-council/walsall,WC109-298,31/10/2019,Childrens,ACE CARS & MINIBUSES LTD,14/10/2019,"1,250.00",52000-WITH DRIVER-HIRE OF VEHICLES,HOME TO SCHOOL TRANSPORT,Transport,Revenue
Walsall Council,http://opendatacommunities.org/id/metropolitan-district-council/walsall,WC109-299,31/10/2019,Childrens,ACE CARS & MINIBUSES LTD,14/10/2019,"1,300.00",52000-WITH DRIVER-HIRE OF VEHICLES,HOME TO SCHOOL TRANSPORT,Transport,Revenue
Walsall Council,http://opendatacommunities.org/id/metropolitan-district-council/walsall,WC109-300,31/10/2019,Childrens,ACE CARS & MINIBUSES LTD,14/10/2019,"1,400.00",52000-WITH DRIVER-HIRE OF VEHICLES,HOME TO SCHOOL TRANSPORT,Transport,Revenue
Walsall Council,http://opendatacommunities.org/id/metropolitan-district-council/walsall,WC109-301,31/10/2019,Childrens,ACE CARS & MINIBUSES LTD,14/10/2019,"1,500.00",52000-WITH DRIVER-HIRE OF VEHICLES,HOME TO SCHOOL TRANSPORT,Transport,Revenue
Walsall Council,http://opendatacommunities.org/id/metropolitan-district-council/walsall,WC109-302,31/10/2019,Childrens,ACE CARS & MINIBUSES LTD,14/10/2019,"1,540.00",52000-WITH DRIVER-HIRE OF VEHICLES,HOME TO SCHOOL TRANSPORT,Transport,Revenue
Walsall Council,http://opendatacommunities.org/id/metropolitan-district-council/walsall,WC109-303,31/10/2019,Childrens,ACE CARS & MINIBUSES LTD,14/10/2019,"1,560.00",52000-WITH DRIVER-HIRE OF VEHICLES,HOME TO SCHOOL TRANSPORT,Transport,Revenue
Walsall Council,http://opendatacommunities.org/id/metropolitan-district-council/walsall,WC109-304,31/10/2019,Childrens,ACE CARS & MINIBUSES LTD,14/10/2019,"1,560.00",52000-WITH DRIVER-HIRE OF VEHICLES,HOME TO SCHOOL TRANSPORT,Transport,Revenue
Walsall Council,http://opendatacommunities.org/id/metropolitan-district-council/walsall,WC109-305,31/10/2019,Childrens,ACE CARS & MINIBUSES LTD,14/10/2019,"1,580.00",52000-WITH DRIVER-HIRE OF VEHICLES,HOME TO SCHOOL TRANSPORT,Transport,Revenue
Walsall Council,http://opendatacommunities.org/id/metropolitan-district-council/walsall,WC109-306,31/10/2019,Adult Social Care,ACEPAY LTD (COTTAGE NUR HOME),09/10/2019,"-10,816.77",73502-NURSING,PHYSICAL SUPPORT,Third Party Payments,Revenue
Walsall Council,http://opendatacommunities.org/id/metropolitan-district-council/walsall,WC109-307,31/10/2019,Adult Social Care,ACEPAY LTD (COTTAGE NUR HOME),09/10/2019,"1,774.96",73500-RESIDENTIAL,PHYSICAL SUPPORT,Third Party Payments,Revenue
Walsall Council,http://opendatacommunities.org/id/metropolitan-district-council/walsall,WC109-308,31/10/2019,Adult Social Care,ACEPAY LTD (COTTAGE NUR HOME),09/10/2019,"1,972.24",73501-RESIDENTIAL EMI,PHYSICAL SUPPORT,Third Party Payments,Revenue
Walsall Council,http://opendatacommunities.org/id/metropolitan-district-council/walsall,WC109-309,31/10/2019,Adult Social Care,ACEPAY LTD (COTTAGE NUR HOME),09/10/2019,"2,143.72",73502-NURSING,PHYSICAL SUPPORT,Third Party Payments,Revenue
Walsall Council,http://opendatacommunities.org/id/metropolitan-district-council/walsall,WC109-310,31/10/2019,Adult Social Care,ACEPAY LTD (COTTAGE NUR HOME),09/10/2019,"2,143.72",73502-NURSING,PHYSICAL SUPPORT,Third Party Payments,Revenue
Walsall Council,http://opendatacommunities.org/id/metropolitan-district-council/walsall,WC109-311,31/10/2019,Adult Social Care,ACEPAY LTD (COTTAGE NUR HOME),09/10/2019,"2,143.72",73502-NURSING,SUPPORT WITH MEMORY & COGNITION,Third Party Payments,Revenue
Walsall Council,http://opendatacommunities.org/id/metropolitan-district-council/walsall,WC109-312,31/10/2019,Adult Social Care,ACEPAY LTD (COTTAGE NUR HOME),09/10/2019,"2,143.72",73502-NURSING,PHYSICAL SUPPORT,Third Party Payments,Revenue
Walsall Council,http://opendatacommunities.org/id/metropolitan-district-council/walsall,WC109-313,31/10/2019,Adult Social Care,ACEPAY LTD (COTTAGE NUR HOME),09/10/2019,"2,143.72",73502-NURSING,SOCIAL SUPPORT,Third Party Payments,Revenue
Walsall Council,http://opendatacommunities.org/id/metropolitan-district-council/walsall,WC109-314,31/10/2019,Adult Social Care,ACEPAY LTD (COTTAGE NUR HOME),09/10/2019,"2,143.72",73502-NURSING,SUPPORT WITH MEMORY & COGNITION,Third Party Payments,Revenue
Walsall Council,http://opendatacommunities.org/id/metropolitan-district-council/walsall,WC109-315,31/10/2019,Adult Social Care,ACEPAY LTD (COTTAGE NUR HOME),09/10/2019,"2,143.72",73502-NURSING,PHYSICAL SUPPORT,Third Party Payments,Revenue
Walsall Council,http://opendatacommunities.org/id/metropolitan-district-council/walsall,WC109-316,31/10/2019,Adult Social Care,ACEPAY LTD (COTTAGE NUR HOME),09/10/2019,"2,143.72",73502-NURSING,PHYSICAL SUPPORT,Third Party Payments,Revenue
Walsall Council,http://opendatacommunities.org/id/metropolitan-district-council/walsall,WC109-317,31/10/2019,Adult Social Care,ACEPAY LTD (COTTAGE NUR HOME),09/10/2019,"2,143.72",73502-NURSING,PHYSICAL SUPPORT,Third Party Payments,Revenue
Walsall Council,http://opendatacommunities.org/id/metropolitan-district-council/walsall,WC109-318,31/10/2019,Adult Social Care,ACEPAY LTD (COTTAGE NUR HOME),09/10/2019,"2,143.72",73502-NURSING,SUPPORT WITH MEMORY & COGNITION,Third Party Payments,Revenue
Walsall Council,http://opendatacommunities.org/id/metropolitan-district-council/walsall,WC109-319,31/10/2019,Adult Social Care,ACEPAY LTD (COTTAGE NUR HOME),09/10/2019,"2,143.72",73502-NURSING,PHYSICAL SUPPORT,Third Party Payments,Revenue
Walsall Council,http://opendatacommunities.org/id/metropolitan-district-council/walsall,WC109-320,31/10/2019,Adult Social Care,ACEPAY LTD (COTTAGE NUR HOME),09/10/2019,"2,143.72",73502-NURSING,PHYSICAL SUPPORT,Third Party Payments,Revenue
Walsall Council,http://opendatacommunities.org/id/metropolitan-district-council/walsall,WC109-321,31/10/2019,Adult Social Care,ACEPAY LTD (COTTAGE NUR HOME),09/10/2019,"2,343.72",73502-NURSING,PHYSICAL SUPPORT,Third Party Payments,Revenue
Walsall Council,http://opendatacommunities.org/id/metropolitan-district-council/walsall,WC109-322,31/10/2019,Adult Social Care,ACORN REST HOME,09/10/2019,"1,774.96",73500-RESIDENTIAL,PHYSICAL SUPPORT,Third Party Payments,Revenue
Walsall Council,http://opendatacommunities.org/id/metropolitan-district-council/walsall,WC109-323,31/10/2019,Childrens,ACPAS LIMITED,21/10/2019,837.00,63000-PROFESSIONAL FEES AND SERVICES,SAFEGUARDING & FAMILY SUPPORT,Supplies & Services,Revenue
Walsall Council,http://opendatacommunities.org/id/metropolitan-district-council/walsall,WC109-324,31/10/2019,Economy & Environment,ACTION DIGITAL MEDIA LTD T/A ACTION GRAPHICS,01/11/2019,280.08,"62521-INTERPRETATION,TRANSLATION & HUMAN AIDS TO TRANSCRIPTION",NAG - TEMPORARY EXHIBITIONS,Supplies & Services,Revenue
Walsall Council,http://opendatacommunities.org/id/metropolitan-district-council/walsall,WC109-325,31/10/2019,Economy & Environment,ACTION DIGITAL MEDIA LTD T/A ACTION GRAPHICS,08/10/2019,351.28,"62521-INTERPRETATION,TRANSLATION & HUMAN AIDS TO TRANSCRIPTION",NAG - TEMPORARY EXHIBITIONS,Supplies & Services,Revenue
Walsall Council,http://opendatacommunities.org/id/metropolitan-district-council/walsall,WC109-326,31/10/2019,Resources and Transformation,ACTIVATING CREATIVE TALENT CIC,23/10/2019,432.00,62515-MISCELLANEOUS SUPPLIES,EARLY INTERVENTION YOUTH FUND,Supplies & Services,Revenue
Walsall Council,http://opendatacommunities.org/id/metropolitan-district-council/walsall,WC109-327,31/10/2019,Resources and Transformation,ACTIVATING CREATIVE TALENT CIC,23/10/2019,756.00,62515-MISCELLANEOUS SUPPLIES,EARLY INTERVENTION YOUTH FUND,Supplies & Services,Revenue
Walsall Council,http://opendatacommunities.org/id/metropolitan-district-council/walsall,WC109-328,31/10/2019,Resources and Transformation,ACTIVATING CREATIVE TALENT CIC,23/10/2019,"1,512.00",62515-MISCELLANEOUS SUPPLIES,EARLY INTERVENTION YOUTH FUND,Supplies & Services,Revenue
Walsall Council,http://opendatacommunities.org/id/metropolitan-district-council/walsall,WC109-329,31/10/2019,Resources and Transformation,ACTIVATING CREATIVE TALENT CIC,23/10/2019,"1,728.00",62515-MISCELLANEOUS SUPPLIES,EARLY INTERVENTION YOUTH FUND,Supplies & Services,Revenue
Walsall Council,http://opendatacommunities.org/id/metropolitan-district-council/walsall,WC109-330,31/10/2019,Resources and Transformation,ACTIVATING CREATIVE TALENT CIC,23/10/2019,"1,944.00",62515-MISCELLANEOUS SUPPLIES,EARLY INTERVENTION YOUTH FUND,Supplies & Services,Revenue
Walsall Council,http://opendatacommunities.org/id/metropolitan-district-council/walsall,WC109-331,31/10/2019,Resources and Transformation,ACTIVATING CREATIVE TALENT CIC,23/10/2019,"2,520.00",62515-MISCELLANEOUS SUPPLIES,EARLY INTERVENTION YOUTH FUND,Supplies & Services,Revenue
Walsall Council,http://opendatacommunities.org/id/metropolitan-district-council/walsall,WC109-332,31/10/2019,Resources and Transformation,ACTIVATING CREATIVE TALENT CIC,24/10/2019,"2,700.00",62515-MISCELLANEOUS SUPPLIES,EARLY INTERVENTION YOUTH FUND,Supplies & Services,Revenue
Walsall Council,http://opendatacommunities.org/id/metropolitan-district-council/walsall,WC109-333,31/10/2019,Childrens,ACTIVE CARE SOLUTIONS LTD,04/10/2019,"2,662.80",74037-INDEPENDENT FOSTER CARE-OTH AGENCY PROVISION,EXTERNAL FOSTER CARE PROVISION,Third Party Payments,Revenue
Walsall Council,http://opendatacommunities.org/id/metropolitan-district-council/walsall,WC109-334,31/10/2019,Childrens,ACTIVE CARE SOLUTIONS LTD,04/10/2019,"3,024.00",74037-INDEPENDENT FOSTER CARE-OTH AGENCY PROVISION,EXTERNAL FOSTER CARE PROVISION,Third Party Payments,Revenue
Walsall Council,http://opendatacommunities.org/id/metropolitan-district-council/walsall,WC109-335,31/10/2019,Childrens,ACTIVE CARE SOLUTIONS LTD,04/10/2019,"3,024.00",74037-INDEPENDENT FOSTER CARE-OTH AGENCY PROVISION,EXTERNAL FOSTER CARE PROVISION,Third Party Payments,Revenue
Walsall Council,http://opendatacommunities.org/id/metropolitan-district-council/walsall,WC109-336,31/10/2019,Childrens,ACTIVE CARE SOLUTIONS LTD,04/10/2019,"3,220.00",74037-INDEPENDENT FOSTER CARE-OTH AGENCY PROVISION,EXTERNAL FOSTER CARE PROVISION,Third Party Payments,Revenue
Walsall Council,http://opendatacommunities.org/id/metropolitan-district-council/walsall,WC109-337,31/10/2019,Resources and Transformation,ADA BUILDERS & JOINERS,09/10/2019,"13,062.97",01045-PRIVATE GRANTS,CFR 1359 DISABLED FACILITIES GRANT,Capital,Capital
Walsall Council,http://opendatacommunities.org/id/metropolitan-district-council/walsall,WC109-338,31/10/2019,Adult Social Care,REDACTED,04/10/2019,442.52,73506-DIRECT PAYMENT,LEARNING DISABILITY SUPPORT,Third Party Payments,Revenue
Walsall Council,http://opendatacommunities.org/id/metropolitan-district-council/walsall,WC109-339,31/10/2019,Adult Social Care,REDACTED,04/10/2019,"1,033.16",73506-DIRECT PAYMENT,PHYSICAL SUPPORT,Third Party Payments,Revenue
Walsall Council,http://opendatacommunities.org/id/metropolitan-district-council/walsall,WC109-340,31/10/2019,Resources and Transformation,ADLER MANUFACTURING LIMITED,14/10/2019,511.49,64009-MAYORAL COSTS,MAYORS SECRETARIAT,Supplies & Services,Revenue
Walsall Council,http://opendatacommunities.org/id/metropolitan-district-council/walsall,WC109-341,31/10/2019,Childrens,REDACTED,21/10/2019,333.12,74510-RESIDENTS ORDERS,ADOPTION ALLOWANCES,Third Party Payments,Revenue
Walsall Council,http://opendatacommunities.org/id/metropolitan-district-council/walsall,WC109-342,31/10/2019,Childrens,REDACTED,21/10/2019,361.12,74510-RESIDENTS ORDERS,ADOPTION ALLOWANCES,Third Party Payments,Revenue
Walsall Council,http://opendatacommunities.org/id/metropolitan-district-council/walsall,WC109-343,31/10/2019,Adult Social Care,REDACTED,04/10/2019,"2,083.20",73506-DIRECT PAYMENT,LEARNING DISABILITY SUPPORT,Third Party Payments,Revenue
Walsall Council,http://opendatacommunities.org/id/metropolitan-district-council/walsall,WC109-344,31/10/2019,Adult Social Care,ADVANCE HEALTH CARE (UK) LTD,22/10/2019,250.78,73025-PROFESSIONAL SERVICES-PRIV CONTRACTOR & OTHER AGENCIES,INTERMEDIATE CARE SERVICE,Third Party Payments,Revenue
Walsall Council,http://opendatacommunities.org/id/metropolitan-district-council/walsall,WC109-345,31/10/2019,Adult Social Care,ADVANCE HEALTH CARE (UK) LTD,14/10/2019,272.45,73507-DOMICILIARY CARE,PHYSICAL SUPPORT,Third Party Payments,Revenue
Walsall Council,http://opendatacommunities.org/id/metropolitan-district-council/walsall,WC109-346,31/10/2019,Adult Social Care,ADVANCE HEALTH CARE (UK) LTD,14/10/2019,277.15,73507-DOMICILIARY CARE,SOCIAL SUPPORT,Third Party Payments,Revenue
Walsall Council,http://opendatacommunities.org/id/metropolitan-district-council/walsall,WC109-347,31/10/2019,Adult Social Care,ADVANCE HEALTH CARE (UK) LTD,17/10/2019,286.60,73025-PROFESSIONAL SERVICES-PRIV CONTRACTOR & OTHER AGENCIES,INTERMEDIATE CARE SERVICE,Third Party Payments,Revenue
Walsall Council,http://opendatacommunities.org/id/metropolitan-district-council/walsall,WC109-348,31/10/2019,Adult Social Care,ADVANCE HEALTH CARE (UK) LTD,09/10/2019,322.43,73025-PROFESSIONAL SERVICES-PRIV CONTRACTOR & OTHER AGENCIES,INTERMEDIATE CARE SERVICE,Third Party Payments,Revenue
Walsall Council,http://opendatacommunities.org/id/metropolitan-district-council/walsall,WC109-349,31/10/2019,Adult Social Care,ADVANCE HEALTH CARE (UK) LTD,14/10/2019,339.61,73507-DOMICILIARY CARE,PHYSICAL SUPPORT,Third Party Payments,Revenue
Walsall Council,http://opendatacommunities.org/id/metropolitan-district-council/walsall,WC109-350,31/10/2019,Adult Social Care,ADVANCE HEALTH CARE (UK) LTD,09/10/2019,351.09,73025-PROFESSIONAL SERVICES-PRIV CONTRACTOR & OTHER AGENCIES,INTERMEDIATE CARE SERVICE,Third Party Payments,Revenue
Walsall Council,http://opendatacommunities.org/id/metropolitan-district-council/walsall,WC109-351,31/10/2019,Adult Social Care,ADVANCE HEALTH CARE (UK) LTD,11/10/2019,351.09,73025-PROFESSIONAL SERVICES-PRIV CONTRACTOR & OTHER AGENCIES,INTERMEDIATE CARE SERVICE,Third Party Payments,Revenue
Walsall Council,http://opendatacommunities.org/id/metropolitan-district-council/walsall,WC109-352,31/10/2019,Adult Social Care,ADVANCE HEALTH CARE (UK) LTD,17/10/2019,358.25,73025-PROFESSIONAL SERVICES-PRIV CONTRACTOR & OTHER AGENCIES,INTERMEDIATE CARE SERVICE,Third Party Payments,Revenue
Walsall Council,http://opendatacommunities.org/id/metropolitan-district-council/walsall,WC109-353,31/10/2019,Adult Social Care,ADVANCE HEALTH CARE (UK) LTD,14/10/2019,371.00,73507-DOMICILIARY CARE,PHYSICAL SUPPORT,Third Party Payments,Revenue
Walsall Council,http://opendatacommunities.org/id/metropolitan-district-council/walsall,WC109-354,31/10/2019,Adult Social Care,ADVANCE HEALTH CARE (UK) LTD,14/10/2019,418.16,73507-DOMICILIARY CARE,PHYSICAL SUPPORT,Third Party Payments,Revenue
Walsall Council,http://opendatacommunities.org/id/metropolitan-district-council/walsall,WC109-355,31/10/2019,Adult Social Care,ADVANCE HEALTH CARE (UK) LTD,14/10/2019,431.61,73507-DOMICILIARY CARE,PHYSICAL SUPPORT,Third Party Payments,Revenue
Walsall Council,http://opendatacommunities.org/id/metropolitan-district-council/walsall,WC109-356,31/10/2019,Adult Social Care,ADVANCE HEALTH CARE (UK) LTD,03/10/2019,451.40,73025-PROFESSIONAL SERVICES-PRIV CONTRACTOR & OTHER AGENCIES,INTERMEDIATE CARE SERVICE,Third Party Payments,Revenue
Walsall Council,http://opendatacommunities.org/id/metropolitan-district-council/walsall,WC109-357,31/10/2019,Adult Social Care,ADVANCE HEALTH CARE (UK) LTD,09/10/2019,451.40,73025-PROFESSIONAL SERVICES-PRIV CONTRACTOR & OTHER AGENCIES,INTERMEDIATE CARE SERVICE,Third Party Payments,Revenue
Walsall Council,http://opendatacommunities.org/id/metropolitan-district-council/walsall,WC109-358,31/10/2019,Adult Social Care,ADVANCE HEALTH CARE (UK) LTD,09/10/2019,451.40,73025-PROFESSIONAL SERVICES-PRIV CONTRACTOR & OTHER AGENCIES,INTERMEDIATE CARE SERVICE,Third Party Payments,Revenue
Walsall Council,http://opendatacommunities.org/id/metropolitan-district-council/walsall,WC109-359,31/10/2019,Adult Social Care,ADVANCE HEALTH CARE (UK) LTD,09/10/2019,451.40,73025-PROFESSIONAL SERVICES-PRIV CONTRACTOR & OTHER AGENCIES,INTERMEDIATE CARE SERVICE,Third Party Payments,Revenue
Walsall Council,http://opendatacommunities.org/id/metropolitan-district-council/walsall,WC109-360,31/10/2019,Adult Social Care,ADVANCE HEALTH CARE (UK) LTD,09/10/2019,451.40,73025-PROFESSIONAL SERVICES-PRIV CONTRACTOR & OTHER AGENCIES,INTERMEDIATE CARE SERVICE,Third Party Payments,Revenue
Walsall Council,http://opendatacommunities.org/id/metropolitan-district-council/walsall,WC109-361,31/10/2019,Adult Social Care,ADVANCE HEALTH CARE (UK) LTD,09/10/2019,451.40,73025-PROFESSIONAL SERVICES-PRIV CONTRACTOR & OTHER AGENCIES,INTERMEDIATE CARE SERVICE,Third Party Payments,Revenue
Walsall Council,http://opendatacommunities.org/id/metropolitan-district-council/walsall,WC109-362,31/10/2019,Adult Social Care,ADVANCE HEALTH CARE (UK) LTD,09/10/2019,451.40,73025-PROFESSIONAL SERVICES-PRIV CONTRACTOR & OTHER AGENCIES,INTERMEDIATE CARE SERVICE,Third Party Payments,Revenue
Walsall Council,http://opendatacommunities.org/id/metropolitan-district-council/walsall,WC109-363,31/10/2019,Adult Social Care,ADVANCE HEALTH CARE (UK) LTD,09/10/2019,451.40,73025-PROFESSIONAL SERVICES-PRIV CONTRACTOR & OTHER AGENCIES,INTERMEDIATE CARE SERVICE,Third Party Payments,Revenue
Walsall Council,http://opendatacommunities.org/id/metropolitan-district-council/walsall,WC109-364,31/10/2019,Adult Social Care,ADVANCE HEALTH CARE (UK) LTD,09/10/2019,451.40,73025-PROFESSIONAL SERVICES-PRIV CONTRACTOR & OTHER AGENCIES,INTERMEDIATE CARE SERVICE,Third Party Payments,Revenue
Walsall Council,http://opendatacommunities.org/id/metropolitan-district-council/walsall,WC109-365,31/10/2019,Adult Social Care,ADVANCE HEALTH CARE (UK) LTD,09/10/2019,451.40,73025-PROFESSIONAL SERVICES-PRIV CONTRACTOR & OTHER AGENCIES,INTERMEDIATE CARE SERVICE,Third Party Payments,Revenue
Walsall Council,http://opendatacommunities.org/id/metropolitan-district-council/walsall,WC109-366,31/10/2019,Adult Social Care,ADVANCE HEALTH CARE (UK) LTD,11/10/2019,451.40,73025-PROFESSIONAL SERVICES-PRIV CONTRACTOR & OTHER AGENCIES,INTERMEDIATE CARE SERVICE,Third Party Payments,Revenue
Walsall Council,http://opendatacommunities.org/id/metropolitan-district-council/walsall,WC109-367,31/10/2019,Adult Social Care,ADVANCE HEALTH CARE (UK) LTD,11/10/2019,451.40,73025-PROFESSIONAL SERVICES-PRIV CONTRACTOR & OTHER AGENCIES,INTERMEDIATE CARE SERVICE,Third Party Payments,Revenue
Walsall Council,http://opendatacommunities.org/id/metropolitan-district-council/walsall,WC109-368,31/10/2019,Adult Social Care,ADVANCE HEALTH CARE (UK) LTD,11/10/2019,451.40,73025-PROFESSIONAL SERVICES-PRIV CONTRACTOR & OTHER AGENCIES,INTERMEDIATE CARE SERVICE,Third Party Payments,Revenue
Walsall Council,http://opendatacommunities.org/id/metropolitan-district-council/walsall,WC109-369,31/10/2019,Adult Social Care,ADVANCE HEALTH CARE (UK) LTD,11/10/2019,451.40,73025-PROFESSIONAL SERVICES-PRIV CONTRACTOR & OTHER AGENCIES,INTERMEDIATE CARE SERVICE,Third Party Payments,Revenue
Walsall Council,http://opendatacommunities.org/id/metropolitan-district-council/walsall,WC109-370,31/10/2019,Adult Social Care,ADVANCE HEALTH CARE (UK) LTD,11/10/2019,451.40,73025-PROFESSIONAL SERVICES-PRIV CONTRACTOR & OTHER AGENCIES,INTERMEDIATE CARE SERVICE,Third Party Payments,Revenue
Walsall Council,http://opendatacommunities.org/id/metropolitan-district-council/walsall,WC109-371,31/10/2019,Adult Social Care,ADVANCE HEALTH CARE (UK) LTD,11/10/2019,451.40,73025-PROFESSIONAL SERVICES-PRIV CONTRACTOR & OTHER AGENCIES,INTERMEDIATE CARE SERVICE,Third Party Payments,Revenue
Walsall Council,http://opendatacommunities.org/id/metropolitan-district-council/walsall,WC109-372,31/10/2019,Adult Social Care,ADVANCE HEALTH CARE (UK) LTD,11/10/2019,451.40,73025-PROFESSIONAL SERVICES-PRIV CONTRACTOR & OTHER AGENCIES,INTERMEDIATE CARE SERVICE,Third Party Payments,Revenue
Walsall Council,http://opendatacommunities.org/id/metropolitan-district-council/walsall,WC109-373,31/10/2019,Adult Social Care,ADVANCE HEALTH CARE (UK) LTD,11/10/2019,451.40,73025-PROFESSIONAL SERVICES-PRIV CONTRACTOR & OTHER AGENCIES,INTERMEDIATE CARE SERVICE,Third Party Payments,Revenue
Walsall Council,http://opendatacommunities.org/id/metropolitan-district-council/walsall,WC109-374,31/10/2019,Adult Social Care,ADVANCE HEALTH CARE (UK) LTD,16/10/2019,451.40,73025-PROFESSIONAL SERVICES-PRIV CONTRACTOR & OTHER AGENCIES,INTERMEDIATE CARE SERVICE,Third Party Payments,Revenue
Walsall Council,http://opendatacommunities.org/id/metropolitan-district-council/walsall,WC109-375,31/10/2019,Adult Social Care,ADVANCE HEALTH CARE (UK) LTD,17/10/2019,451.40,73025-PROFESSIONAL SERVICES-PRIV CONTRACTOR & OTHER AGENCIES,INTERMEDIATE CARE SERVICE,Third Party Payments,Revenue
Walsall Council,http://opendatacommunities.org/id/metropolitan-district-council/walsall,WC109-376,31/10/2019,Adult Social Care,ADVANCE HEALTH CARE (UK) LTD,17/10/2019,451.40,73025-PROFESSIONAL SERVICES-PRIV CONTRACTOR & OTHER AGENCIES,INTERMEDIATE CARE SERVICE,Third Party Payments,Revenue
Walsall Council,http://opendatacommunities.org/id/metropolitan-district-council/walsall,WC109-377,31/10/2019,Adult Social Care,ADVANCE HEALTH CARE (UK) LTD,17/10/2019,451.40,73025-PROFESSIONAL SERVICES-PRIV CONTRACTOR & OTHER AGENCIES,INTERMEDIATE CARE SERVICE,Third Party Payments,Revenue
Walsall Council,http://opendatacommunities.org/id/metropolitan-district-council/walsall,WC109-378,31/10/2019,Adult Social Care,ADVANCE HEALTH CARE (UK) LTD,17/10/2019,451.40,73025-PROFESSIONAL SERVICES-PRIV CONTRACTOR & OTHER AGENCIES,INTERMEDIATE CARE SERVICE,Third Party Payments,Revenue
Walsall Council,http://opendatacommunities.org/id/metropolitan-district-council/walsall,WC109-379,31/10/2019,Adult Social Care,ADVANCE HEALTH CARE (UK) LTD,17/10/2019,451.40,73025-PROFESSIONAL SERVICES-PRIV CONTRACTOR & OTHER AGENCIES,INTERMEDIATE CARE SERVICE,Third Party Payments,Revenue
Walsall Council,http://opendatacommunities.org/id/metropolitan-district-council/walsall,WC109-380,31/10/2019,Adult Social Care,ADVANCE HEALTH CARE (UK) LTD,17/10/2019,451.40,73025-PROFESSIONAL SERVICES-PRIV CONTRACTOR & OTHER AGENCIES,INTERMEDIATE CARE SERVICE,Third Party Payments,Revenue
Walsall Council,http://opendatacommunities.org/id/metropolitan-district-council/walsall,WC109-381,31/10/2019,Adult Social Care,ADVANCE HEALTH CARE (UK) LTD,17/10/2019,451.40,73025-PROFESSIONAL SERVICES-PRIV CONTRACTOR & OTHER AGENCIES,INTERMEDIATE CARE SERVICE,Third Party Payments,Revenue
Walsall Council,http://opendatacommunities.org/id/metropolitan-district-council/walsall,WC109-382,31/10/2019,Adult Social Care,ADVANCE HEALTH CARE (UK) LTD,17/10/2019,451.40,73025-PROFESSIONAL SERVICES-PRIV CONTRACTOR & OTHER AGENCIES,INTERMEDIATE CARE SERVICE,Third Party Payments,Revenue
Walsall Council,http://opendatacommunities.org/id/metropolitan-district-council/walsall,WC109-383,31/10/2019,Adult Social Care,ADVANCE HEALTH CARE (UK) LTD,22/10/2019,451.40,73025-PROFESSIONAL SERVICES-PRIV CONTRACTOR & OTHER AGENCIES,INTERMEDIATE CARE SERVICE,Third Party Payments,Revenue
Walsall Council,http://opendatacommunities.org/id/metropolitan-district-council/walsall,WC109-384,31/10/2019,Adult Social Care,ADVANCE HEALTH CARE (UK) LTD,22/10/2019,451.40,73025-PROFESSIONAL SERVICES-PRIV CONTRACTOR & OTHER AGENCIES,INTERMEDIATE CARE SERVICE,Third Party Payments,Revenue
Walsall Council,http://opendatacommunities.org/id/metropolitan-district-council/walsall,WC109-385,31/10/2019,Adult Social Care,ADVANCE HEALTH CARE (UK) LTD,22/10/2019,451.40,73025-PROFESSIONAL SERVICES-PRIV CONTRACTOR & OTHER AGENCIES,INTERMEDIATE CARE SERVICE,Third Party Payments,Revenue
Walsall Council,http://opendatacommunities.org/id/metropolitan-district-council/walsall,WC109-386,31/10/2019,Adult Social Care,ADVANCE HEALTH CARE (UK) LTD,22/10/2019,451.40,73025-PROFESSIONAL SERVICES-PRIV CONTRACTOR & OTHER AGENCIES,INTERMEDIATE CARE SERVICE,Third Party Payments,Revenue
Walsall Council,http://opendatacommunities.org/id/metropolitan-district-council/walsall,WC109-387,31/10/2019,Adult Social Care,ADVANCE HEALTH CARE (UK) LTD,22/10/2019,451.40,73025-PROFESSIONAL SERVICES-PRIV CONTRACTOR & OTHER AGENCIES,INTERMEDIATE CARE SERVICE,Third Party Payments,Revenue
Walsall Council,http://opendatacommunities.org/id/metropolitan-district-council/walsall,WC109-388,31/10/2019,Adult Social Care,ADVANCE HEALTH CARE (UK) LTD,22/10/2019,451.40,73025-PROFESSIONAL SERVICES-PRIV CONTRACTOR & OTHER AGENCIES,INTERMEDIATE CARE SERVICE,Third Party Payments,Revenue
Walsall Council,http://opendatacommunities.org/id/metropolitan-district-council/walsall,WC109-389,31/10/2019,Adult Social Care,ADVANCE HEALTH CARE (UK) LTD,22/10/2019,451.40,73025-PROFESSIONAL SERVICES-PRIV CONTRACTOR & OTHER AGENCIES,INTERMEDIATE CARE SERVICE,Third Party Payments,Revenue
Walsall Council,http://opendatacommunities.org/id/metropolitan-district-council/walsall,WC109-390,31/10/2019,Adult Social Care,ADVANCE HEALTH CARE (UK) LTD,22/10/2019,451.40,73025-PROFESSIONAL SERVICES-PRIV CONTRACTOR & OTHER AGENCIES,INTERMEDIATE CARE SERVICE,Third Party Payments,Revenue
Walsall Council,http://opendatacommunities.org/id/metropolitan-district-council/walsall,WC109-391,31/10/2019,Adult Social Care,ADVANCE HEALTH CARE (UK) LTD,22/10/2019,451.40,73025-PROFESSIONAL SERVICES-PRIV CONTRACTOR & OTHER AGENCIES,INTERMEDIATE CARE SERVICE,Third Party Payments,Revenue
Walsall Council,http://opendatacommunities.org/id/metropolitan-district-council/walsall,WC109-392,31/10/2019,Adult Social Care,ADVANCE HEALTH CARE (UK) LTD,22/10/2019,451.40,73025-PROFESSIONAL SERVICES-PRIV CONTRACTOR & OTHER AGENCIES,INTERMEDIATE CARE SERVICE,Third Party Payments,Revenue
Walsall Council,http://opendatacommunities.org/id/metropolitan-district-council/walsall,WC109-393,31/10/2019,Adult Social Care,ADVANCE HEALTH CARE (UK) LTD,25/10/2019,451.40,73025-PROFESSIONAL SERVICES-PRIV CONTRACTOR & OTHER AGENCIES,INTERMEDIATE CARE SERVICE,Third Party Payments,Revenue
Walsall Council,http://opendatacommunities.org/id/metropolitan-district-council/walsall,WC109-394,31/10/2019,Adult Social Care,ADVANCE HEALTH CARE (UK) LTD,25/10/2019,451.40,73025-PROFESSIONAL SERVICES-PRIV CONTRACTOR & OTHER AGENCIES,INTERMEDIATE CARE SERVICE,Third Party Payments,Revenue
Walsall Council,http://opendatacommunities.org/id/metropolitan-district-council/walsall,WC109-395,31/10/2019,Adult Social Care,ADVANCE HEALTH CARE (UK) LTD,25/10/2019,451.40,73025-PROFESSIONAL SERVICES-PRIV CONTRACTOR & OTHER AGENCIES,INTERMEDIATE CARE SERVICE,Third Party Payments,Revenue
Walsall Council,http://opendatacommunities.org/id/metropolitan-district-council/walsall,WC109-396,31/10/2019,Adult Social Care,ADVANCE HEALTH CARE (UK) LTD,25/10/2019,451.40,73025-PROFESSIONAL SERVICES-PRIV CONTRACTOR & OTHER AGENCIES,INTERMEDIATE CARE SERVICE,Third Party Payments,Revenue
Walsall Council,http://opendatacommunities.org/id/metropolitan-district-council/walsall,WC109-397,31/10/2019,Adult Social Care,ADVANCE HEALTH CARE (UK) LTD,25/10/2019,451.40,73025-PROFESSIONAL SERVICES-PRIV CONTRACTOR & OTHER AGENCIES,INTERMEDIATE CARE SERVICE,Third Party Payments,Revenue
Walsall Council,http://opendatacommunities.org/id/metropolitan-district-council/walsall,WC109-398,31/10/2019,Adult Social Care,ADVANCE HEALTH CARE (UK) LTD,25/10/2019,451.40,73025-PROFESSIONAL SERVICES-PRIV CONTRACTOR & OTHER AGENCIES,INTERMEDIATE CARE SERVICE,Third Party Payments,Revenue
Walsall Council,http://opendatacommunities.org/id/metropolitan-district-council/walsall,WC109-399,31/10/2019,Adult Social Care,ADVANCE HEALTH CARE (UK) LTD,25/10/2019,451.40,73025-PROFESSIONAL SERVICES-PRIV CONTRACTOR & OTHER AGENCIES,INTERMEDIATE CARE SERVICE,Third Party Payments,Revenue
Walsall Council,http://opendatacommunities.org/id/metropolitan-district-council/walsall,WC109-400,31/10/2019,Adult Social Care,ADVANCE HEALTH CARE (UK) LTD,25/10/2019,451.40,73025-PROFESSIONAL SERVICES-PRIV CONTRACTOR & OTHER AGENCIES,INTERMEDIATE CARE SERVICE,Third Party Payments,Revenue
Walsall Council,http://opendatacommunities.org/id/metropolitan-district-council/walsall,WC109-401,31/10/2019,Adult Social Care,ADVANCE HEALTH CARE (UK) LTD,11/10/2019,465.73,73025-PROFESSIONAL SERVICES-PRIV CONTRACTOR & OTHER AGENCIES,INTERMEDIATE CARE SERVICE,Third Party Payments,Revenue
Walsall Council,http://opendatacommunities.org/id/metropolitan-district-council/walsall,WC109-402,31/10/2019,Adult Social Care,ADVANCE HEALTH CARE (UK) LTD,17/10/2019,465.73,73025-PROFESSIONAL SERVICES-PRIV CONTRACTOR & OTHER AGENCIES,INTERMEDIATE CARE SERVICE,Third Party Payments,Revenue
Walsall Council,http://opendatacommunities.org/id/metropolitan-district-council/walsall,WC109-403,31/10/2019,Adult Social Care,ADVANCE HEALTH CARE (UK) LTD,11/10/2019,506.22,73025-PROFESSIONAL SERVICES-PRIV CONTRACTOR & OTHER AGENCIES,INTERMEDIATE CARE SERVICE,Third Party Payments,Revenue
Walsall Council,http://opendatacommunities.org/id/metropolitan-district-council/walsall,WC109-404,31/10/2019,Adult Social Care,ADVANCE HEALTH CARE (UK) LTD,14/10/2019,509.07,73507-DOMICILIARY CARE,PHYSICAL SUPPORT,Third Party Payments,Revenue
Walsall Council,http://opendatacommunities.org/id/metropolitan-district-council/walsall,WC109-405,31/10/2019,Adult Social Care,ADVANCE HEALTH CARE (UK) LTD,14/10/2019,518.31,73507-DOMICILIARY CARE,LEARNING DISABILITY SUPPORT,Third Party Payments,Revenue
Walsall Council,http://opendatacommunities.org/id/metropolitan-district-council/walsall,WC109-406,31/10/2019,Adult Social Care,ADVANCE HEALTH CARE (UK) LTD,14/10/2019,552.65,73507-DOMICILIARY CARE,PHYSICAL SUPPORT,Third Party Payments,Revenue
Walsall Council,http://opendatacommunities.org/id/metropolitan-district-council/walsall,WC109-407,31/10/2019,Adult Social Care,ADVANCE HEALTH CARE (UK) LTD,14/10/2019,562.84,73507-DOMICILIARY CARE,PHYSICAL SUPPORT,Third Party Payments,Revenue
Walsall Council,http://opendatacommunities.org/id/metropolitan-district-council/walsall,WC109-408,31/10/2019,Adult Social Care,ADVANCE HEALTH CARE (UK) LTD,14/10/2019,612.81,73507-DOMICILIARY CARE,PHYSICAL SUPPORT,Third Party Payments,Revenue
Walsall Council,http://opendatacommunities.org/id/metropolitan-district-council/walsall,WC109-409,31/10/2019,Adult Social Care,ADVANCE HEALTH CARE (UK) LTD,01/10/2019,626.94,73025-PROFESSIONAL SERVICES-PRIV CONTRACTOR & OTHER AGENCIES,INTERMEDIATE CARE SERVICE,Third Party Payments,Revenue
Walsall Council,http://opendatacommunities.org/id/metropolitan-district-council/walsall,WC109-410,31/10/2019,Adult Social Care,ADVANCE HEALTH CARE (UK) LTD,01/10/2019,626.94,73025-PROFESSIONAL SERVICES-PRIV CONTRACTOR & OTHER AGENCIES,INTERMEDIATE CARE SERVICE,Third Party Payments,Revenue
Walsall Council,http://opendatacommunities.org/id/metropolitan-district-council/walsall,WC109-411,31/10/2019,Adult Social Care,ADVANCE HEALTH CARE (UK) LTD,17/10/2019,689.11,73025-PROFESSIONAL SERVICES-PRIV CONTRACTOR & OTHER AGENCIES,INTERMEDIATE CARE SERVICE,Third Party Payments,Revenue
Walsall Council,http://opendatacommunities.org/id/metropolitan-district-council/walsall,WC109-412,31/10/2019,Adult Social Care,ADVANCE HEALTH CARE (UK) LTD,22/10/2019,689.11,73025-PROFESSIONAL SERVICES-PRIV CONTRACTOR & OTHER AGENCIES,INTERMEDIATE CARE SERVICE,Third Party Payments,Revenue
Walsall Council,http://opendatacommunities.org/id/metropolitan-district-council/walsall,WC109-413,31/10/2019,Adult Social Care,ADVANCE HEALTH CARE (UK) LTD,25/10/2019,689.11,73025-PROFESSIONAL SERVICES-PRIV CONTRACTOR & OTHER AGENCIES,INTERMEDIATE CARE SERVICE,Third Party Payments,Revenue
Walsall Council,http://opendatacommunities.org/id/metropolitan-district-council/walsall,WC109-414,31/10/2019,Adult Social Care,ADVANCE HEALTH CARE (UK) LTD,14/10/2019,695.05,73507-DOMICILIARY CARE,PHYSICAL SUPPORT,Third Party Payments,Revenue
Walsall Council,http://opendatacommunities.org/id/metropolitan-district-council/walsall,WC109-415,31/10/2019,Adult Social Care,ADVANCE HEALTH CARE (UK) LTD,14/10/2019,742.16,73507-DOMICILIARY CARE,PHYSICAL SUPPORT,Third Party Payments,Revenue
Walsall Council,http://opendatacommunities.org/id/metropolitan-district-council/walsall,WC109-416,31/10/2019,Adult Social Care,ADVANCE HEALTH CARE (UK) LTD,14/10/2019,759.91,73507-DOMICILIARY CARE,PHYSICAL SUPPORT,Third Party Payments,Revenue
Walsall Council,http://opendatacommunities.org/id/metropolitan-district-council/walsall,WC109-417,31/10/2019,Adult Social Care,ADVANCE HEALTH CARE (UK) LTD,14/10/2019,810.23,73507-DOMICILIARY CARE,PHYSICAL SUPPORT,Third Party Payments,Revenue
Walsall Council,http://opendatacommunities.org/id/metropolitan-district-council/walsall,WC109-418,31/10/2019,Adult Social Care,ADVANCE HEALTH CARE (UK) LTD,14/10/2019,848.43,73507-DOMICILIARY CARE,PHYSICAL SUPPORT,Third Party Payments,Revenue
Walsall Council,http://opendatacommunities.org/id/metropolitan-district-council/walsall,WC109-419,31/10/2019,Adult Social Care,ADVANCE HEALTH CARE (UK) LTD,14/10/2019,853.40,73507-DOMICILIARY CARE,PHYSICAL SUPPORT,Third Party Payments,Revenue
Walsall Council,http://opendatacommunities.org/id/metropolitan-district-council/walsall,WC109-420,31/10/2019,Adult Social Care,ADVANCE HEALTH CARE (UK) LTD,14/10/2019,855.23,73507-DOMICILIARY CARE,PHYSICAL SUPPORT,Third Party Payments,Revenue
Walsall Council,http://opendatacommunities.org/id/metropolitan-district-council/walsall,WC109-421,31/10/2019,Adult Social Care,ADVANCE HEALTH CARE (UK) LTD,14/10/2019,860.11,73507-DOMICILIARY CARE,SUPPORT WITH MEMORY & COGNITION,Third Party Payments,Revenue
Walsall Council,http://opendatacommunities.org/id/metropolitan-district-council/walsall,WC109-422,31/10/2019,Adult Social Care,ADVANCE HEALTH CARE (UK) LTD,14/10/2019,873.49,73507-DOMICILIARY CARE,PHYSICAL SUPPORT,Third Party Payments,Revenue
Walsall Council,http://opendatacommunities.org/id/metropolitan-district-council/walsall,WC109-423,31/10/2019,Adult Social Care,ADVANCE HEALTH CARE (UK) LTD,14/10/2019,878.77,73507-DOMICILIARY CARE,PHYSICAL SUPPORT,Third Party Payments,Revenue
Walsall Council,http://opendatacommunities.org/id/metropolitan-district-council/walsall,WC109-424,31/10/2019,Adult Social Care,ADVANCE HEALTH CARE (UK) LTD,14/10/2019,881.29,73507-DOMICILIARY CARE,PHYSICAL SUPPORT,Third Party Payments,Revenue
Walsall Council,http://opendatacommunities.org/id/metropolitan-district-council/walsall,WC109-425,31/10/2019,Adult Social Care,ADVANCE HEALTH CARE (UK) LTD,14/10/2019,884.30,73507-DOMICILIARY CARE,PHYSICAL SUPPORT,Third Party Payments,Revenue
Walsall Council,http://opendatacommunities.org/id/metropolitan-district-council/walsall,WC109-426,31/10/2019,Adult Social Care,ADVANCE HEALTH CARE (UK) LTD,14/10/2019,"1,046.53",73507-DOMICILIARY CARE,PHYSICAL SUPPORT,Third Party Payments,Revenue
Walsall Council,http://opendatacommunities.org/id/metropolitan-district-council/walsall,WC109-427,31/10/2019,Adult Social Care,ADVANCE HEALTH CARE (UK) LTD,14/10/2019,"1,118.33",73507-DOMICILIARY CARE,PHYSICAL SUPPORT,Third Party Payments,Revenue
Walsall Council,http://opendatacommunities.org/id/metropolitan-district-council/walsall,WC109-428,31/10/2019,Adult Social Care,ADVANCE HEALTH CARE (UK) LTD,14/10/2019,"1,282.43",73507-DOMICILIARY CARE,PHYSICAL SUPPORT,Third Party Payments,Revenue
Walsall Council,http://opendatacommunities.org/id/metropolitan-district-council/walsall,WC109-429,31/10/2019,Adult Social Care,ADVANCE HEALTH CARE (UK) LTD,14/10/2019,"1,313.22",73507-DOMICILIARY CARE,SOCIAL SUPPORT,Third Party Payments,Revenue
Walsall Council,http://opendatacommunities.org/id/metropolitan-district-council/walsall,WC109-430,31/10/2019,Adult Social Care,ADVANCE HEALTH CARE (UK) LTD,14/10/2019,"1,377.96",73507-DOMICILIARY CARE,PHYSICAL SUPPORT,Third Party Payments,Revenue
Walsall Council,http://opendatacommunities.org/id/metropolitan-district-council/walsall,WC109-431,31/10/2019,Adult Social Care,ADVANCE HEALTH CARE (UK) LTD,14/10/2019,"1,447.81",73507-DOMICILIARY CARE,PHYSICAL SUPPORT,Third Party Payments,Revenue
Walsall Council,http://opendatacommunities.org/id/metropolitan-district-council/walsall,WC109-432,31/10/2019,Adult Social Care,ADVANCE HEALTH CARE (UK) LTD,14/10/2019,"1,526.38",73507-DOMICILIARY CARE,PHYSICAL SUPPORT,Third Party Payments,Revenue
Walsall Council,http://opendatacommunities.org/id/metropolitan-district-council/walsall,WC109-433,31/10/2019,Adult Social Care,ADVANCE HEALTH CARE (UK) LTD,14/10/2019,"1,579.70",73507-DOMICILIARY CARE,PHYSICAL SUPPORT,Third Party Payments,Revenue
Walsall Council,http://opendatacommunities.org/id/metropolitan-district-council/walsall,WC109-434,31/10/2019,Adult Social Care,ADVANCE HEALTH CARE (UK) LTD,14/10/2019,"1,665.14",73507-DOMICILIARY CARE,PHYSICAL SUPPORT,Third Party Payments,Revenue
Walsall Council,http://opendatacommunities.org/id/metropolitan-district-council/walsall,WC109-435,31/10/2019,Adult Social Care,ADVANCE HEALTH CARE (UK) LTD,14/10/2019,"1,668.91",73507-DOMICILIARY CARE,PHYSICAL SUPPORT,Third Party Payments,Revenue
Walsall Council,http://opendatacommunities.org/id/metropolitan-district-council/walsall,WC109-436,31/10/2019,Adult Social Care,ADVANCE HEALTH CARE (UK) LTD,14/10/2019,"1,674.04",73507-DOMICILIARY CARE,PHYSICAL SUPPORT,Third Party Payments,Revenue
Walsall Council,http://opendatacommunities.org/id/metropolitan-district-council/walsall,WC109-437,31/10/2019,Adult Social Care,ADVANCE HEALTH CARE (UK) LTD,14/10/2019,"1,711.66",73507-DOMICILIARY CARE,PHYSICAL SUPPORT,Third Party Payments,Revenue
Walsall Council,http://opendatacommunities.org/id/metropolitan-district-council/walsall,WC109-438,31/10/2019,Adult Social Care,ADVANCE HEALTH CARE (UK) LTD,14/10/2019,"1,754.96",73507-DOMICILIARY CARE,PHYSICAL SUPPORT,Third Party Payments,Revenue
Walsall Council,http://opendatacommunities.org/id/metropolitan-district-council/walsall,WC109-439,31/10/2019,Adult Social Care,ADVANCE HEALTH CARE (UK) LTD,14/10/2019,"1,785.08",73507-DOMICILIARY CARE,PHYSICAL SUPPORT,Third Party Payments,Revenue
Walsall Council,http://opendatacommunities.org/id/metropolitan-district-council/walsall,WC109-440,31/10/2019,Adult Social Care,ADVANCE HEALTH CARE (UK) LTD,14/10/2019,"1,785.43",73507-DOMICILIARY CARE,PHYSICAL SUPPORT,Third Party Payments,Revenue
Walsall Council,http://opendatacommunities.org/id/metropolitan-district-council/walsall,WC109-441,31/10/2019,Adult Social Care,ADVANCE HEALTH CARE (UK) LTD,14/10/2019,"1,821.87",73507-DOMICILIARY CARE,PHYSICAL SUPPORT,Third Party Payments,Revenue
Walsall Council,http://opendatacommunities.org/id/metropolitan-district-council/walsall,WC109-442,31/10/2019,Adult Social Care,ADVANCE HEALTH CARE (UK) LTD,14/10/2019,"1,854.57",73507-DOMICILIARY CARE,PHYSICAL SUPPORT,Third Party Payments,Revenue
Walsall Council,http://opendatacommunities.org/id/metropolitan-district-council/walsall,WC109-443,31/10/2019,Adult Social Care,ADVANCE HEALTH CARE (UK) LTD,14/10/2019,"1,858.04",73507-DOMICILIARY CARE,SOCIAL SUPPORT,Third Party Payments,Revenue
Walsall Council,http://opendatacommunities.org/id/metropolitan-district-council/walsall,WC109-444,31/10/2019,Adult Social Care,ADVANCE HEALTH CARE (UK) LTD,14/10/2019,"1,863.62",73507-DOMICILIARY CARE,PHYSICAL SUPPORT,Third Party Payments,Revenue
Walsall Council,http://opendatacommunities.org/id/metropolitan-district-council/walsall,WC109-445,31/10/2019,Adult Social Care,ADVANCE HEALTH CARE (UK) LTD,14/10/2019,"1,864.17",73507-DOMICILIARY CARE,PHYSICAL SUPPORT,Third Party Payments,Revenue
Walsall Council,http://opendatacommunities.org/id/metropolitan-district-council/walsall,WC109-446,31/10/2019,Adult Social Care,ADVANCE HEALTH CARE (UK) LTD,14/10/2019,"1,866.22",73507-DOMICILIARY CARE,PHYSICAL SUPPORT,Third Party Payments,Revenue
Walsall Council,http://opendatacommunities.org/id/metropolitan-district-council/walsall,WC109-447,31/10/2019,Adult Social Care,ADVANCE HEALTH CARE (UK) LTD,14/10/2019,"1,866.42",73507-DOMICILIARY CARE,PHYSICAL SUPPORT,Third Party Payments,Revenue
Walsall Council,http://opendatacommunities.org/id/metropolitan-district-council/walsall,WC109-448,31/10/2019,Adult Social Care,ADVANCE HEALTH CARE (UK) LTD,14/10/2019,"1,868.28",73507-DOMICILIARY CARE,PHYSICAL SUPPORT,Third Party Payments,Revenue
Walsall Council,http://opendatacommunities.org/id/metropolitan-district-council/walsall,WC109-449,31/10/2019,Adult Social Care,ADVANCE HEALTH CARE (UK) LTD,14/10/2019,"1,869.01",73507-DOMICILIARY CARE,PHYSICAL SUPPORT,Third Party Payments,Revenue
Walsall Council,http://opendatacommunities.org/id/metropolitan-district-council/walsall,WC109-450,31/10/2019,Adult Social Care,ADVANCE HEALTH CARE (UK) LTD,14/10/2019,"1,882.88",73507-DOMICILIARY CARE,PHYSICAL SUPPORT,Third Party Payments,Revenue
Walsall Council,http://opendatacommunities.org/id/metropolitan-district-council/walsall,WC109-451,31/10/2019,Adult Social Care,ADVANCE HEALTH CARE (UK) LTD,14/10/2019,"1,905.72",73507-DOMICILIARY CARE,PHYSICAL SUPPORT,Third Party Payments,Revenue
Walsall Council,http://opendatacommunities.org/id/metropolitan-district-council/walsall,WC109-452,31/10/2019,Adult Social Care,ADVANCE HEALTH CARE (UK) LTD,14/10/2019,"1,919.29",73507-DOMICILIARY CARE,PHYSICAL SUPPORT,Third Party Payments,Revenue
Walsall Council,http://opendatacommunities.org/id/metropolitan-district-council/walsall,WC109-453,31/10/2019,Adult Social Care,ADVANCE HEALTH CARE (UK) LTD,14/10/2019,"1,949.96",73507-DOMICILIARY CARE,PHYSICAL SUPPORT,Third Party Payments,Revenue
Walsall Council,http://opendatacommunities.org/id/metropolitan-district-council/walsall,WC109-454,31/10/2019,Adult Social Care,ADVANCE HEALTH CARE (UK) LTD,14/10/2019,"2,001.80",73507-DOMICILIARY CARE,PHYSICAL SUPPORT,Third Party Payments,Revenue
Walsall Council,http://opendatacommunities.org/id/metropolitan-district-council/walsall,WC109-455,31/10/2019,Adult Social Care,ADVANCE HEALTH CARE (UK) LTD,14/10/2019,"2,082.90",73507-DOMICILIARY CARE,PHYSICAL SUPPORT,Third Party Payments,Revenue
Walsall Council,http://opendatacommunities.org/id/metropolitan-district-council/walsall,WC109-456,31/10/2019,Adult Social Care,ADVANCE HEALTH CARE (UK) LTD,14/10/2019,"2,151.26",73507-DOMICILIARY CARE,PHYSICAL SUPPORT,Third Party Payments,Revenue
Walsall Council,http://opendatacommunities.org/id/metropolitan-district-council/walsall,WC109-457,31/10/2019,Adult Social Care,ADVANCE HEALTH CARE (UK) LTD,14/10/2019,"2,151.31",73507-DOMICILIARY CARE,PHYSICAL SUPPORT,Third Party Payments,Revenue
Walsall Council,http://opendatacommunities.org/id/metropolitan-district-council/walsall,WC109-458,31/10/2019,Adult Social Care,ADVANCE HEALTH CARE (UK) LTD,14/10/2019,"2,173.52",73507-DOMICILIARY CARE,PHYSICAL SUPPORT,Third Party Payments,Revenue
Walsall Council,http://opendatacommunities.org/id/metropolitan-district-council/walsall,WC109-459,31/10/2019,Adult Social Care,ADVANCE HEALTH CARE (UK) LTD,14/10/2019,"2,489.00",73507-DOMICILIARY CARE,PHYSICAL SUPPORT,Third Party Payments,Revenue
Walsall Council,http://opendatacommunities.org/id/metropolitan-district-council/walsall,WC109-460,31/10/2019,Adult Social Care,ADVANCE HEALTH CARE (UK) LTD,14/10/2019,"2,780.25",73507-DOMICILIARY CARE,PHYSICAL SUPPORT,Third Party Payments,Revenue
Walsall Council,http://opendatacommunities.org/id/metropolitan-district-council/walsall,WC109-461,31/10/2019,Adult Social Care,ADVANCE HEALTH CARE (UK) LTD,14/10/2019,"3,294.55",73507-DOMICILIARY CARE,SOCIAL SUPPORT,Third Party Payments,Revenue
Walsall Council,http://opendatacommunities.org/id/metropolitan-district-council/walsall,WC109-462,31/10/2019,Adult Social Care,ADVANCE HEALTH CARE (UK) LTD,14/10/2019,"4,775.46",73507-DOMICILIARY CARE,PHYSICAL SUPPORT,Third Party Payments,Revenue
Walsall Council,http://opendatacommunities.org/id/metropolitan-district-council/walsall,WC109-463,31/10/2019,Childrens,ADVENTURELAND DAY NURSERY,25/10/2019,"2,475.90",66505-OTHER-GRANTS TO OTHER ORGS,EARLY YEARS - 2 YR OLDS,Third Party Payments,Revenue
Walsall Council,http://opendatacommunities.org/id/metropolitan-district-council/walsall,WC109-464,31/10/2019,Childrens,ADVENTURELAND DAY NURSERY,25/10/2019,"3,425.63",66505-OTHER-GRANTS TO OTHER ORGS,EARLY YEARS - 3 YR OLDS,Third Party Payments,Revenue
Walsall Council,http://opendatacommunities.org/id/metropolitan-district-council/walsall,WC109-465,31/10/2019,Economy & Environment,AEBI SCHMIDT UK LIMITED,10/10/2019,393.32,60500-GENERAL MATERIALS,FLEET,Supplies & Services,Revenue
Walsall Council,http://opendatacommunities.org/id/metropolitan-district-council/walsall,WC109-466,31/10/2019,Economy & Environment,AEBI SCHMIDT UK LIMITED,01/10/2019,877.81,60500-GENERAL MATERIALS,FLEET,Supplies & Services,Revenue
Walsall Council,http://opendatacommunities.org/id/metropolitan-district-council/walsall,WC109-467,31/10/2019,Economy & Environment,AEBI SCHMIDT UK LIMITED,18/10/2019,895.07,60500-GENERAL MATERIALS,FLEET,Supplies & Services,Revenue
Walsall Council,http://opendatacommunities.org/id/metropolitan-district-council/walsall,WC109-468,31/10/2019,Economy & Environment,AEBI SCHMIDT UK LIMITED,01/10/2019,972.69,60500-GENERAL MATERIALS,FLEET,Supplies & Services,Revenue
Walsall Council,http://opendatacommunities.org/id/metropolitan-district-council/walsall,WC109-469,31/10/2019,Economy & Environment,AECOM LIMITED,03/10/2019,"5,639.50",73025-PROFESSIONAL SERVICES-PRIV CONTRACTOR & OTHER AGENCIES,DEVELOPERS DEPOSITS HOLDING ACCOUNT,Third Party Payments,Revenue
Walsall Council,http://opendatacommunities.org/id/metropolitan-district-council/walsall,WC109-470,31/10/2019,Economy & Environment,AGILE APPLICATIONS LIMITED,02/10/2019,"26,866.81",63800-COMPUTER EQUIPMENT AND SUPPLIES,LLPG ICT PROJECT COSTS,Supplies & Services,Revenue
Walsall Council,http://opendatacommunities.org/id/metropolitan-district-council/walsall,WC109-471,31/10/2019,Adult Social Care,REDACTED,04/10/2019,"2,325.60",73506-DIRECT PAYMENT,LEARNING DISABILITY SUPPORT,Third Party Payments,Revenue
Walsall Council,http://opendatacommunities.org/id/metropolitan-district-council/walsall,WC109-472,31/10/2019,Economy & Environment,ALBERT JAGGER LTD,02/10/2019,261.40,60500-GENERAL MATERIALS,FLEET,Supplies & Services,Revenue
Walsall Council,http://opendatacommunities.org/id/metropolitan-district-council/walsall,WC109-473,31/10/2019,Childrens,ALBRIGHTON CARE LTD,04/10/2019,"9,980.00",74036-EXTERNAL RESIDENTIAL CARE-OTH AGENCY PROVISION,INDEPENDENT RESIDENTIAL HOMES,Third Party Payments,Revenue
Walsall Council,http://opendatacommunities.org/id/metropolitan-district-council/walsall,WC109-474,31/10/2019,Economy & Environment,ALDERBROOK HEALTHCARE LTD,14/10/2019,"1,980.20",63000-PROFESSIONAL FEES AND SERVICES,CORONERS SERVICE,Supplies & Services,Revenue
Walsall Council,http://opendatacommunities.org/id/metropolitan-district-council/walsall,WC109-475,31/10/2019,Economy & Environment,ALDERBROOK HEALTHCARE LTD,03/10/2019,"3,593.90",63000-PROFESSIONAL FEES AND SERVICES,CORONERS SERVICE,Supplies & Services,Revenue
Walsall Council,http://opendatacommunities.org/id/metropolitan-district-council/walsall,WC109-476,31/10/2019,Adult Social Care,ALDERGROVE MANOR LTD,09/10/2019,"1,972.24",73501-RESIDENTIAL EMI,MENTAL HEALTH SUPPORT,Third Party Payments,Revenue
Walsall Council,http://opendatacommunities.org/id/metropolitan-district-council/walsall,WC109-477,31/10/2019,Adult Social Care,ALDERGROVE MANOR LTD,09/10/2019,"1,972.24",73501-RESIDENTIAL EMI,PHYSICAL SUPPORT,Third Party Payments,Revenue
Walsall Council,http://opendatacommunities.org/id/metropolitan-district-council/walsall,WC109-478,31/10/2019,Adult Social Care,ALDERGROVE MANOR LTD,09/10/2019,"2,107.92",73501-RESIDENTIAL EMI,PHYSICAL SUPPORT,Third Party Payments,Revenue
Walsall Council,http://opendatacommunities.org/id/metropolitan-district-council/walsall,WC109-479,31/10/2019,Adult Social Care,ALDERGROVE MANOR LTD,09/10/2019,"2,132.24",73501-RESIDENTIAL EMI,PHYSICAL SUPPORT,Third Party Payments,Revenue
Walsall Council,http://opendatacommunities.org/id/metropolitan-district-council/walsall,WC109-480,31/10/2019,Adult Social Care,ALDERGROVE MANOR LTD,09/10/2019,"2,143.72",73502-NURSING,PHYSICAL SUPPORT,Third Party Payments,Revenue
Walsall Council,http://opendatacommunities.org/id/metropolitan-district-council/walsall,WC109-481,31/10/2019,Childrens,ALDRIDGE & BARONS LIMITED,14/10/2019,267.00,52000-WITH DRIVER-HIRE OF VEHICLES,HOME TO SCHOOL TRANSPORT,Transport,Revenue
Walsall Council,http://opendatacommunities.org/id/metropolitan-district-council/walsall,WC109-482,31/10/2019,Childrens,ALDRIDGE & BARONS LIMITED,14/10/2019,270.00,52000-WITH DRIVER-HIRE OF VEHICLES,HOME TO SCHOOL TRANSPORT,Transport,Revenue
Walsall Council,http://opendatacommunities.org/id/metropolitan-district-council/walsall,WC109-483,31/10/2019,Childrens,ALDRIDGE & BARONS LIMITED,14/10/2019,280.00,52000-WITH DRIVER-HIRE OF VEHICLES,HOME TO SCHOOL TRANSPORT,Transport,Revenue
Walsall Council,http://opendatacommunities.org/id/metropolitan-district-council/walsall,WC109-484,31/10/2019,Childrens,ALDRIDGE & BARONS LIMITED,14/10/2019,297.20,52000-WITH DRIVER-HIRE OF VEHICLES,HOME TO SCHOOL TRANSPORT,Transport,Revenue
Walsall Council,http://opendatacommunities.org/id/metropolitan-district-council/walsall,WC109-485,31/10/2019,Childrens,ALDRIDGE & BARONS LIMITED,14/10/2019,297.20,52000-WITH DRIVER-HIRE OF VEHICLES,HOME TO SCHOOL TRANSPORT,Transport,Revenue
Walsall Council,http://opendatacommunities.org/id/metropolitan-district-council/walsall,WC109-486,31/10/2019,Childrens,ALDRIDGE & BARONS LIMITED,14/10/2019,297.20,52000-WITH DRIVER-HIRE OF VEHICLES,HOME TO SCHOOL TRANSPORT,Transport,Revenue
Walsall Council,http://opendatacommunities.org/id/metropolitan-district-council/walsall,WC109-487,31/10/2019,Childrens,ALDRIDGE & BARONS LIMITED,14/10/2019,297.20,52000-WITH DRIVER-HIRE OF VEHICLES,HOME TO SCHOOL TRANSPORT,Transport,Revenue
Walsall Council,http://opendatacommunities.org/id/metropolitan-district-council/walsall,WC109-488,31/10/2019,Childrens,ALDRIDGE & BARONS LIMITED,14/10/2019,297.20,52000-WITH DRIVER-HIRE OF VEHICLES,HOME TO SCHOOL TRANSPORT,Transport,Revenue
Walsall Council,http://opendatacommunities.org/id/metropolitan-district-council/walsall,WC109-489,31/10/2019,Childrens,ALDRIDGE & BARONS LIMITED,14/10/2019,297.20,52000-WITH DRIVER-HIRE OF VEHICLES,HOME TO SCHOOL TRANSPORT,Transport,Revenue
Walsall Council,http://opendatacommunities.org/id/metropolitan-district-council/walsall,WC109-490,31/10/2019,Childrens,ALDRIDGE & BARONS LIMITED,14/10/2019,297.20,52000-WITH DRIVER-HIRE OF VEHICLES,HOME TO SCHOOL TRANSPORT,Transport,Revenue
Walsall Council,http://opendatacommunities.org/id/metropolitan-district-council/walsall,WC109-491,31/10/2019,Childrens,ALDRIDGE & BARONS LIMITED,14/10/2019,310.80,52000-WITH DRIVER-HIRE OF VEHICLES,HOME TO SCHOOL TRANSPORT,Transport,Revenue
Walsall Council,http://opendatacommunities.org/id/metropolitan-district-council/walsall,WC109-492,31/10/2019,Childrens,ALDRIDGE & BARONS LIMITED,14/10/2019,310.80,52000-WITH DRIVER-HIRE OF VEHICLES,HOME TO SCHOOL TRANSPORT,Transport,Revenue
Walsall Council,http://opendatacommunities.org/id/metropolitan-district-council/walsall,WC109-493,31/10/2019,Childrens,ALDRIDGE & BARONS LIMITED,14/10/2019,310.80,52000-WITH DRIVER-HIRE OF VEHICLES,HOME TO SCHOOL TRANSPORT,Transport,Revenue
Walsall Council,http://opendatacommunities.org/id/metropolitan-district-council/walsall,WC109-494,31/10/2019,Childrens,ALDRIDGE & BARONS LIMITED,14/10/2019,320.00,52000-WITH DRIVER-HIRE OF VEHICLES,HOME TO SCHOOL TRANSPORT,Transport,Revenue
Walsall Council,http://opendatacommunities.org/id/metropolitan-district-council/walsall,WC109-495,31/10/2019,Childrens,ALDRIDGE & BARONS LIMITED,14/10/2019,320.00,52000-WITH DRIVER-HIRE OF VEHICLES,HOME TO SCHOOL TRANSPORT,Transport,Revenue
Walsall Council,http://opendatacommunities.org/id/metropolitan-district-council/walsall,WC109-496,31/10/2019,Childrens,ALDRIDGE & BARONS LIMITED,14/10/2019,320.00,52000-WITH DRIVER-HIRE OF VEHICLES,HOME TO SCHOOL TRANSPORT,Transport,Revenue
Walsall Council,http://opendatacommunities.org/id/metropolitan-district-council/walsall,WC109-497,31/10/2019,Childrens,ALDRIDGE & BARONS LIMITED,14/10/2019,320.00,52000-WITH DRIVER-HIRE OF VEHICLES,HOME TO SCHOOL TRANSPORT,Transport,Revenue
Walsall Council,http://opendatacommunities.org/id/metropolitan-district-council/walsall,WC109-498,31/10/2019,Childrens,ALDRIDGE & BARONS LIMITED,14/10/2019,320.00,52000-WITH DRIVER-HIRE OF VEHICLES,HOME TO SCHOOL TRANSPORT,Transport,Revenue
Walsall Council,http://opendatacommunities.org/id/metropolitan-district-council/walsall,WC109-499,31/10/2019,Childrens,ALDRIDGE & BARONS LIMITED,14/10/2019,320.00,52000-WITH DRIVER-HIRE OF VEHICLES,HOME TO SCHOOL TRANSPORT,Transport,Revenue
Walsall Council,http://opendatacommunities.org/id/metropolitan-district-council/walsall,WC109-500,31/10/2019,Childrens,ALDRIDGE & BARONS LIMITED,14/10/2019,320.00,52000-WITH DRIVER-HIRE OF VEHICLES,HOME TO SCHOOL TRANSPORT,Transport,Revenue
Walsall Council,http://opendatacommunities.org/id/metropolitan-district-council/walsall,WC109-501,31/10/2019,Childrens,ALDRIDGE & BARONS LIMITED,14/10/2019,320.00,52000-WITH DRIVER-HIRE OF VEHICLES,HOME TO SCHOOL TRANSPORT,Transport,Revenue
Walsall Council,http://opendatacommunities.org/id/metropolitan-district-council/walsall,WC109-502,31/10/2019,Childrens,ALDRIDGE & BARONS LIMITED,14/10/2019,320.00,52000-WITH DRIVER-HIRE OF VEHICLES,HOME TO SCHOOL TRANSPORT,Transport,Revenue
Walsall Council,http://opendatacommunities.org/id/metropolitan-district-council/walsall,WC109-503,31/10/2019,Childrens,ALDRIDGE & BARONS LIMITED,14/10/2019,344.00,52000-WITH DRIVER-HIRE OF VEHICLES,HOME TO SCHOOL TRANSPORT,Transport,Revenue
Walsall Council,http://opendatacommunities.org/id/metropolitan-district-council/walsall,WC109-504,31/10/2019,Childrens,ALDRIDGE & BARONS LIMITED,14/10/2019,344.00,52000-WITH DRIVER-HIRE OF VEHICLES,HOME TO SCHOOL TRANSPORT,Transport,Revenue
Walsall Council,http://opendatacommunities.org/id/metropolitan-district-council/walsall,WC109-505,31/10/2019,Childrens,ALDRIDGE & BARONS LIMITED,14/10/2019,344.00,52000-WITH DRIVER-HIRE OF VEHICLES,HOME TO SCHOOL TRANSPORT,Transport,Revenue
Walsall Council,http://opendatacommunities.org/id/metropolitan-district-council/walsall,WC109-506,31/10/2019,Childrens,ALDRIDGE & BARONS LIMITED,14/10/2019,344.00,52000-WITH DRIVER-HIRE OF VEHICLES,HOME TO SCHOOL TRANSPORT,Transport,Revenue
Walsall Council,http://opendatacommunities.org/id/metropolitan-district-council/walsall,WC109-507,31/10/2019,Childrens,ALDRIDGE & BARONS LIMITED,14/10/2019,352.80,52000-WITH DRIVER-HIRE OF VEHICLES,HOME TO SCHOOL TRANSPORT,Transport,Revenue
Walsall Council,http://opendatacommunities.org/id/metropolitan-district-council/walsall,WC109-508,31/10/2019,Childrens,ALDRIDGE & BARONS LIMITED,14/10/2019,352.80,52000-WITH DRIVER-HIRE OF VEHICLES,HOME TO SCHOOL TRANSPORT,Transport,Revenue
Walsall Council,http://opendatacommunities.org/id/metropolitan-district-council/walsall,WC109-509,31/10/2019,Childrens,ALDRIDGE & BARONS LIMITED,14/10/2019,352.80,52000-WITH DRIVER-HIRE OF VEHICLES,HOME TO SCHOOL TRANSPORT,Transport,Revenue
Walsall Council,http://opendatacommunities.org/id/metropolitan-district-council/walsall,WC109-510,31/10/2019,Childrens,ALDRIDGE & BARONS LIMITED,14/10/2019,356.00,52000-WITH DRIVER-HIRE OF VEHICLES,HOME TO SCHOOL TRANSPORT,Transport,Revenue
Walsall Council,http://opendatacommunities.org/id/metropolitan-district-council/walsall,WC109-511,31/10/2019,Childrens,ALDRIDGE & BARONS LIMITED,14/10/2019,356.00,52000-WITH DRIVER-HIRE OF VEHICLES,HOME TO SCHOOL TRANSPORT,Transport,Revenue
Walsall Council,http://opendatacommunities.org/id/metropolitan-district-council/walsall,WC109-512,31/10/2019,Childrens,ALDRIDGE & BARONS LIMITED,14/10/2019,356.00,52000-WITH DRIVER-HIRE OF VEHICLES,HOME TO SCHOOL TRANSPORT,Transport,Revenue
Walsall Council,http://opendatacommunities.org/id/metropolitan-district-council/walsall,WC109-513,31/10/2019,Childrens,ALDRIDGE & BARONS LIMITED,14/10/2019,356.00,52000-WITH DRIVER-HIRE OF VEHICLES,HOME TO SCHOOL TRANSPORT,Transport,Revenue
Walsall Council,http://opendatacommunities.org/id/metropolitan-district-council/walsall,WC109-514,31/10/2019,Childrens,ALDRIDGE & BARONS LIMITED,14/10/2019,360.64,52000-WITH DRIVER-HIRE OF VEHICLES,HOME TO SCHOOL TRANSPORT,Transport,Revenue
Walsall Council,http://opendatacommunities.org/id/metropolitan-district-council/walsall,WC109-515,31/10/2019,Childrens,ALDRIDGE & BARONS LIMITED,14/10/2019,368.64,52000-WITH DRIVER-HIRE OF VEHICLES,HOME TO SCHOOL TRANSPORT,Transport,Revenue
Walsall Council,http://opendatacommunities.org/id/metropolitan-district-council/walsall,WC109-516,31/10/2019,Childrens,ALDRIDGE & BARONS LIMITED,14/10/2019,368.64,52000-WITH DRIVER-HIRE OF VEHICLES,HOME TO SCHOOL TRANSPORT,Transport,Revenue
Walsall Council,http://opendatacommunities.org/id/metropolitan-district-council/walsall,WC109-517,31/10/2019,Childrens,ALDRIDGE & BARONS LIMITED,14/10/2019,368.64,52000-WITH DRIVER-HIRE OF VEHICLES,HOME TO SCHOOL TRANSPORT,Transport,Revenue
Walsall Council,http://opendatacommunities.org/id/metropolitan-district-council/walsall,WC109-518,31/10/2019,Childrens,ALDRIDGE & BARONS LIMITED,14/10/2019,368.64,52000-WITH DRIVER-HIRE OF VEHICLES,HOME TO SCHOOL TRANSPORT,Transport,Revenue
Walsall Council,http://opendatacommunities.org/id/metropolitan-district-council/walsall,WC109-519,31/10/2019,Childrens,ALDRIDGE & BARONS LIMITED,14/10/2019,372.80,52000-WITH DRIVER-HIRE OF VEHICLES,HOME TO SCHOOL TRANSPORT,Transport,Revenue
Walsall Council,http://opendatacommunities.org/id/metropolitan-district-council/walsall,WC109-520,31/10/2019,Childrens,ALDRIDGE & BARONS LIMITED,14/10/2019,372.80,52000-WITH DRIVER-HIRE OF VEHICLES,HOME TO SCHOOL TRANSPORT,Transport,Revenue
Walsall Council,http://opendatacommunities.org/id/metropolitan-district-council/walsall,WC109-521,31/10/2019,Childrens,ALDRIDGE & BARONS LIMITED,14/10/2019,385.56,52000-WITH DRIVER-HIRE OF VEHICLES,HOME TO SCHOOL TRANSPORT,Transport,Revenue
Walsall Council,http://opendatacommunities.org/id/metropolitan-district-council/walsall,WC109-522,31/10/2019,Childrens,ALDRIDGE & BARONS LIMITED,14/10/2019,388.80,52000-WITH DRIVER-HIRE OF VEHICLES,HOME TO SCHOOL TRANSPORT,Transport,Revenue
Walsall Council,http://opendatacommunities.org/id/metropolitan-district-council/walsall,WC109-523,31/10/2019,Childrens,ALDRIDGE & BARONS LIMITED,14/10/2019,388.80,52000-WITH DRIVER-HIRE OF VEHICLES,HOME TO SCHOOL TRANSPORT,Transport,Revenue
Walsall Council,http://opendatacommunities.org/id/metropolitan-district-council/walsall,WC109-524,31/10/2019,Childrens,ALDRIDGE & BARONS LIMITED,14/10/2019,388.80,52000-WITH DRIVER-HIRE OF VEHICLES,HOME TO SCHOOL TRANSPORT,Transport,Revenue
Walsall Council,http://opendatacommunities.org/id/metropolitan-district-council/walsall,WC109-525,31/10/2019,Childrens,ALDRIDGE & BARONS LIMITED,14/10/2019,398.00,52000-WITH DRIVER-HIRE OF VEHICLES,HOME TO SCHOOL TRANSPORT,Transport,Revenue
Walsall Council,http://opendatacommunities.org/id/metropolitan-district-council/walsall,WC109-526,31/10/2019,Childrens,ALDRIDGE & BARONS LIMITED,14/10/2019,398.00,52000-WITH DRIVER-HIRE OF VEHICLES,HOME TO SCHOOL TRANSPORT,Transport,Revenue
Walsall Council,http://opendatacommunities.org/id/metropolitan-district-council/walsall,WC109-527,31/10/2019,Childrens,ALDRIDGE & BARONS LIMITED,14/10/2019,400.00,52000-WITH DRIVER-HIRE OF VEHICLES,HOME TO SCHOOL TRANSPORT,Transport,Revenue
Walsall Council,http://opendatacommunities.org/id/metropolitan-district-council/walsall,WC109-528,31/10/2019,Childrens,ALDRIDGE & BARONS LIMITED,14/10/2019,400.00,52000-WITH DRIVER-HIRE OF VEHICLES,HOME TO SCHOOL TRANSPORT,Transport,Revenue
Walsall Council,http://opendatacommunities.org/id/metropolitan-district-council/walsall,WC109-529,31/10/2019,Childrens,ALDRIDGE & BARONS LIMITED,14/10/2019,420.00,52000-WITH DRIVER-HIRE OF VEHICLES,HOME TO SCHOOL TRANSPORT,Transport,Revenue
Walsall Council,http://opendatacommunities.org/id/metropolitan-district-council/walsall,WC109-530,31/10/2019,Childrens,ALDRIDGE & BARONS LIMITED,14/10/2019,436.40,52000-WITH DRIVER-HIRE OF VEHICLES,HOME TO SCHOOL TRANSPORT,Transport,Revenue
Walsall Council,http://opendatacommunities.org/id/metropolitan-district-council/walsall,WC109-531,31/10/2019,Childrens,ALDRIDGE & BARONS LIMITED,14/10/2019,436.40,52000-WITH DRIVER-HIRE OF VEHICLES,HOME TO SCHOOL TRANSPORT,Transport,Revenue
Walsall Council,http://opendatacommunities.org/id/metropolitan-district-council/walsall,WC109-532,31/10/2019,Childrens,ALDRIDGE & BARONS LIMITED,14/10/2019,436.40,52000-WITH DRIVER-HIRE OF VEHICLES,HOME TO SCHOOL TRANSPORT,Transport,Revenue
Walsall Council,http://opendatacommunities.org/id/metropolitan-district-council/walsall,WC109-533,31/10/2019,Childrens,ALDRIDGE & BARONS LIMITED,14/10/2019,436.40,52000-WITH DRIVER-HIRE OF VEHICLES,HOME TO SCHOOL TRANSPORT,Transport,Revenue
Walsall Council,http://opendatacommunities.org/id/metropolitan-district-council/walsall,WC109-534,31/10/2019,Childrens,ALDRIDGE & BARONS LIMITED,14/10/2019,440.00,52000-WITH DRIVER-HIRE OF VEHICLES,HOME TO SCHOOL TRANSPORT,Transport,Revenue
Walsall Council,http://opendatacommunities.org/id/metropolitan-district-council/walsall,WC109-535,31/10/2019,Childrens,ALDRIDGE & BARONS LIMITED,14/10/2019,440.00,52000-WITH DRIVER-HIRE OF VEHICLES,HOME TO SCHOOL TRANSPORT,Transport,Revenue
Walsall Council,http://opendatacommunities.org/id/metropolitan-district-council/walsall,WC109-536,31/10/2019,Childrens,ALDRIDGE & BARONS LIMITED,14/10/2019,440.00,52000-WITH DRIVER-HIRE OF VEHICLES,HOME TO SCHOOL TRANSPORT,Transport,Revenue
Walsall Council,http://opendatacommunities.org/id/metropolitan-district-council/walsall,WC109-537,31/10/2019,Childrens,ALDRIDGE & BARONS LIMITED,14/10/2019,440.00,52000-WITH DRIVER-HIRE OF VEHICLES,HOME TO SCHOOL TRANSPORT,Transport,Revenue
Walsall Council,http://opendatacommunities.org/id/metropolitan-district-council/walsall,WC109-538,31/10/2019,Childrens,ALDRIDGE & BARONS LIMITED,14/10/2019,442.80,52000-WITH DRIVER-HIRE OF VEHICLES,HOME TO SCHOOL TRANSPORT,Transport,Revenue
Walsall Council,http://opendatacommunities.org/id/metropolitan-district-council/walsall,WC109-539,31/10/2019,Childrens,ALDRIDGE & BARONS LIMITED,14/10/2019,442.80,52000-WITH DRIVER-HIRE OF VEHICLES,HOME TO SCHOOL TRANSPORT,Transport,Revenue
Walsall Council,http://opendatacommunities.org/id/metropolitan-district-council/walsall,WC109-540,31/10/2019,Childrens,ALDRIDGE & BARONS LIMITED,14/10/2019,442.80,52000-WITH DRIVER-HIRE OF VEHICLES,HOME TO SCHOOL TRANSPORT,Transport,Revenue
Walsall Council,http://opendatacommunities.org/id/metropolitan-district-council/walsall,WC109-541,31/10/2019,Childrens,ALDRIDGE & BARONS LIMITED,14/10/2019,442.80,52000-WITH DRIVER-HIRE OF VEHICLES,HOME TO SCHOOL TRANSPORT,Transport,Revenue
Walsall Council,http://opendatacommunities.org/id/metropolitan-district-council/walsall,WC109-542,31/10/2019,Childrens,ALDRIDGE & BARONS LIMITED,14/10/2019,450.00,52000-WITH DRIVER-HIRE OF VEHICLES,HOME TO SCHOOL TRANSPORT,Transport,Revenue
Walsall Council,http://opendatacommunities.org/id/metropolitan-district-council/walsall,WC109-543,31/10/2019,Childrens,ALDRIDGE & BARONS LIMITED,14/10/2019,450.00,52000-WITH DRIVER-HIRE OF VEHICLES,HOME TO SCHOOL TRANSPORT,Transport,Revenue
Walsall Council,http://opendatacommunities.org/id/metropolitan-district-council/walsall,WC109-544,31/10/2019,Childrens,ALDRIDGE & BARONS LIMITED,14/10/2019,470.00,52000-WITH DRIVER-HIRE OF VEHICLES,HOME TO SCHOOL TRANSPORT,Transport,Revenue
Walsall Council,http://opendatacommunities.org/id/metropolitan-district-council/walsall,WC109-545,31/10/2019,Childrens,ALDRIDGE & BARONS LIMITED,14/10/2019,470.00,52000-WITH DRIVER-HIRE OF VEHICLES,HOME TO SCHOOL TRANSPORT,Transport,Revenue
Walsall Council,http://opendatacommunities.org/id/metropolitan-district-council/walsall,WC109-546,31/10/2019,Childrens,ALDRIDGE & BARONS LIMITED,14/10/2019,470.00,52000-WITH DRIVER-HIRE OF VEHICLES,HOME TO SCHOOL TRANSPORT,Transport,Revenue
Walsall Council,http://opendatacommunities.org/id/metropolitan-district-council/walsall,WC109-547,31/10/2019,Childrens,ALDRIDGE & BARONS LIMITED,14/10/2019,470.00,52000-WITH DRIVER-HIRE OF VEHICLES,HOME TO SCHOOL TRANSPORT,Transport,Revenue
Walsall Council,http://opendatacommunities.org/id/metropolitan-district-council/walsall,WC109-548,31/10/2019,Childrens,ALDRIDGE & BARONS LIMITED,14/10/2019,478.80,52000-WITH DRIVER-HIRE OF VEHICLES,HOME TO SCHOOL TRANSPORT,Transport,Revenue
Walsall Council,http://opendatacommunities.org/id/metropolitan-district-council/walsall,WC109-549,31/10/2019,Childrens,ALDRIDGE & BARONS LIMITED,14/10/2019,478.80,52000-WITH DRIVER-HIRE OF VEHICLES,HOME TO SCHOOL TRANSPORT,Transport,Revenue
Walsall Council,http://opendatacommunities.org/id/metropolitan-district-council/walsall,WC109-550,31/10/2019,Childrens,ALDRIDGE & BARONS LIMITED,14/10/2019,478.80,52000-WITH DRIVER-HIRE OF VEHICLES,HOME TO SCHOOL TRANSPORT,Transport,Revenue
Walsall Council,http://opendatacommunities.org/id/metropolitan-district-council/walsall,WC109-551,31/10/2019,Childrens,ALDRIDGE & BARONS LIMITED,14/10/2019,478.80,52000-WITH DRIVER-HIRE OF VEHICLES,HOME TO SCHOOL TRANSPORT,Transport,Revenue
Walsall Council,http://opendatacommunities.org/id/metropolitan-district-council/walsall,WC109-552,31/10/2019,Childrens,ALDRIDGE & BARONS LIMITED,14/10/2019,483.20,52000-WITH DRIVER-HIRE OF VEHICLES,HOME TO SCHOOL TRANSPORT,Transport,Revenue
Walsall Council,http://opendatacommunities.org/id/metropolitan-district-council/walsall,WC109-553,31/10/2019,Childrens,ALDRIDGE & BARONS LIMITED,14/10/2019,496.20,52000-WITH DRIVER-HIRE OF VEHICLES,HOME TO SCHOOL TRANSPORT,Transport,Revenue
Walsall Council,http://opendatacommunities.org/id/metropolitan-district-council/walsall,WC109-554,31/10/2019,Childrens,ALDRIDGE & BARONS LIMITED,14/10/2019,533.60,52000-WITH DRIVER-HIRE OF VEHICLES,HOME TO SCHOOL TRANSPORT,Transport,Revenue
Walsall Council,http://opendatacommunities.org/id/metropolitan-district-council/walsall,WC109-555,31/10/2019,Childrens,ALDRIDGE & BARONS LIMITED,14/10/2019,533.60,52000-WITH DRIVER-HIRE OF VEHICLES,HOME TO SCHOOL TRANSPORT,Transport,Revenue
Walsall Council,http://opendatacommunities.org/id/metropolitan-district-council/walsall,WC109-556,31/10/2019,Childrens,ALDRIDGE & BARONS LIMITED,14/10/2019,533.60,52000-WITH DRIVER-HIRE OF VEHICLES,HOME TO SCHOOL TRANSPORT,Transport,Revenue
Walsall Council,http://opendatacommunities.org/id/metropolitan-district-council/walsall,WC109-557,31/10/2019,Childrens,ALDRIDGE & BARONS LIMITED,14/10/2019,533.60,52000-WITH DRIVER-HIRE OF VEHICLES,HOME TO SCHOOL TRANSPORT,Transport,Revenue
Walsall Council,http://opendatacommunities.org/id/metropolitan-district-council/walsall,WC109-558,31/10/2019,Childrens,ALDRIDGE & BARONS LIMITED,14/10/2019,534.00,52000-WITH DRIVER-HIRE OF VEHICLES,HOME TO SCHOOL TRANSPORT,Transport,Revenue
Walsall Council,http://opendatacommunities.org/id/metropolitan-district-council/walsall,WC109-559,31/10/2019,Childrens,ALDRIDGE & BARONS LIMITED,14/10/2019,588.00,52000-WITH DRIVER-HIRE OF VEHICLES,HOME TO SCHOOL TRANSPORT,Transport,Revenue
Walsall Council,http://opendatacommunities.org/id/metropolitan-district-council/walsall,WC109-560,31/10/2019,Childrens,ALDRIDGE & BARONS LIMITED,14/10/2019,633.60,52000-WITH DRIVER-HIRE OF VEHICLES,HOME TO SCHOOL TRANSPORT,Transport,Revenue
Walsall Council,http://opendatacommunities.org/id/metropolitan-district-council/walsall,WC109-561,31/10/2019,Childrens,ALDRIDGE & BARONS LIMITED,14/10/2019,891.20,52000-WITH DRIVER-HIRE OF VEHICLES,HOME TO SCHOOL TRANSPORT,Transport,Revenue
Walsall Council,http://opendatacommunities.org/id/metropolitan-district-council/walsall,WC109-562,31/10/2019,Childrens,ALDRIDGE & BARONS LIMITED,14/10/2019,891.20,52000-WITH DRIVER-HIRE OF VEHICLES,HOME TO SCHOOL TRANSPORT,Transport,Revenue
Walsall Council,http://opendatacommunities.org/id/metropolitan-district-council/walsall,WC109-563,31/10/2019,Childrens,ALDRIDGE & BARONS LIMITED,14/10/2019,965.20,52000-WITH DRIVER-HIRE OF VEHICLES,HOME TO SCHOOL TRANSPORT,Transport,Revenue
Walsall Council,http://opendatacommunities.org/id/metropolitan-district-council/walsall,WC109-564,31/10/2019,Childrens,ALDRIDGE & BARONS LIMITED,14/10/2019,965.20,52000-WITH DRIVER-HIRE OF VEHICLES,HOME TO SCHOOL TRANSPORT,Transport,Revenue
Walsall Council,http://opendatacommunities.org/id/metropolitan-district-council/walsall,WC109-565,31/10/2019,Childrens,ALDRIDGE & BARONS LIMITED,14/10/2019,"1,137.60",52000-WITH DRIVER-HIRE OF VEHICLES,HOME TO SCHOOL TRANSPORT,Transport,Revenue
Walsall Council,http://opendatacommunities.org/id/metropolitan-district-council/walsall,WC109-566,31/10/2019,Childrens,ALDRIDGE & BARONS LIMITED,14/10/2019,"1,264.00",52000-WITH DRIVER-HIRE OF VEHICLES,HOME TO SCHOOL TRANSPORT,Transport,Revenue
Walsall Council,http://opendatacommunities.org/id/metropolitan-district-council/walsall,WC109-567,31/10/2019,Childrens,ALDRIDGE & BARONS LIMITED,14/10/2019,"1,682.26",52000-WITH DRIVER-HIRE OF VEHICLES,HOME TO SCHOOL TRANSPORT,Transport,Revenue
Walsall Council,http://opendatacommunities.org/id/metropolitan-district-council/walsall,WC109-568,31/10/2019,Childrens,ALDRIDGE & BARONS LIMITED,14/10/2019,"1,786.00",52000-WITH DRIVER-HIRE OF VEHICLES,HOME TO SCHOOL TRANSPORT,Transport,Revenue
Walsall Council,http://opendatacommunities.org/id/metropolitan-district-council/walsall,WC109-569,31/10/2019,Childrens,ALDRIDGE & BARONS LIMITED,14/10/2019,"1,885.20",52000-WITH DRIVER-HIRE OF VEHICLES,HOME TO SCHOOL TRANSPORT,Transport,Revenue
Walsall Council,http://opendatacommunities.org/id/metropolitan-district-council/walsall,WC109-570,31/10/2019,Economy & Environment,ALDRIDGE PAINTING & DECORATING LTD,01/10/2019,985.00,60008-REPAIR & MAINTENANCE OF FURNITURE & EQUIPMENT,OAK PARK,Supplies & Services,Revenue
Walsall Council,http://opendatacommunities.org/id/metropolitan-district-council/walsall,WC109-571,31/10/2019,Adult Social Care,REDACTED,04/10/2019,"1,348.80",73506-DIRECT PAYMENT,PHYSICAL SUPPORT,Third Party Payments,Revenue
Walsall Council,http://opendatacommunities.org/id/metropolitan-district-council/walsall,WC109-572,31/10/2019,Adult Social Care,ALEXANDRA HOUSE CARE SERVICES LTD T/A STONEBRIDGE NURSING HOME,09/10/2019,"7,188.60",73500-RESIDENTIAL,LEARNING DISABILITY SUPPORT,Third Party Payments,Revenue
Walsall Council,http://opendatacommunities.org/id/metropolitan-district-council/walsall,WC109-573,31/10/2019,Adult Social Care,REDACTED,04/10/2019,"1,806.56",73506-DIRECT PAYMENT,PHYSICAL SUPPORT,Third Party Payments,Revenue
Walsall Council,http://opendatacommunities.org/id/metropolitan-district-council/walsall,WC109-574,31/10/2019,Adult Social Care,REDACTED,04/10/2019,897.60,73506-DIRECT PAYMENT,PHYSICAL SUPPORT,Third Party Payments,Revenue
Walsall Council,http://opendatacommunities.org/id/metropolitan-district-council/walsall,WC109-575,31/10/2019,Adult Social Care,REDACTED,04/10/2019,"4,740.24",73506-DIRECT PAYMENT,LEARNING DISABILITY SUPPORT,Third Party Payments,Revenue
Walsall Council,http://opendatacommunities.org/id/metropolitan-district-council/walsall,WC109-576,31/10/2019,Adult Social Care,REDACTED,09/10/2019,"1,301.64",73510-SHARED LIVES,LEARNING DISABILITY SUPPORT,Third Party Payments,Revenue
Walsall Council,http://opendatacommunities.org/id/metropolitan-district-council/walsall,WC109-577,31/10/2019,Childrens,REDACTED,21/10/2019,312.24,74509-SPECIAL GUARDIANSHIP ORDERS,ADOPTION ALLOWANCES,Transfer Payments,Revenue
Walsall Council,http://opendatacommunities.org/id/metropolitan-district-council/walsall,WC109-578,31/10/2019,Adult Social Care,REDACTED,04/10/2019,"1,606.08",73506-DIRECT PAYMENT,SOCIAL SUPPORT,Third Party Payments,Revenue
Walsall Council,http://opendatacommunities.org/id/metropolitan-district-council/walsall,WC109-579,31/10/2019,Economy & Environment,ALLIED PUBLICITY SERVICES (MANCHESTER) LIMITED T/A APS GROUP,22/10/2019,911.59,63000-PROFESSIONAL FEES AND SERVICES,BLUE BADGES,Supplies & Services,Revenue
Walsall Council,http://opendatacommunities.org/id/metropolitan-district-council/walsall,WC109-580,31/10/2019,Economy & Environment,ALLIED PUBLICITY SERVICES (MANCHESTER) LIMITED T/A APS GROUP,21/10/2019,"1,010.04",63000-PROFESSIONAL FEES AND SERVICES,BLUE BADGES,Supplies & Services,Revenue
Walsall Council,http://opendatacommunities.org/id/metropolitan-district-council/walsall,WC109-581,31/10/2019,Economy & Environment,ALLSORTS OFFICE SUPPLIES LTD,30/10/2019,"2,601.88",01006-SITE WORKS MAIN CONTRACTORS,CFR 1196 LIBRARY REDESIGN LICHFIELD ST 'HUB',Capital,Capital
Walsall Council,http://opendatacommunities.org/id/metropolitan-district-council/walsall,WC109-582,31/10/2019,Resources and Transformation,ALLSORTS OFFICE SUPPLIES LTD,30/10/2019,"4,095.00",63800-COMPUTER EQUIPMENT AND SUPPLIES,RECHARGEABLE EQUIPMENT,Supplies & Services,Revenue
Walsall Council,http://opendatacommunities.org/id/metropolitan-district-council/walsall,WC109-583,31/10/2019,Adult Social Care,ALMA COURT,09/10/2019,"6,400.00",73500-RESIDENTIAL,MENTAL HEALTH SUPPORT,Third Party Payments,Revenue
Walsall Council,http://opendatacommunities.org/id/metropolitan-district-council/walsall,WC109-584,31/10/2019,Childrens,ALMOZENE NURSERY & CHILDRENS CENTRE,25/10/2019,"7,702.80",66505-OTHER-GRANTS TO OTHER ORGS,EARLY YEARS - 2 YR OLDS,Third Party Payments,Revenue
Walsall Council,http://opendatacommunities.org/id/metropolitan-district-council/walsall,WC109-585,31/10/2019,Adult Social Care,ALPHA HEALTH CARE LTD,23/10/2019,"1,250.00",73025-PROFESSIONAL SERVICES-PRIV CONTRACTOR & OTHER AGENCIES,TRANSITIONAL CARE SUPPORT TEAM,Third Party Payments,Revenue
Walsall Council,http://opendatacommunities.org/id/metropolitan-district-council/walsall,WC109-586,31/10/2019,Adult Social Care,ALPHA HEALTH CARE LTD,09/10/2019,"1,774.96",73500-RESIDENTIAL,MENTAL HEALTH SUPPORT,Third Party Payments,Revenue
Walsall Council,http://opendatacommunities.org/id/metropolitan-district-council/walsall,WC109-587,31/10/2019,Adult Social Care,ALPHA HEALTH CARE LTD,09/10/2019,"1,972.24",73501-RESIDENTIAL EMI,PHYSICAL SUPPORT,Third Party Payments,Revenue
Walsall Council,http://opendatacommunities.org/id/metropolitan-district-council/walsall,WC109-588,31/10/2019,Adult Social Care,ALPHA HEALTH CARE LTD,09/10/2019,"2,143.72",73502-NURSING,PHYSICAL SUPPORT,Third Party Payments,Revenue
Walsall Council,http://opendatacommunities.org/id/metropolitan-district-council/walsall,WC109-589,31/10/2019,Adult Social Care,ALPHA HEALTH CARE LTD,09/10/2019,"2,255.72",73501-RESIDENTIAL EMI,SUPPORT WITH MEMORY & COGNITION,Third Party Payments,Revenue
Walsall Council,http://opendatacommunities.org/id/metropolitan-district-council/walsall,WC109-590,31/10/2019,Adult Social Care,ALPHA HEALTH CARE LTD,09/10/2019,"2,358.08",73503-NURSING EMI,MENTAL HEALTH SUPPORT,Third Party Payments,Revenue
Walsall Council,http://opendatacommunities.org/id/metropolitan-district-council/walsall,WC109-591,31/10/2019,Adult Social Care,ALPHA HEALTH CARE LTD,09/10/2019,"2,358.08",73503-NURSING EMI,MENTAL HEALTH SUPPORT,Third Party Payments,Revenue
Walsall Council,http://opendatacommunities.org/id/metropolitan-district-council/walsall,WC109-592,31/10/2019,Adult Social Care,ALPHA HEALTH CARE LTD,09/10/2019,"2,358.08",73503-NURSING EMI,PHYSICAL SUPPORT,Third Party Payments,Revenue
Walsall Council,http://opendatacommunities.org/id/metropolitan-district-council/walsall,WC109-593,31/10/2019,Adult Social Care,ALPHA HEALTH CARE LTD,09/10/2019,"2,495.72",73501-RESIDENTIAL EMI,MENTAL HEALTH SUPPORT,Third Party Payments,Revenue
Walsall Council,http://opendatacommunities.org/id/metropolitan-district-council/walsall,WC109-594,31/10/2019,Adult Social Care,ALPHA HEALTH CARE LTD,09/10/2019,"2,558.08",73503-NURSING EMI,PHYSICAL SUPPORT,Third Party Payments,Revenue
Walsall Council,http://opendatacommunities.org/id/metropolitan-district-council/walsall,WC109-595,31/10/2019,Adult Social Care,ALPHA HEALTH CARE LTD,09/10/2019,"2,737.76",73503-NURSING EMI,SUPPORT WITH MEMORY & COGNITION,Third Party Payments,Revenue
Walsall Council,http://opendatacommunities.org/id/metropolitan-district-council/walsall,WC109-596,31/10/2019,Adult Social Care,ALPHA HEALTH CARE LTD,09/10/2019,"2,837.76",73503-NURSING EMI,PHYSICAL SUPPORT,Third Party Payments,Revenue
Walsall Council,http://opendatacommunities.org/id/metropolitan-district-council/walsall,WC109-597,31/10/2019,Adult Social Care,ALPHA HEALTH CARE LTD,09/10/2019,"2,881.80",73503-NURSING EMI,PHYSICAL SUPPORT,Third Party Payments,Revenue
Walsall Council,http://opendatacommunities.org/id/metropolitan-district-council/walsall,WC109-598,31/10/2019,Adult Social Care,ALPHA HEALTH CARE LTD,09/10/2019,"2,881.80",73503-NURSING EMI,MENTAL HEALTH SUPPORT,Third Party Payments,Revenue
Walsall Council,http://opendatacommunities.org/id/metropolitan-district-council/walsall,WC109-599,31/10/2019,Adult Social Care,ALPHA HEALTH CARE LTD,09/10/2019,"2,881.80",73503-NURSING EMI,PHYSICAL SUPPORT,Third Party Payments,Revenue
Walsall Council,http://opendatacommunities.org/id/metropolitan-district-council/walsall,WC109-600,31/10/2019,Adult Social Care,ALPHA HEALTH CARE LTD,09/10/2019,"2,881.80",73503-NURSING EMI,MENTAL HEALTH SUPPORT,Third Party Payments,Revenue
Walsall Council,http://opendatacommunities.org/id/metropolitan-district-council/walsall,WC109-601,31/10/2019,Adult Social Care,ALPHA HEALTH CARE LTD,09/10/2019,"2,881.84",73503-NURSING EMI,PHYSICAL SUPPORT,Third Party Payments,Revenue
Walsall Council,http://opendatacommunities.org/id/metropolitan-district-council/walsall,WC109-602,31/10/2019,Adult Social Care,ALPHA HEALTH CARE LTD,09/10/2019,"2,937.88",73503-NURSING EMI,PHYSICAL SUPPORT,Third Party Payments,Revenue
Walsall Council,http://opendatacommunities.org/id/metropolitan-district-council/walsall,WC109-603,31/10/2019,Adult Social Care,ALPHA HEALTH CARE LTD,09/10/2019,"3,035.72",73501-RESIDENTIAL EMI,PHYSICAL SUPPORT,Third Party Payments,Revenue
Walsall Council,http://opendatacommunities.org/id/metropolitan-district-council/walsall,WC109-604,31/10/2019,Adult Social Care,ALPHA HEALTH CARE LTD,09/10/2019,"3,290.36",73503-NURSING EMI,PHYSICAL SUPPORT,Third Party Payments,Revenue
Walsall Council,http://opendatacommunities.org/id/metropolitan-district-council/walsall,WC109-605,31/10/2019,Adult Social Care,ALPHA HEALTH CARE LTD,09/10/2019,"3,350.72",73501-RESIDENTIAL EMI,PHYSICAL SUPPORT,Third Party Payments,Revenue
Walsall Council,http://opendatacommunities.org/id/metropolitan-district-council/walsall,WC109-606,31/10/2019,Adult Social Care,ALPHA HEALTH CARE LTD,09/10/2019,"3,502.17",73503-NURSING EMI,MENTAL HEALTH SUPPORT,Third Party Payments,Revenue
Walsall Council,http://opendatacommunities.org/id/metropolitan-district-council/walsall,WC109-607,31/10/2019,Childrens,ALPHA TRAINING ACADEMY UK LTD,07/10/2019,"7,242.00",66502-TOP UP FUNDING -GRANTS TO SCHOOLS,INDEPENDENT PROVIDERS - POST SCHOOL,Third Party Payments,Revenue
Walsall Council,http://opendatacommunities.org/id/metropolitan-district-council/walsall,WC109-608,31/10/2019,Childrens,AMAH NURSERIES LIMITED T/A BANANA MOON WALSALL,16/10/2019,818.55,77300-ISB-FORMULA ALLOCATION,OUT OF BOROUGH SCHOOLS,Transfer Payments,Revenue
Walsall Council,http://opendatacommunities.org/id/metropolitan-district-council/walsall,WC109-609,31/10/2019,Childrens,AMAH NURSERIES LIMITED T/A BANANA MOON WALSALL,25/10/2019,"4,401.60",66505-OTHER-GRANTS TO OTHER ORGS,EARLY YEARS - 2 YR OLDS,Third Party Payments,Revenue
Walsall Council,http://opendatacommunities.org/id/metropolitan-district-council/walsall,WC109-610,31/10/2019,Childrens,AMAH NURSERIES LIMITED T/A BANANA MOON WALSALL,25/10/2019,"8,906.63",66505-OTHER-GRANTS TO OTHER ORGS,EARLY YEARS - 3 YR OLDS,Third Party Payments,Revenue
Walsall Council,http://opendatacommunities.org/id/metropolitan-district-council/walsall,WC109-611,31/10/2019,Childrens,REDACTED,21/10/2019,318.08,74510-RESIDENTS ORDERS,ADOPTION ALLOWANCES,Third Party Payments,Revenue
Walsall Council,http://opendatacommunities.org/id/metropolitan-district-council/walsall,WC109-612,31/10/2019,Childrens,REDACTED,21/10/2019,370.28,74510-RESIDENTS ORDERS,ADOPTION ALLOWANCES,Third Party Payments,Revenue
Walsall Council,http://opendatacommunities.org/id/metropolitan-district-council/walsall,WC109-613,31/10/2019,Adult Social Care,REDACTED,04/10/2019,"1,128.76",73506-DIRECT PAYMENT,LEARNING DISABILITY SUPPORT,Third Party Payments,Revenue
Walsall Council,http://opendatacommunities.org/id/metropolitan-district-council/walsall,WC109-614,31/10/2019,Childrens,REDACTED,21/10/2019,808.04,74009-ADOPTION ALLOWANCE,ADOPTION ALLOWANCES,Transfer Payments,Revenue
Walsall Council,http://opendatacommunities.org/id/metropolitan-district-council/walsall,WC109-615,31/10/2019,Childrens,REDACTED,04/10/2019,110.00,74503-BIRTHDAY ALLOWANCE-FOSTER CARERS,INTERNAL FOSTER CARE PROVISION,Transfer Payments,Revenue
Walsall Council,http://opendatacommunities.org/id/metropolitan-district-council/walsall,WC109-616,31/10/2019,Childrens,REDACTED,04/10/2019,600.00,74501-MAINTENANCE ALLOWANCE-FOSTER CARERS,INTERNAL FOSTER CARE PROVISION,Transfer Payments,Revenue
Walsall Council,http://opendatacommunities.org/id/metropolitan-district-council/walsall,WC109-617,31/10/2019,Childrens,REDACTED,04/10/2019,"1,000.00",74508-INTERNAL FOSTER CARERS-CARER FEES,INTERNAL FOSTER CARE PROVISION,Transfer Payments,Revenue
Walsall Council,http://opendatacommunities.org/id/metropolitan-district-council/walsall,WC109-618,31/10/2019,Childrens,AMANS TRAVEL LTD,14/10/2019,502.88,52000-WITH DRIVER-HIRE OF VEHICLES,HOME TO SCHOOL TRANSPORT,Transport,Revenue
Walsall Council,http://opendatacommunities.org/id/metropolitan-district-council/walsall,WC109-619,31/10/2019,Childrens,AMANS TRAVEL LTD,14/10/2019,503.60,52000-WITH DRIVER-HIRE OF VEHICLES,HOME TO SCHOOL TRANSPORT,Transport,Revenue
Walsall Council,http://opendatacommunities.org/id/metropolitan-district-council/walsall,WC109-620,31/10/2019,Childrens,AMANS TRAVEL LTD,14/10/2019,503.60,52000-WITH DRIVER-HIRE OF VEHICLES,HOME TO SCHOOL TRANSPORT,Transport,Revenue
Walsall Council,http://opendatacommunities.org/id/metropolitan-district-council/walsall,WC109-621,31/10/2019,Adult Social Care,REDACTED,04/10/2019,"1,014.48",73506-DIRECT PAYMENT,LEARNING DISABILITY SUPPORT,Third Party Payments,Revenue
Walsall Council,http://opendatacommunities.org/id/metropolitan-district-council/walsall,WC109-622,31/10/2019,Economy & Environment,AMEY LG LIMITED,01/11/2019,493.55,01006-SITE WORKS MAIN CONTRACTORS,CFR 1371 REPLACEMENT FOOTBRIDGE COALPOOL LANE,Capital,Capital
Walsall Council,http://opendatacommunities.org/id/metropolitan-district-council/walsall,WC109-623,31/10/2019,Economy & Environment,AMEY LG LIMITED,11/10/2019,"4,016.78",01002-PROJECT FEES,CFR 1280 BLOXWICH NORTH PARK & RIDE NPIF Dft FUNDED,Capital,Capital
Walsall Council,http://opendatacommunities.org/id/metropolitan-district-council/walsall,WC109-624,31/10/2019,Economy & Environment,AMEY LG LIMITED,21/10/2019,"11,046.12",73025-PROFESSIONAL SERVICES-PRIV CONTRACTOR & OTHER AGENCIES,TRAFFIC MANAGEMENT,Third Party Payments,Revenue
Walsall Council,http://opendatacommunities.org/id/metropolitan-district-council/walsall,WC109-625,31/10/2019,Economy & Environment,AMEY LG LIMITED,25/10/2019,"20,127.63",73025-PROFESSIONAL SERVICES-PRIV CONTRACTOR & OTHER AGENCIES,SECTION 38 OF HIGHWAYS ACT - SUPERVISION,Third Party Payments,Revenue
Walsall Council,http://opendatacommunities.org/id/metropolitan-district-council/walsall,WC109-626,31/10/2019,Childrens,AMG NURSING CARE SERVICES,21/10/2019,"1,110.72",63000-PROFESSIONAL FEES AND SERVICES,DIRECTLY COMMISSIONED NURSING SERVICES,Supplies & Services,Revenue
Walsall Council,http://opendatacommunities.org/id/metropolitan-district-council/walsall,WC109-627,31/10/2019,Childrens,AMG NURSING CARE SERVICES,21/10/2019,"1,151.92",63000-PROFESSIONAL FEES AND SERVICES,DIRECTLY COMMISSIONED NURSING SERVICES,Supplies & Services,Revenue
Walsall Council,http://opendatacommunities.org/id/metropolitan-district-council/walsall,WC109-628,31/10/2019,Childrens,AMG NURSING CARE SERVICES,22/10/2019,"1,480.96",63000-PROFESSIONAL FEES AND SERVICES,DIRECTLY COMMISSIONED NURSING SERVICES,Supplies & Services,Revenue
Walsall Council,http://opendatacommunities.org/id/metropolitan-district-council/walsall,WC109-629,31/10/2019,Childrens,AMG NURSING CARE SERVICES,25/10/2019,"1,894.04",63000-PROFESSIONAL FEES AND SERVICES,DIRECTLY COMMISSIONED NURSING SERVICES,Supplies & Services,Revenue
Walsall Council,http://opendatacommunities.org/id/metropolitan-district-council/walsall,WC109-630,31/10/2019,Childrens,AMG NURSING CARE SERVICES,21/10/2019,"2,081.20",63000-PROFESSIONAL FEES AND SERVICES,DIRECTLY COMMISSIONED NURSING SERVICES,Supplies & Services,Revenue
Walsall Council,http://opendatacommunities.org/id/metropolitan-district-council/walsall,WC109-631,31/10/2019,Childrens,AMG NURSING CARE SERVICES,29/10/2019,"2,239.21",63000-PROFESSIONAL FEES AND SERVICES,DIRECTLY COMMISSIONED NURSING SERVICES,Supplies & Services,Revenue
Walsall Council,http://opendatacommunities.org/id/metropolitan-district-council/walsall,WC109-632,31/10/2019,Childrens,AMG NURSING CARE SERVICES,21/10/2019,"2,259.22",63000-PROFESSIONAL FEES AND SERVICES,DIRECTLY COMMISSIONED NURSING SERVICES,Supplies & Services,Revenue
Walsall Council,http://opendatacommunities.org/id/metropolitan-district-council/walsall,WC109-633,31/10/2019,Childrens,AMG NURSING CARE SERVICES,25/10/2019,"2,263.55",63000-PROFESSIONAL FEES AND SERVICES,DIRECTLY COMMISSIONED NURSING SERVICES,Supplies & Services,Revenue
Walsall Council,http://opendatacommunities.org/id/metropolitan-district-council/walsall,WC109-634,31/10/2019,Childrens,AMG NURSING CARE SERVICES,11/10/2019,"2,274.48",63000-PROFESSIONAL FEES AND SERVICES,DIRECTLY COMMISSIONED NURSING SERVICES,Supplies & Services,Revenue
Walsall Council,http://opendatacommunities.org/id/metropolitan-district-council/walsall,WC109-635,31/10/2019,Childrens,AMG NURSING CARE SERVICES,21/10/2019,"2,274.48",63000-PROFESSIONAL FEES AND SERVICES,DIRECTLY COMMISSIONED NURSING SERVICES,Supplies & Services,Revenue
Walsall Council,http://opendatacommunities.org/id/metropolitan-district-council/walsall,WC109-636,31/10/2019,Childrens,AMG NURSING CARE SERVICES,21/10/2019,"2,274.48",63000-PROFESSIONAL FEES AND SERVICES,DIRECTLY COMMISSIONED NURSING SERVICES,Supplies & Services,Revenue
Walsall Council,http://opendatacommunities.org/id/metropolitan-district-council/walsall,WC109-637,31/10/2019,Childrens,AMG NURSING CARE SERVICES,21/10/2019,"2,274.48",63000-PROFESSIONAL FEES AND SERVICES,DIRECTLY COMMISSIONED NURSING SERVICES,Supplies & Services,Revenue
Walsall Council,http://opendatacommunities.org/id/metropolitan-district-council/walsall,WC109-638,31/10/2019,Childrens,AMG NURSING CARE SERVICES,21/10/2019,"2,274.48",63000-PROFESSIONAL FEES AND SERVICES,DIRECTLY COMMISSIONED NURSING SERVICES,Supplies & Services,Revenue
Walsall Council,http://opendatacommunities.org/id/metropolitan-district-council/walsall,WC109-639,31/10/2019,Childrens,AMG NURSING CARE SERVICES,04/10/2019,"2,315.68",63000-PROFESSIONAL FEES AND SERVICES,DIRECTLY COMMISSIONED NURSING SERVICES,Supplies & Services,Revenue
Walsall Council,http://opendatacommunities.org/id/metropolitan-district-council/walsall,WC109-640,31/10/2019,Childrens,AMG NURSING CARE SERVICES,21/10/2019,"2,644.72",63000-PROFESSIONAL FEES AND SERVICES,DIRECTLY COMMISSIONED NURSING SERVICES,Supplies & Services,Revenue
Walsall Council,http://opendatacommunities.org/id/metropolitan-district-council/walsall,WC109-641,31/10/2019,Adult Social Care,AMG NURSING CARE SERVICES,14/10/2019,"2,730.00",73508-COMMUNITY SUPPORTED LIVING/SUPPORTED ACCOMMODATION,PHYSICAL SUPPORT,Third Party Payments,Revenue
Walsall Council,http://opendatacommunities.org/id/metropolitan-district-council/walsall,WC109-642,31/10/2019,Childrens,REDACTED,21/10/2019,340.00,74508-INTERNAL FOSTER CARERS-CARER FEES,FAMILY & FRIENDS FOSTER CARE PROVISION,Transfer Payments,Revenue
Walsall Council,http://opendatacommunities.org/id/metropolitan-district-council/walsall,WC109-643,31/10/2019,Childrens,REDACTED,21/10/2019,600.00,74501-MAINTENANCE ALLOWANCE-FOSTER CARERS,FAMILY & FRIENDS FOSTER CARE PROVISION,Transfer Payments,Revenue
Walsall Council,http://opendatacommunities.org/id/metropolitan-district-council/walsall,WC109-644,31/10/2019,Childrens,REDACTED,21/10/2019,425.08,74510-RESIDENTS ORDERS,ADOPTION ALLOWANCES,Third Party Payments,Revenue
Walsall Council,http://opendatacommunities.org/id/metropolitan-district-council/walsall,WC109-645,31/10/2019,Adult Social Care,ANCHOR,09/10/2019,380.35,73500-RESIDENTIAL,PHYSICAL SUPPORT,Third Party Payments,Revenue
Walsall Council,http://opendatacommunities.org/id/metropolitan-district-council/walsall,WC109-646,31/10/2019,Adult Social Care,ANCHOR,09/10/2019,"1,416.00",73501-RESIDENTIAL EMI,SOCIAL SUPPORT,Third Party Payments,Revenue
Walsall Council,http://opendatacommunities.org/id/metropolitan-district-council/walsall,WC109-647,31/10/2019,Adult Social Care,ANCHOR,09/10/2019,"1,774.96",73500-RESIDENTIAL,PHYSICAL SUPPORT,Third Party Payments,Revenue
Walsall Council,http://opendatacommunities.org/id/metropolitan-district-council/walsall,WC109-648,31/10/2019,Adult Social Care,ANCHOR,09/10/2019,"1,774.96",73500-RESIDENTIAL,PHYSICAL SUPPORT,Third Party Payments,Revenue
Walsall Council,http://opendatacommunities.org/id/metropolitan-district-council/walsall,WC109-649,31/10/2019,Adult Social Care,ANCHOR,09/10/2019,"1,774.96",73500-RESIDENTIAL,SUPPORT WITH MEMORY & COGNITION,Third Party Payments,Revenue
Walsall Council,http://opendatacommunities.org/id/metropolitan-district-council/walsall,WC109-650,31/10/2019,Adult Social Care,ANCHOR,09/10/2019,"1,774.96",73500-RESIDENTIAL,PHYSICAL SUPPORT,Third Party Payments,Revenue
Walsall Council,http://opendatacommunities.org/id/metropolitan-district-council/walsall,WC109-651,31/10/2019,Adult Social Care,ANCHOR,09/10/2019,"1,774.96",73500-RESIDENTIAL,PHYSICAL SUPPORT,Third Party Payments,Revenue
Walsall Council,http://opendatacommunities.org/id/metropolitan-district-council/walsall,WC109-652,31/10/2019,Adult Social Care,ANCHOR,09/10/2019,"1,774.96",73500-RESIDENTIAL,SUPPORT WITH MEMORY & COGNITION,Third Party Payments,Revenue
Walsall Council,http://opendatacommunities.org/id/metropolitan-district-council/walsall,WC109-653,31/10/2019,Adult Social Care,ANCHOR,09/10/2019,"1,834.96",73500-RESIDENTIAL,PHYSICAL SUPPORT,Third Party Payments,Revenue
Walsall Council,http://opendatacommunities.org/id/metropolitan-district-council/walsall,WC109-654,31/10/2019,Adult Social Care,ANCHOR,09/10/2019,"1,901.80",73501-RESIDENTIAL EMI,PHYSICAL SUPPORT,Third Party Payments,Revenue
Walsall Council,http://opendatacommunities.org/id/metropolitan-district-council/walsall,WC109-655,31/10/2019,Adult Social Care,ANCHOR,09/10/2019,"1,926.12",73500-RESIDENTIAL,PHYSICAL SUPPORT,Third Party Payments,Revenue
Walsall Council,http://opendatacommunities.org/id/metropolitan-district-council/walsall,WC109-656,31/10/2019,Adult Social Care,ANCHOR,09/10/2019,"1,934.96",73500-RESIDENTIAL,PHYSICAL SUPPORT,Third Party Payments,Revenue
Walsall Council,http://opendatacommunities.org/id/metropolitan-district-council/walsall,WC109-657,31/10/2019,Adult Social Care,ANCHOR,09/10/2019,"1,935.72",73501-RESIDENTIAL EMI,PHYSICAL SUPPORT,Third Party Payments,Revenue
Walsall Council,http://opendatacommunities.org/id/metropolitan-district-council/walsall,WC109-658,31/10/2019,Adult Social Care,ANCHOR,09/10/2019,"1,972.24",73501-RESIDENTIAL EMI,PHYSICAL SUPPORT,Third Party Payments,Revenue
Walsall Council,http://opendatacommunities.org/id/metropolitan-district-council/walsall,WC109-659,31/10/2019,Adult Social Care,ANCHOR,09/10/2019,"1,972.24",73501-RESIDENTIAL EMI,MENTAL HEALTH SUPPORT,Third Party Payments,Revenue
Walsall Council,http://opendatacommunities.org/id/metropolitan-district-council/walsall,WC109-660,31/10/2019,Adult Social Care,ANCHOR,09/10/2019,"1,972.24",73501-RESIDENTIAL EMI,MENTAL HEALTH SUPPORT,Third Party Payments,Revenue
Walsall Council,http://opendatacommunities.org/id/metropolitan-district-council/walsall,WC109-661,31/10/2019,Adult Social Care,ANCHOR,09/10/2019,"1,972.24",73501-RESIDENTIAL EMI,PHYSICAL SUPPORT,Third Party Payments,Revenue
Walsall Council,http://opendatacommunities.org/id/metropolitan-district-council/walsall,WC109-662,31/10/2019,Adult Social Care,ANCHOR,09/10/2019,"1,972.24",73501-RESIDENTIAL EMI,PHYSICAL SUPPORT,Third Party Payments,Revenue
Walsall Council,http://opendatacommunities.org/id/metropolitan-district-council/walsall,WC109-663,31/10/2019,Adult Social Care,ANCHOR,09/10/2019,"1,972.24",73501-RESIDENTIAL EMI,PHYSICAL SUPPORT,Third Party Payments,Revenue
Walsall Council,http://opendatacommunities.org/id/metropolitan-district-council/walsall,WC109-664,31/10/2019,Adult Social Care,ANCHOR,09/10/2019,"1,972.24",73501-RESIDENTIAL EMI,SUPPORT WITH MEMORY & COGNITION,Third Party Payments,Revenue
Walsall Council,http://opendatacommunities.org/id/metropolitan-district-council/walsall,WC109-665,31/10/2019,Adult Social Care,ANCHOR,09/10/2019,"1,972.24",73501-RESIDENTIAL EMI,MENTAL HEALTH SUPPORT,Third Party Payments,Revenue
Walsall Council,http://opendatacommunities.org/id/metropolitan-district-council/walsall,WC109-666,31/10/2019,Adult Social Care,ANCHOR,09/10/2019,"1,972.24",73501-RESIDENTIAL EMI,MENTAL HEALTH SUPPORT,Third Party Payments,Revenue
Walsall Council,http://opendatacommunities.org/id/metropolitan-district-council/walsall,WC109-667,31/10/2019,Adult Social Care,ANCHOR,09/10/2019,"1,972.24",73501-RESIDENTIAL EMI,PHYSICAL SUPPORT,Third Party Payments,Revenue
Walsall Council,http://opendatacommunities.org/id/metropolitan-district-council/walsall,WC109-668,31/10/2019,Adult Social Care,ANCHOR,09/10/2019,"1,972.24",73501-RESIDENTIAL EMI,PHYSICAL SUPPORT,Third Party Payments,Revenue
Walsall Council,http://opendatacommunities.org/id/metropolitan-district-council/walsall,WC109-669,31/10/2019,Adult Social Care,ANCHOR,09/10/2019,"2,054.96",73500-RESIDENTIAL,SENSORY SUPPORT,Third Party Payments,Revenue
Walsall Council,http://opendatacommunities.org/id/metropolitan-district-council/walsall,WC109-670,31/10/2019,Adult Social Care,ANCHOR,09/10/2019,"2,094.96",73500-RESIDENTIAL,SOCIAL SUPPORT,Third Party Payments,Revenue
Walsall Council,http://opendatacommunities.org/id/metropolitan-district-council/walsall,WC109-671,31/10/2019,Adult Social Care,ANCHOR,09/10/2019,"2,094.96",73500-RESIDENTIAL,PHYSICAL SUPPORT,Third Party Payments,Revenue
Walsall Council,http://opendatacommunities.org/id/metropolitan-district-council/walsall,WC109-672,31/10/2019,Adult Social Care,ANCHOR,09/10/2019,"2,114.96",73500-RESIDENTIAL,PHYSICAL SUPPORT,Third Party Payments,Revenue
Walsall Council,http://opendatacommunities.org/id/metropolitan-district-council/walsall,WC109-673,31/10/2019,Adult Social Care,ANCHOR,09/10/2019,"2,144.56",73501-RESIDENTIAL EMI,SENSORY SUPPORT,Third Party Payments,Revenue
Walsall Council,http://opendatacommunities.org/id/metropolitan-district-council/walsall,WC109-674,31/10/2019,Adult Social Care,ANCHOR,09/10/2019,"2,175.72",73501-RESIDENTIAL EMI,MENTAL HEALTH SUPPORT,Third Party Payments,Revenue
Walsall Council,http://opendatacommunities.org/id/metropolitan-district-council/walsall,WC109-675,31/10/2019,Adult Social Care,ANCHOR,09/10/2019,"2,266.12",73500-RESIDENTIAL,PHYSICAL SUPPORT,Third Party Payments,Revenue
Walsall Council,http://opendatacommunities.org/id/metropolitan-district-council/walsall,WC109-676,31/10/2019,Adult Social Care,ANCHOR,09/10/2019,"2,292.24",73501-RESIDENTIAL EMI,SUPPORT WITH MEMORY & COGNITION,Third Party Payments,Revenue
Walsall Council,http://opendatacommunities.org/id/metropolitan-district-council/walsall,WC109-677,31/10/2019,Adult Social Care,ANCHOR,09/10/2019,"2,292.24",73501-RESIDENTIAL EMI,SUPPORT WITH MEMORY & COGNITION,Third Party Payments,Revenue
Walsall Council,http://opendatacommunities.org/id/metropolitan-district-council/walsall,WC109-678,31/10/2019,Adult Social Care,ANCHOR,09/10/2019,"2,312.24",73501-RESIDENTIAL EMI,PHYSICAL SUPPORT,Third Party Payments,Revenue
Walsall Council,http://opendatacommunities.org/id/metropolitan-district-council/walsall,WC109-679,31/10/2019,Adult Social Care,ANCHOR,09/10/2019,"2,312.24",73501-RESIDENTIAL EMI,PHYSICAL SUPPORT,Third Party Payments,Revenue
Walsall Council,http://opendatacommunities.org/id/metropolitan-district-council/walsall,WC109-680,31/10/2019,Adult Social Care,ANCHOR,09/10/2019,"2,312.24",73501-RESIDENTIAL EMI,SUPPORT WITH MEMORY & COGNITION,Third Party Payments,Revenue
Walsall Council,http://opendatacommunities.org/id/metropolitan-district-council/walsall,WC109-681,31/10/2019,Adult Social Care,ANCHOR,09/10/2019,"2,312.24",73501-RESIDENTIAL EMI,PHYSICAL SUPPORT,Third Party Payments,Revenue
Walsall Council,http://opendatacommunities.org/id/metropolitan-district-council/walsall,WC109-682,31/10/2019,Adult Social Care,ANCHOR,09/10/2019,"2,332.24",73501-RESIDENTIAL EMI,PHYSICAL SUPPORT,Third Party Payments,Revenue
Walsall Council,http://opendatacommunities.org/id/metropolitan-district-council/walsall,WC109-683,31/10/2019,Adult Social Care,ANCHOR,09/10/2019,"2,332.24",73501-RESIDENTIAL EMI,PHYSICAL SUPPORT,Third Party Payments,Revenue
Walsall Council,http://opendatacommunities.org/id/metropolitan-district-council/walsall,WC109-684,31/10/2019,Adult Social Care,ANCHOR,09/10/2019,"2,332.24",73501-RESIDENTIAL EMI,PHYSICAL SUPPORT,Third Party Payments,Revenue
Walsall Council,http://opendatacommunities.org/id/metropolitan-district-council/walsall,WC109-685,31/10/2019,Adult Social Care,ANCHOR,09/10/2019,"2,332.24",73501-RESIDENTIAL EMI,PHYSICAL SUPPORT,Third Party Payments,Revenue
Walsall Council,http://opendatacommunities.org/id/metropolitan-district-council/walsall,WC109-686,31/10/2019,Adult Social Care,ANCHOR CAREHOMES LTD - HARDEN HALL,25/10/2019,"1,865.35",73025-PROFESSIONAL SERVICES-PRIV CONTRACTOR & OTHER AGENCIES,TRANSITIONAL CARE SUPPORT TEAM,Third Party Payments,Revenue
Walsall Council,http://opendatacommunities.org/id/metropolitan-district-council/walsall,WC109-687,31/10/2019,Childrens,REDACTED,21/10/2019,312.24,74509-SPECIAL GUARDIANSHIP ORDERS,ADOPTION ALLOWANCES,Transfer Payments,Revenue
Walsall Council,http://opendatacommunities.org/id/metropolitan-district-council/walsall,WC109-688,31/10/2019,Childrens,REDACTED,04/10/2019,720.00,74501-MAINTENANCE ALLOWANCE-FOSTER CARERS,INTERNAL FOSTER CARE PROVISION,Transfer Payments,Revenue
Walsall Council,http://opendatacommunities.org/id/metropolitan-district-council/walsall,WC109-689,31/10/2019,Childrens,REDACTED,04/10/2019,"1,000.00",74508-INTERNAL FOSTER CARERS-CARER FEES,INTERNAL FOSTER CARE PROVISION,Transfer Payments,Revenue
Walsall Council,http://opendatacommunities.org/id/metropolitan-district-council/walsall,WC109-690,31/10/2019,Adult Social Care,REDACTED,04/10/2019,619.24,73506-DIRECT PAYMENT,LEARNING DISABILITY SUPPORT,Third Party Payments,Revenue
Walsall Council,http://opendatacommunities.org/id/metropolitan-district-council/walsall,WC109-691,31/10/2019,Adult Social Care,REDACTED,04/10/2019,"2,494.40",73506-DIRECT PAYMENT,PHYSICAL SUPPORT,Third Party Payments,Revenue
Walsall Council,http://opendatacommunities.org/id/metropolitan-district-council/walsall,WC109-692,31/10/2019,Childrens,ANDREWS ELECTRICAL LTD,22/10/2019,"1,187.00",01006-SITE WORKS MAIN CONTRACTORS,CFR 1297 CASTLE BUSINESS & ENTERPRISE COLLEGE EXPANSION,Capital,Capital
Walsall Council,http://opendatacommunities.org/id/metropolitan-district-council/walsall,WC109-693,31/10/2019,Childrens,ANDREWS ELECTRICAL LTD,22/10/2019,"1,502.00",01006-SITE WORKS MAIN CONTRACTORS,CFR 1193 LINDENS PRIMARY ROOFING & ASPHALT WORKS - FINAL STAGE,Capital,Capital
Walsall Council,http://opendatacommunities.org/id/metropolitan-district-council/walsall,WC109-694,31/10/2019,Childrens,ANDREWS ELECTRICAL LTD,22/10/2019,"1,650.00",01006-SITE WORKS MAIN CONTRACTORS,CFR 1297 CASTLE BUSINESS & ENTERPRISE COLLEGE EXPANSION,Capital,Capital
Walsall Council,http://opendatacommunities.org/id/metropolitan-district-council/walsall,WC109-695,31/10/2019,Childrens,ANDREWS ELECTRICAL LTD,24/10/2019,"8,226.00",01006-SITE WORKS MAIN CONTRACTORS,CFR 1297 CASTLE BUSINESS & ENTERPRISE COLLEGE EXPANSION,Capital,Capital
Walsall Council,http://opendatacommunities.org/id/metropolitan-district-council/walsall,WC109-696,31/10/2019,Childrens,ANGEL SPRINGS LTD T/A WATERLOGIC,02/10/2019,217.72,60539-CLEANING MATERIALS,TRANSITION AND LEAVING CARE SUPPORT,Supplies & Services,Revenue
Walsall Council,http://opendatacommunities.org/id/metropolitan-district-council/walsall,WC109-697,31/10/2019,Childrens,REDACTED,21/10/2019,368.76,74509-SPECIAL GUARDIANSHIP ORDERS,ADOPTION ALLOWANCES,Transfer Payments,Revenue
Walsall Council,http://opendatacommunities.org/id/metropolitan-district-council/walsall,WC109-698,31/10/2019,Childrens,REDACTED,21/10/2019,368.76,74509-SPECIAL GUARDIANSHIP ORDERS,ADOPTION ALLOWANCES,Transfer Payments,Revenue
Walsall Council,http://opendatacommunities.org/id/metropolitan-district-council/walsall,WC109-699,31/10/2019,Childrens,REDACTED,21/10/2019,500.16,74509-SPECIAL GUARDIANSHIP ORDERS,ADOPTION ALLOWANCES,Transfer Payments,Revenue
Walsall Council,http://opendatacommunities.org/id/metropolitan-district-council/walsall,WC109-700,31/10/2019,Childrens,REDACTED,21/10/2019,312.04,74509-SPECIAL GUARDIANSHIP ORDERS,ADOPTION ALLOWANCES,Transfer Payments,Revenue
Walsall Council,http://opendatacommunities.org/id/metropolitan-district-council/walsall,WC109-701,31/10/2019,Childrens,ANGELS AND BUTTERFLIES CHILDMINDING,18/10/2019,550.20,66505-OTHER-GRANTS TO OTHER ORGS,EARLY YEARS - 2 YR OLDS,Third Party Payments,Revenue
Walsall Council,http://opendatacommunities.org/id/metropolitan-district-council/walsall,WC109-702,31/10/2019,Adult Social Care,REDACTED,04/10/2019,"1,175.20",73506-DIRECT PAYMENT,PHYSICAL SUPPORT,Third Party Payments,Revenue
Walsall Council,http://opendatacommunities.org/id/metropolitan-district-council/walsall,WC109-703,31/10/2019,Adult Social Care,ANSON COURT RESIDENTIAL HOME,09/10/2019,"-1,246.00",73501-RESIDENTIAL EMI,PHYSICAL SUPPORT,Third Party Payments,Revenue
Walsall Council,http://opendatacommunities.org/id/metropolitan-district-council/walsall,WC109-704,31/10/2019,Adult Social Care,ANSON COURT RESIDENTIAL HOME,09/10/2019,-562.86,73501-RESIDENTIAL EMI,PHYSICAL SUPPORT,Third Party Payments,Revenue
Walsall Council,http://opendatacommunities.org/id/metropolitan-district-council/walsall,WC109-705,31/10/2019,Adult Social Care,ANSON COURT RESIDENTIAL HOME,21/10/2019,543.06,73025-PROFESSIONAL SERVICES-PRIV CONTRACTOR & OTHER AGENCIES,TRANSITIONAL CARE SUPPORT TEAM,Third Party Payments,Revenue
Walsall Council,http://opendatacommunities.org/id/metropolitan-district-council/walsall,WC109-706,31/10/2019,Adult Social Care,ANSON COURT RESIDENTIAL HOME,09/10/2019,840.00,73501-RESIDENTIAL EMI,PHYSICAL SUPPORT,Third Party Payments,Revenue
Walsall Council,http://opendatacommunities.org/id/metropolitan-district-council/walsall,WC109-707,31/10/2019,Adult Social Care,ANSON COURT RESIDENTIAL HOME,09/10/2019,"1,419.74",73501-RESIDENTIAL EMI,PHYSICAL SUPPORT,Third Party Payments,Revenue
Walsall Council,http://opendatacommunities.org/id/metropolitan-district-council/walsall,WC109-708,31/10/2019,Adult Social Care,ANSON COURT RESIDENTIAL HOME,21/10/2019,"1,426.09",73025-PROFESSIONAL SERVICES-PRIV CONTRACTOR & OTHER AGENCIES,TRANSITIONAL CARE SUPPORT TEAM,Third Party Payments,Revenue
Walsall Council,http://opendatacommunities.org/id/metropolitan-district-council/walsall,WC109-709,31/10/2019,Adult Social Care,ANSON COURT RESIDENTIAL HOME,09/10/2019,"1,861.92",73501-RESIDENTIAL EMI,PHYSICAL SUPPORT,Third Party Payments,Revenue
Walsall Council,http://opendatacommunities.org/id/metropolitan-district-council/walsall,WC109-710,31/10/2019,Adult Social Care,ANSON COURT RESIDENTIAL HOME,09/10/2019,"1,972.24",73501-RESIDENTIAL EMI,PHYSICAL SUPPORT,Third Party Payments,Revenue
Walsall Council,http://opendatacommunities.org/id/metropolitan-district-council/walsall,WC109-711,31/10/2019,Adult Social Care,ANSON COURT RESIDENTIAL HOME,09/10/2019,"1,972.24",73501-RESIDENTIAL EMI,SUPPORT WITH MEMORY & COGNITION,Third Party Payments,Revenue
Walsall Council,http://opendatacommunities.org/id/metropolitan-district-council/walsall,WC109-712,31/10/2019,Adult Social Care,ANSON COURT RESIDENTIAL HOME,09/10/2019,"1,972.24",73501-RESIDENTIAL EMI,MENTAL HEALTH SUPPORT,Third Party Payments,Revenue
Walsall Council,http://opendatacommunities.org/id/metropolitan-district-council/walsall,WC109-713,31/10/2019,Adult Social Care,ANSON COURT RESIDENTIAL HOME,09/10/2019,"1,972.24",73501-RESIDENTIAL EMI,PHYSICAL SUPPORT,Third Party Payments,Revenue
Walsall Council,http://opendatacommunities.org/id/metropolitan-district-council/walsall,WC109-714,31/10/2019,Adult Social Care,ANSON COURT RESIDENTIAL HOME,09/10/2019,"1,972.24",73501-RESIDENTIAL EMI,PHYSICAL SUPPORT,Third Party Payments,Revenue
Walsall Council,http://opendatacommunities.org/id/metropolitan-district-council/walsall,WC109-715,31/10/2019,Adult Social Care,ANSON COURT RESIDENTIAL HOME,09/10/2019,"1,972.24",73501-RESIDENTIAL EMI,SUPPORT WITH MEMORY & COGNITION,Third Party Payments,Revenue
Walsall Council,http://opendatacommunities.org/id/metropolitan-district-council/walsall,WC109-716,31/10/2019,Adult Social Care,ANSON COURT RESIDENTIAL HOME,09/10/2019,"1,972.24",73501-RESIDENTIAL EMI,SUPPORT WITH MEMORY & COGNITION,Third Party Payments,Revenue
Walsall Council,http://opendatacommunities.org/id/metropolitan-district-council/walsall,WC109-717,31/10/2019,Adult Social Care,ANSON COURT RESIDENTIAL HOME,09/10/2019,"1,972.24",73501-RESIDENTIAL EMI,SOCIAL SUPPORT,Third Party Payments,Revenue
Walsall Council,http://opendatacommunities.org/id/metropolitan-district-council/walsall,WC109-718,31/10/2019,Adult Social Care,ANSON COURT RESIDENTIAL HOME,09/10/2019,"1,972.24",73501-RESIDENTIAL EMI,SOCIAL SUPPORT,Third Party Payments,Revenue
Walsall Council,http://opendatacommunities.org/id/metropolitan-district-council/walsall,WC109-719,31/10/2019,Adult Social Care,ANSON COURT RESIDENTIAL HOME,09/10/2019,"1,972.24",73501-RESIDENTIAL EMI,MENTAL HEALTH SUPPORT,Third Party Payments,Revenue
Walsall Council,http://opendatacommunities.org/id/metropolitan-district-council/walsall,WC109-720,31/10/2019,Adult Social Care,ANSON COURT RESIDENTIAL HOME,09/10/2019,"1,972.24",73501-RESIDENTIAL EMI,SUPPORT WITH MEMORY & COGNITION,Third Party Payments,Revenue
Walsall Council,http://opendatacommunities.org/id/metropolitan-district-council/walsall,WC109-721,31/10/2019,Adult Social Care,ANSON COURT RESIDENTIAL HOME,09/10/2019,"1,972.24",73501-RESIDENTIAL EMI,PHYSICAL SUPPORT,Third Party Payments,Revenue
Walsall Council,http://opendatacommunities.org/id/metropolitan-district-council/walsall,WC109-722,31/10/2019,Adult Social Care,ANSON COURT RESIDENTIAL HOME,09/10/2019,"2,052.24",73501-RESIDENTIAL EMI,PHYSICAL SUPPORT,Third Party Payments,Revenue
Walsall Council,http://opendatacommunities.org/id/metropolitan-district-council/walsall,WC109-723,31/10/2019,Adult Social Care,ANSON COURT RESIDENTIAL HOME,09/10/2019,"2,052.24",73501-RESIDENTIAL EMI,MENTAL HEALTH SUPPORT,Third Party Payments,Revenue
Walsall Council,http://opendatacommunities.org/id/metropolitan-district-council/walsall,WC109-724,31/10/2019,Adult Social Care,ANSON COURT RESIDENTIAL HOME,09/10/2019,"2,052.24",73501-RESIDENTIAL EMI,PHYSICAL SUPPORT,Third Party Payments,Revenue
Walsall Council,http://opendatacommunities.org/id/metropolitan-district-council/walsall,WC109-725,31/10/2019,Adult Social Care,ANSON COURT RESIDENTIAL HOME,09/10/2019,"2,092.24",73501-RESIDENTIAL EMI,PHYSICAL SUPPORT,Third Party Payments,Revenue
Walsall Council,http://opendatacommunities.org/id/metropolitan-district-council/walsall,WC109-726,31/10/2019,Adult Social Care,ANSON COURT RESIDENTIAL HOME,09/10/2019,"2,092.24",73501-RESIDENTIAL EMI,MENTAL HEALTH SUPPORT,Third Party Payments,Revenue
Walsall Council,http://opendatacommunities.org/id/metropolitan-district-council/walsall,WC109-727,31/10/2019,Adult Social Care,ANSON COURT RESIDENTIAL HOME,09/10/2019,"2,092.24",73501-RESIDENTIAL EMI,MENTAL HEALTH SUPPORT,Third Party Payments,Revenue
Walsall Council,http://opendatacommunities.org/id/metropolitan-district-council/walsall,WC109-728,31/10/2019,Adult Social Care,ANSON COURT RESIDENTIAL HOME,09/10/2019,"2,172.24",73501-RESIDENTIAL EMI,PHYSICAL SUPPORT,Third Party Payments,Revenue
Walsall Council,http://opendatacommunities.org/id/metropolitan-district-council/walsall,WC109-729,31/10/2019,Adult Social Care,ANSON COURT RESIDENTIAL HOME,09/10/2019,"2,172.24",73501-RESIDENTIAL EMI,SOCIAL SUPPORT,Third Party Payments,Revenue
Walsall Council,http://opendatacommunities.org/id/metropolitan-district-council/walsall,WC109-730,31/10/2019,Childrens,REDACTED,21/10/2019,604.00,74510-RESIDENTS ORDERS,ADOPTION ALLOWANCES,Third Party Payments,Revenue
Walsall Council,http://opendatacommunities.org/id/metropolitan-district-council/walsall,WC109-731,31/10/2019,Childrens,REDACTED,21/10/2019,333.12,74509-SPECIAL GUARDIANSHIP ORDERS,ADOPTION ALLOWANCES,Transfer Payments,Revenue
Walsall Council,http://opendatacommunities.org/id/metropolitan-district-council/walsall,WC109-732,31/10/2019,Economy & Environment,APCOA PARKING SERVICES (UK) LTD,16/10/2019,"52,012.54",73025-PROFESSIONAL SERVICES-PRIV CONTRACTOR & OTHER AGENCIES,PARKING SERVICES,Third Party Payments,Revenue
Walsall Council,http://opendatacommunities.org/id/metropolitan-district-council/walsall,WC109-733,31/10/2019,Childrens,APP CARZ,14/10/2019,260.84,52000-WITH DRIVER-HIRE OF VEHICLES,HOME TO SCHOOL TRANSPORT,Transport,Revenue
Walsall Council,http://opendatacommunities.org/id/metropolitan-district-council/walsall,WC109-734,31/10/2019,Childrens,APP CARZ,14/10/2019,268.00,52000-WITH DRIVER-HIRE OF VEHICLES,HOME TO SCHOOL TRANSPORT,Transport,Revenue
Walsall Council,http://opendatacommunities.org/id/metropolitan-district-council/walsall,WC109-735,31/10/2019,Childrens,APP CARZ,14/10/2019,288.00,52000-WITH DRIVER-HIRE OF VEHICLES,HOME TO SCHOOL TRANSPORT,Transport,Revenue
Walsall Council,http://opendatacommunities.org/id/metropolitan-district-council/walsall,WC109-736,31/10/2019,Childrens,APP CARZ,14/10/2019,293.60,52000-WITH DRIVER-HIRE OF VEHICLES,HOME TO SCHOOL TRANSPORT,Transport,Revenue
Walsall Council,http://opendatacommunities.org/id/metropolitan-district-council/walsall,WC109-737,31/10/2019,Resources and Transformation,APP CARZ,14/10/2019,294.00,52000-WITH DRIVER-HIRE OF VEHICLES,ADVICE & GUIDANCE SERVICE,Transport,Revenue
Walsall Council,http://opendatacommunities.org/id/metropolitan-district-council/walsall,WC109-738,31/10/2019,Childrens,APP CARZ,14/10/2019,335.20,52000-WITH DRIVER-HIRE OF VEHICLES,HOME TO SCHOOL TRANSPORT,Transport,Revenue
Walsall Council,http://opendatacommunities.org/id/metropolitan-district-council/walsall,WC109-739,31/10/2019,Childrens,APP CARZ,14/10/2019,335.20,52000-WITH DRIVER-HIRE OF VEHICLES,HOME TO SCHOOL TRANSPORT,Transport,Revenue
Walsall Council,http://opendatacommunities.org/id/metropolitan-district-council/walsall,WC109-740,31/10/2019,Childrens,APP CARZ,14/10/2019,336.60,52000-WITH DRIVER-HIRE OF VEHICLES,HOME TO SCHOOL TRANSPORT,Transport,Revenue
Walsall Council,http://opendatacommunities.org/id/metropolitan-district-council/walsall,WC109-741,31/10/2019,Childrens,APP CARZ,14/10/2019,340.00,52000-WITH DRIVER-HIRE OF VEHICLES,HOME TO SCHOOL TRANSPORT,Transport,Revenue
Walsall Council,http://opendatacommunities.org/id/metropolitan-district-council/walsall,WC109-742,31/10/2019,Childrens,APP CARZ,14/10/2019,354.92,52000-WITH DRIVER-HIRE OF VEHICLES,HOME TO SCHOOL TRANSPORT,Transport,Revenue
Walsall Council,http://opendatacommunities.org/id/metropolitan-district-council/walsall,WC109-743,31/10/2019,Childrens,APP CARZ,14/10/2019,354.92,52000-WITH DRIVER-HIRE OF VEHICLES,HOME TO SCHOOL TRANSPORT,Transport,Revenue
Walsall Council,http://opendatacommunities.org/id/metropolitan-district-council/walsall,WC109-744,31/10/2019,Childrens,APP CARZ,14/10/2019,357.60,52000-WITH DRIVER-HIRE OF VEHICLES,HOME TO SCHOOL TRANSPORT,Transport,Revenue
Walsall Council,http://opendatacommunities.org/id/metropolitan-district-council/walsall,WC109-745,31/10/2019,Childrens,APP CARZ,14/10/2019,357.60,52000-WITH DRIVER-HIRE OF VEHICLES,HOME TO SCHOOL TRANSPORT,Transport,Revenue
Walsall Council,http://opendatacommunities.org/id/metropolitan-district-council/walsall,WC109-746,31/10/2019,Childrens,APP CARZ,14/10/2019,374.00,52000-WITH DRIVER-HIRE OF VEHICLES,HOME TO SCHOOL TRANSPORT,Transport,Revenue
Walsall Council,http://opendatacommunities.org/id/metropolitan-district-council/walsall,WC109-747,31/10/2019,Childrens,APP CARZ,14/10/2019,498.40,52000-WITH DRIVER-HIRE OF VEHICLES,HOME TO SCHOOL TRANSPORT,Transport,Revenue
Walsall Council,http://opendatacommunities.org/id/metropolitan-district-council/walsall,WC109-748,31/10/2019,Childrens,APP CARZ,14/10/2019,744.00,52000-WITH DRIVER-HIRE OF VEHICLES,HOME TO SCHOOL TRANSPORT,Transport,Revenue
Walsall Council,http://opendatacommunities.org/id/metropolitan-district-council/walsall,WC109-749,31/10/2019,Childrens,APP CARZ,14/10/2019,"1,600.00",52000-WITH DRIVER-HIRE OF VEHICLES,HOME TO SCHOOL TRANSPORT,Transport,Revenue
Walsall Council,http://opendatacommunities.org/id/metropolitan-district-council/walsall,WC109-750,31/10/2019,Childrens,AQUAID (BIRMINGHAM CENTRAL),25/10/2019,388.00,61009-BEVERAGES-PROVISIONS,PELSALL EDC,Supplies & Services,Revenue
Walsall Council,http://opendatacommunities.org/id/metropolitan-district-council/walsall,WC109-751,31/10/2019,Economy & Environment,AQUAMO LTD,25/10/2019,295.00,60008-REPAIR & MAINTENANCE OF FURNITURE & EQUIPMENT,BLOXWICH LEISURE CENTRE,Supplies & Services,Revenue
Walsall Council,http://opendatacommunities.org/id/metropolitan-district-council/walsall,WC109-752,31/10/2019,Economy & Environment,AQUAMO LTD,14/10/2019,806.40,60008-REPAIR & MAINTENANCE OF FURNITURE & EQUIPMENT,BLOXWICH LEISURE CENTRE,Supplies & Services,Revenue
Walsall Council,http://opendatacommunities.org/id/metropolitan-district-council/walsall,WC109-753,31/10/2019,Economy & Environment,AQUILA TRUCK CENTRES LTD,18/10/2019,575.84,73025-PROFESSIONAL SERVICES-PRIV CONTRACTOR & OTHER AGENCIES,FLEET,Third Party Payments,Revenue
Walsall Council,http://opendatacommunities.org/id/metropolitan-district-council/walsall,WC109-754,31/10/2019,Adult Social Care,ARBORETUM NURSING HOME.,09/10/2019,740.48,73502-NURSING,PHYSICAL SUPPORT,Third Party Payments,Revenue
Walsall Council,http://opendatacommunities.org/id/metropolitan-district-council/walsall,WC109-755,31/10/2019,Adult Social Care,ARBORETUM NURSING HOME.,09/10/2019,"2,143.72",73502-NURSING,PHYSICAL SUPPORT,Third Party Payments,Revenue
Walsall Council,http://opendatacommunities.org/id/metropolitan-district-council/walsall,WC109-756,31/10/2019,Adult Social Care,ARBORETUM NURSING HOME.,09/10/2019,"2,143.72",73502-NURSING,PHYSICAL SUPPORT,Third Party Payments,Revenue
Walsall Council,http://opendatacommunities.org/id/metropolitan-district-council/walsall,WC109-757,31/10/2019,Adult Social Care,ARBORETUM NURSING HOME.,09/10/2019,"2,143.72",73502-NURSING,PHYSICAL SUPPORT,Third Party Payments,Revenue
Walsall Council,http://opendatacommunities.org/id/metropolitan-district-council/walsall,WC109-758,31/10/2019,Adult Social Care,ARBORETUM NURSING HOME.,09/10/2019,"2,143.72",73502-NURSING,PHYSICAL SUPPORT,Third Party Payments,Revenue
Walsall Council,http://opendatacommunities.org/id/metropolitan-district-council/walsall,WC109-759,31/10/2019,Adult Social Care,ARBORETUM NURSING HOME.,09/10/2019,"2,223.72",73502-NURSING,PHYSICAL SUPPORT,Third Party Payments,Revenue
Walsall Council,http://opendatacommunities.org/id/metropolitan-district-council/walsall,WC109-760,31/10/2019,Adult Social Care,ARBORETUM NURSING HOME.,09/10/2019,"2,243.72",73502-NURSING,PHYSICAL SUPPORT,Third Party Payments,Revenue
Walsall Council,http://opendatacommunities.org/id/metropolitan-district-council/walsall,WC109-761,31/10/2019,Adult Social Care,ARBORETUM NURSING HOME.,09/10/2019,"2,263.72",73502-NURSING,PHYSICAL SUPPORT,Third Party Payments,Revenue
Walsall Council,http://opendatacommunities.org/id/metropolitan-district-council/walsall,WC109-762,31/10/2019,Adult Social Care,ARBORETUM NURSING HOME.,09/10/2019,"2,263.72",73502-NURSING,PHYSICAL SUPPORT,Third Party Payments,Revenue
Walsall Council,http://opendatacommunities.org/id/metropolitan-district-council/walsall,WC109-763,31/10/2019,Adult Social Care,ARBORETUM NURSING HOME.,09/10/2019,"2,263.72",73502-NURSING,PHYSICAL SUPPORT,Third Party Payments,Revenue
Walsall Council,http://opendatacommunities.org/id/metropolitan-district-council/walsall,WC109-764,31/10/2019,Adult Social Care,ARBORETUM NURSING HOME.,09/10/2019,"2,303.72",73502-NURSING,SOCIAL SUPPORT,Third Party Payments,Revenue
Walsall Council,http://opendatacommunities.org/id/metropolitan-district-council/walsall,WC109-765,31/10/2019,Adult Social Care,ARBORETUM NURSING HOME.,09/10/2019,"2,303.72",73502-NURSING,PHYSICAL SUPPORT,Third Party Payments,Revenue
Walsall Council,http://opendatacommunities.org/id/metropolitan-district-council/walsall,WC109-766,31/10/2019,Adult Social Care,ARBORETUM NURSING HOME.,09/10/2019,"2,478.08",73503-NURSING EMI,PHYSICAL SUPPORT,Third Party Payments,Revenue
Walsall Council,http://opendatacommunities.org/id/metropolitan-district-council/walsall,WC109-767,31/10/2019,Adult Social Care,ARBORETUM NURSING HOME.,23/10/2019,"7,024.30",73025-PROFESSIONAL SERVICES-PRIV CONTRACTOR & OTHER AGENCIES,TRANSITIONAL CARE SUPPORT TEAM,Third Party Payments,Revenue
Walsall Council,http://opendatacommunities.org/id/metropolitan-district-council/walsall,WC109-768,31/10/2019,Adult Social Care,ARBORETUM NURSING HOME.,01/10/2019,"23,840.00",73025-PROFESSIONAL SERVICES-PRIV CONTRACTOR & OTHER AGENCIES,TRANSITIONAL CARE SUPPORT TEAM,Third Party Payments,Revenue
Walsall Council,http://opendatacommunities.org/id/metropolitan-district-council/walsall,WC109-769,31/10/2019,Adult Social Care,ARBORETUM NURSING HOME.,09/10/2019,"23,840.00",73025-PROFESSIONAL SERVICES-PRIV CONTRACTOR & OTHER AGENCIES,TRANSITIONAL CARE SUPPORT TEAM,Third Party Payments,Revenue
Walsall Council,http://opendatacommunities.org/id/metropolitan-district-council/walsall,WC109-770,31/10/2019,Economy & Environment,ARCADIS,02/10/2019,"26,000.00",63000-PROFESSIONAL FEES AND SERVICES,TOWN CENTRE MASTER PLAN,Supplies & Services,Revenue
Walsall Council,http://opendatacommunities.org/id/metropolitan-district-council/walsall,WC109-771,31/10/2019,Childrens,ARCADIS,01/10/2019,"26,250.00",01001-OTHER CONSULTANTS FEES,CFR 1346 BASIC NEED,Capital,Capital
Walsall Council,http://opendatacommunities.org/id/metropolitan-district-council/walsall,WC109-772,31/10/2019,Economy & Environment,ARCHWAY TCS LTD,16/10/2019,397.33,73025-PROFESSIONAL SERVICES-PRIV CONTRACTOR & OTHER AGENCIES,DEPOT,Third Party Payments,Revenue
Walsall Council,http://opendatacommunities.org/id/metropolitan-district-council/walsall,WC109-773,31/10/2019,Economy & Environment,ARCHWAY TCS LTD,02/10/2019,707.50,60537-VEHICLE WASH PLANT-MATERIALS,DEPOT,Supplies & Services,Revenue
Walsall Council,http://opendatacommunities.org/id/metropolitan-district-council/walsall,WC109-774,31/10/2019,Economy & Environment,ARCHWAY TCS LTD,02/10/2019,"1,047.50",60537-VEHICLE WASH PLANT-MATERIALS,DEPOT,Supplies & Services,Revenue
Walsall Council,http://opendatacommunities.org/id/metropolitan-district-council/walsall,WC109-775,31/10/2019,Economy & Environment,ARCO GROUP,10/10/2019,418.58,60006-NEW-FURNITURE & EQUIPMENT,WASTE DISPOSAL - RECYCLING,Supplies & Services,Revenue
Walsall Council,http://opendatacommunities.org/id/metropolitan-district-council/walsall,WC109-776,31/10/2019,Economy & Environment,ARTISTES INTERNATIONAL MANAGEMENT,25/10/2019,"1,090.83",63000-PROFESSIONAL FEES AND SERVICES,WALSALL ARENA AND ARTS CENTRE,Supplies & Services,Revenue
Walsall Council,http://opendatacommunities.org/id/metropolitan-district-council/walsall,WC109-777,31/10/2019,Adult Social Care,ASH GRANGE CARE HOME,09/10/2019,"-19,771.44",73502-NURSING,PHYSICAL SUPPORT,Third Party Payments,Revenue
Walsall Council,http://opendatacommunities.org/id/metropolitan-district-council/walsall,WC109-778,31/10/2019,Adult Social Care,ASH GRANGE CARE HOME,09/10/2019,"-9,493.62",73502-NURSING,PHYSICAL SUPPORT,Third Party Payments,Revenue
Walsall Council,http://opendatacommunities.org/id/metropolitan-district-council/walsall,WC109-779,31/10/2019,Adult Social Care,ASH GRANGE CARE HOME,09/10/2019,"-1,069.59",73502-NURSING,SOCIAL SUPPORT,Third Party Payments,Revenue
Walsall Council,http://opendatacommunities.org/id/metropolitan-district-council/walsall,WC109-780,31/10/2019,Adult Social Care,ASH GRANGE CARE HOME,11/10/2019,428.57,73025-PROFESSIONAL SERVICES-PRIV CONTRACTOR & OTHER AGENCIES,TRANSITIONAL CARE SUPPORT TEAM,Third Party Payments,Revenue
Walsall Council,http://opendatacommunities.org/id/metropolitan-district-council/walsall,WC109-781,31/10/2019,Adult Social Care,ASH GRANGE CARE HOME,11/10/2019,612.49,73502-NURSING,PHYSICAL SUPPORT,Third Party Payments,Revenue
Walsall Council,http://opendatacommunities.org/id/metropolitan-district-council/walsall,WC109-782,31/10/2019,Adult Social Care,ASH GRANGE CARE HOME,23/10/2019,"1,071.43",73025-PROFESSIONAL SERVICES-PRIV CONTRACTOR & OTHER AGENCIES,TRANSITIONAL CARE SUPPORT TEAM,Third Party Payments,Revenue
Walsall Council,http://opendatacommunities.org/id/metropolitan-district-council/walsall,WC109-783,31/10/2019,Adult Social Care,ASH GRANGE CARE HOME,09/10/2019,"1,590.38",73502-NURSING,PHYSICAL SUPPORT,Third Party Payments,Revenue
Walsall Council,http://opendatacommunities.org/id/metropolitan-district-council/walsall,WC109-784,31/10/2019,Adult Social Care,ASH GRANGE CARE HOME,14/10/2019,"1,714.29",73025-PROFESSIONAL SERVICES-PRIV CONTRACTOR & OTHER AGENCIES,TRANSITIONAL CARE SUPPORT TEAM,Third Party Payments,Revenue
Walsall Council,http://opendatacommunities.org/id/metropolitan-district-council/walsall,WC109-785,31/10/2019,Adult Social Care,ASH GRANGE CARE HOME,09/10/2019,"1,757.79",73502-NURSING,PHYSICAL SUPPORT,Third Party Payments,Revenue
Walsall Council,http://opendatacommunities.org/id/metropolitan-district-council/walsall,WC109-786,31/10/2019,Adult Social Care,ASH GRANGE CARE HOME,09/10/2019,"1,774.96",73500-RESIDENTIAL,SUPPORT WITH MEMORY & COGNITION,Third Party Payments,Revenue
Walsall Council,http://opendatacommunities.org/id/metropolitan-district-council/walsall,WC109-787,31/10/2019,Adult Social Care,ASH GRANGE CARE HOME,09/10/2019,"1,774.96",73500-RESIDENTIAL,MENTAL HEALTH SUPPORT,Third Party Payments,Revenue
Walsall Council,http://opendatacommunities.org/id/metropolitan-district-council/walsall,WC109-788,31/10/2019,Adult Social Care,ASH GRANGE CARE HOME,14/10/2019,"1,821.43",73025-PROFESSIONAL SERVICES-PRIV CONTRACTOR & OTHER AGENCIES,TRANSITIONAL CARE SUPPORT TEAM,Third Party Payments,Revenue
Walsall Council,http://opendatacommunities.org/id/metropolitan-district-council/walsall,WC109-789,31/10/2019,Adult Social Care,ASH GRANGE CARE HOME,09/10/2019,"2,143.72",73502-NURSING,PHYSICAL SUPPORT,Third Party Payments,Revenue
Walsall Council,http://opendatacommunities.org/id/metropolitan-district-council/walsall,WC109-790,31/10/2019,Adult Social Care,ASH GRANGE CARE HOME,09/10/2019,"2,143.72",73502-NURSING,MENTAL HEALTH SUPPORT,Third Party Payments,Revenue
Walsall Council,http://opendatacommunities.org/id/metropolitan-district-council/walsall,WC109-791,31/10/2019,Adult Social Care,ASH GRANGE CARE HOME,09/10/2019,"2,143.72",73502-NURSING,PHYSICAL SUPPORT,Third Party Payments,Revenue
Walsall Council,http://opendatacommunities.org/id/metropolitan-district-council/walsall,WC109-792,31/10/2019,Adult Social Care,ASH GRANGE CARE HOME,09/10/2019,"2,143.72",73502-NURSING,PHYSICAL SUPPORT,Third Party Payments,Revenue
Walsall Council,http://opendatacommunities.org/id/metropolitan-district-council/walsall,WC109-793,31/10/2019,Adult Social Care,ASH GRANGE CARE HOME,09/10/2019,"2,143.72",73502-NURSING,PHYSICAL SUPPORT,Third Party Payments,Revenue
Walsall Council,http://opendatacommunities.org/id/metropolitan-district-council/walsall,WC109-794,31/10/2019,Adult Social Care,ASH GRANGE CARE HOME,09/10/2019,"2,143.72",73502-NURSING,SUPPORT WITH MEMORY & COGNITION,Third Party Payments,Revenue
Walsall Council,http://opendatacommunities.org/id/metropolitan-district-council/walsall,WC109-795,31/10/2019,Adult Social Care,ASH GRANGE CARE HOME,09/10/2019,"2,143.72",73502-NURSING,PHYSICAL SUPPORT,Third Party Payments,Revenue
Walsall Council,http://opendatacommunities.org/id/metropolitan-district-council/walsall,WC109-796,31/10/2019,Adult Social Care,ASH GRANGE CARE HOME,09/10/2019,"2,143.72",73502-NURSING,PHYSICAL SUPPORT,Third Party Payments,Revenue
Walsall Council,http://opendatacommunities.org/id/metropolitan-district-council/walsall,WC109-797,31/10/2019,Adult Social Care,ASH GRANGE CARE HOME,09/10/2019,"2,143.72",73502-NURSING,PHYSICAL SUPPORT,Third Party Payments,Revenue
Walsall Council,http://opendatacommunities.org/id/metropolitan-district-council/walsall,WC109-798,31/10/2019,Adult Social Care,ASH GRANGE CARE HOME,09/10/2019,"2,143.72",73502-NURSING,MENTAL HEALTH SUPPORT,Third Party Payments,Revenue
Walsall Council,http://opendatacommunities.org/id/metropolitan-district-council/walsall,WC109-799,31/10/2019,Adult Social Care,ASH GRANGE CARE HOME,09/10/2019,"2,143.72",73502-NURSING,PHYSICAL SUPPORT,Third Party Payments,Revenue
